{"text_format":"1","workbook":"xlsx","n_sheets":5,"sheets":["Questionnaire","Product Information","Dev_Lists","EMDN_IVDR_Lvl5","EMDN level 5"],"not_rendered":{"charts":0,"images":3,"macros":1,"external_links":4,"defined_names":19,"comments":0,"pivot_tables":0},"unopened":[],"bounds":{"document_bytes":16777216,"sheet_cells":100000,"rows_first":2000,"rows_last":500,"rows_between":2000,"halvings":0,"cell_chars":16384,"cell_head_chars":4096},"cells_cut":0,"cells_raw":0,"read":"whole","date_system":"1900"}

{"sheet":"Questionnaire","index":0,"n_rows":20,"n_cols":2,"rows_kept":20,"cut":false,"hidden":false,"merged":[]}
[]
[null,"1. Details about the company and contact person(s)"]
["Name of legal manufacturer:\n(Must be identical to General Agreement with TRLP)"]
["E-Mail (contact person):"]
[]
["Are you seeking certification under Article 16?\n(importers, distributors or other persons)","No"]
[]
[null,"2. Desired Conformity Assessment Procedure"]
["Class A \n(sterile)"]
["Class B"]
["Class C"]
["Class D"]
[]
[null,"3. Technical Documentations"]
["Technical Documentation Language:"]
[{"$f":"IF(B15=Dev_Lists!O5,\"Please specify the language:\",\"\")","v":""}]
["Was consultancy received for the technical documentation?"]
[{"$f":"IF(B17=\"Yes\",\"Consulted by:\",\"\")","v":""}]
["The technical documentation is ready for submission for assessment:"]
[null,"Note: Please remember to fill all sheets in this document, including the \"Product Information\". The \"Product information\" are highly similar to the \"Product List\" required in the \"Product List and Application\"document. "]

{"sheet":"Product Information","index":1,"n_rows":103,"n_cols":21,"rows_kept":103,"cut":false,"hidden":false,"merged":[]}
[]
[null,null,null,null,null,null,null,null,null,null,null,null,null,"        Regulation (EU) 2024/1860"]
["No","Product or Trade name under IVDR \n(as listed on product label and EUDAMED)","Catalogue Number (Ref)","Technical Documentation (TD) Identifier\nOR\n\nEU 2024/1860 application\n(if TD is not ready)\nDeclared date of TD submission\n[YYYY-MM] ","Basic UDI-DI","Classification rule (single selection),\n\nand implementing rule as required\n(see IVDR,\nAnnex VIII)","(highest)\nRisk class ","EMDN code\n(click-> EMDN homepage)\n\n5th level","EMDN description (automatically filled!)","IVR:\n(single selection, exceptions possible for multiplex devices)","IVD:\n(single selection)","IVP:\n(main IVP code)","IVS:\n(multi selection possible)","Name of the IVDD legacy device, if applicable","IVDD Certificate(s) reference of the devices under IVDR application, if appliabel","Intended Use\n(abbreviated version)","Interventional clinical performance study conducted\n(see Annex XIV) ","Devices in sterile condition","Number of additional specific Analytes/Markers","Software that are devices in themselves \n(stand alone SW)","Devices incorporating software/utilising software \n(embedded SW) "]
[1]
[2,null,null,null,null,null,null,null,{"$f":"_xlfn.XLOOKUP(H5,EMDN_IVDR_Lvl5!C:C,PROPER(EMDN_IVDR_Lvl5!L:L))","v":""}]
[3,null,null,null,null,null,null,null,{"$f":"_xlfn.XLOOKUP(H6,EMDN_IVDR_Lvl5!C:C,PROPER(EMDN_IVDR_Lvl5!L:L))","v":""}]
[4,null,null,null,null,null,null,null,{"$f":"_xlfn.XLOOKUP(H7,EMDN_IVDR_Lvl5!C:C,PROPER(EMDN_IVDR_Lvl5!L:L))","v":""}]
[5,null,null,null,null,null,null,null,{"$f":"_xlfn.XLOOKUP(H8,EMDN_IVDR_Lvl5!C:C,PROPER(EMDN_IVDR_Lvl5!L:L))","v":""}]
[6,null,null,null,null,null,null,null,{"$f":"_xlfn.XLOOKUP(H9,EMDN_IVDR_Lvl5!C:C,PROPER(EMDN_IVDR_Lvl5!L:L))","v":""}]
[7,null,null,null,null,null,null,null,{"$f":"_xlfn.XLOOKUP(H10,EMDN_IVDR_Lvl5!C:C,PROPER(EMDN_IVDR_Lvl5!L:L))","v":""}]
[8,null,null,null,null,null,null,null,{"$f":"_xlfn.XLOOKUP(H11,EMDN_IVDR_Lvl5!C:C,PROPER(EMDN_IVDR_Lvl5!L:L))","v":""}]
[9,null,null,null,null,null,null,null,{"$f":"_xlfn.XLOOKUP(H12,EMDN_IVDR_Lvl5!C:C,PROPER(EMDN_IVDR_Lvl5!L:L))","v":""}]
[10,null,null,null,null,null,null,null,{"$f":"_xlfn.XLOOKUP(H13,EMDN_IVDR_Lvl5!C:C,PROPER(EMDN_IVDR_Lvl5!L:L))","v":""}]
[11,null,null,null,null,null,null,null,{"$f":"_xlfn.XLOOKUP(H14,EMDN_IVDR_Lvl5!C:C,PROPER(EMDN_IVDR_Lvl5!L:L))","v":""}]
[12,null,null,null,null,null,null,null,{"$f":"_xlfn.XLOOKUP(H15,EMDN_IVDR_Lvl5!C:C,PROPER(EMDN_IVDR_Lvl5!L:L))","v":""}]
[13,null,null,null,null,null,null,null,{"$f":"_xlfn.XLOOKUP(H16,EMDN_IVDR_Lvl5!C:C,PROPER(EMDN_IVDR_Lvl5!L:L))","v":""}]
[14,null,null,null,null,null,null,null,{"$f":"_xlfn.XLOOKUP(H17,EMDN_IVDR_Lvl5!C:C,PROPER(EMDN_IVDR_Lvl5!L:L))","v":""}]
[15,null,null,null,null,null,null,null,{"$f":"_xlfn.XLOOKUP(H18,EMDN_IVDR_Lvl5!C:C,PROPER(EMDN_IVDR_Lvl5!L:L))","v":""}]
[16,null,null,null,null,null,null,null,{"$f":"_xlfn.XLOOKUP(H19,EMDN_IVDR_Lvl5!C:C,PROPER(EMDN_IVDR_Lvl5!L:L))","v":""}]
[17,null,null,null,null,null,null,null,{"$f":"_xlfn.XLOOKUP(H20,EMDN_IVDR_Lvl5!C:C,PROPER(EMDN_IVDR_Lvl5!L:L))","v":""}]
[18,null,null,null,null,null,null,null,{"$f":"_xlfn.XLOOKUP(H21,EMDN_IVDR_Lvl5!C:C,PROPER(EMDN_IVDR_Lvl5!L:L))","v":""}]
[19,null,null,null,null,null,null,null,{"$f":"_xlfn.XLOOKUP(H22,EMDN_IVDR_Lvl5!C:C,PROPER(EMDN_IVDR_Lvl5!L:L))","v":""}]
[20,null,null,null,null,null,null,null,{"$f":"_xlfn.XLOOKUP(H23,EMDN_IVDR_Lvl5!C:C,PROPER(EMDN_IVDR_Lvl5!L:L))","v":""}]
[21,null,null,null,null,null,null,null,{"$f":"_xlfn.XLOOKUP(H24,EMDN_IVDR_Lvl5!C:C,PROPER(EMDN_IVDR_Lvl5!L:L))","v":""}]
[22,null,null,null,null,null,null,null,{"$f":"_xlfn.XLOOKUP(H25,EMDN_IVDR_Lvl5!C:C,PROPER(EMDN_IVDR_Lvl5!L:L))","v":""}]
[23,null,null,null,null,null,null,null,{"$f":"_xlfn.XLOOKUP(H26,EMDN_IVDR_Lvl5!C:C,PROPER(EMDN_IVDR_Lvl5!L:L))","v":""}]
[24,null,null,null,null,null,null,null,{"$f":"_xlfn.XLOOKUP(H27,EMDN_IVDR_Lvl5!C:C,PROPER(EMDN_IVDR_Lvl5!L:L))","v":""}]
[25,null,null,null,null,null,null,null,{"$f":"_xlfn.XLOOKUP(H28,EMDN_IVDR_Lvl5!C:C,PROPER(EMDN_IVDR_Lvl5!L:L))","v":""}]
[26,null,null,null,null,null,null,null,{"$f":"_xlfn.XLOOKUP(H29,EMDN_IVDR_Lvl5!C:C,PROPER(EMDN_IVDR_Lvl5!L:L))","v":""}]
[27,null,null,null,null,null,null,null,{"$f":"_xlfn.XLOOKUP(H30,EMDN_IVDR_Lvl5!C:C,PROPER(EMDN_IVDR_Lvl5!L:L))","v":""}]
[28,null,null,null,null,null,null,null,{"$f":"_xlfn.XLOOKUP(H31,EMDN_IVDR_Lvl5!C:C,PROPER(EMDN_IVDR_Lvl5!L:L))","v":""}]
[29,null,null,null,null,null,null,null,{"$f":"_xlfn.XLOOKUP(H32,EMDN_IVDR_Lvl5!C:C,PROPER(EMDN_IVDR_Lvl5!L:L))","v":""}]
[30,null,null,null,null,null,null,null,{"$f":"_xlfn.XLOOKUP(H33,EMDN_IVDR_Lvl5!C:C,PROPER(EMDN_IVDR_Lvl5!L:L))","v":""}]
[31,null,null,null,null,null,null,null,{"$f":"_xlfn.XLOOKUP(H34,EMDN_IVDR_Lvl5!C:C,PROPER(EMDN_IVDR_Lvl5!L:L))","v":""}]
[32,null,null,null,null,null,null,null,{"$f":"_xlfn.XLOOKUP(H35,EMDN_IVDR_Lvl5!C:C,PROPER(EMDN_IVDR_Lvl5!L:L))","v":""}]
[33,null,null,null,null,null,null,null,{"$f":"_xlfn.XLOOKUP(H36,EMDN_IVDR_Lvl5!C:C,PROPER(EMDN_IVDR_Lvl5!L:L))","v":""}]
[34,null,null,null,null,null,null,null,{"$f":"_xlfn.XLOOKUP(H37,EMDN_IVDR_Lvl5!C:C,PROPER(EMDN_IVDR_Lvl5!L:L))","v":""}]
[35,null,null,null,null,null,null,null,{"$f":"_xlfn.XLOOKUP(H38,EMDN_IVDR_Lvl5!C:C,PROPER(EMDN_IVDR_Lvl5!L:L))","v":""}]
[36,null,null,null,null,null,null,null,{"$f":"_xlfn.XLOOKUP(H39,EMDN_IVDR_Lvl5!C:C,PROPER(EMDN_IVDR_Lvl5!L:L))","v":""}]
[37,null,null,null,null,null,null,null,{"$f":"_xlfn.XLOOKUP(H40,EMDN_IVDR_Lvl5!C:C,PROPER(EMDN_IVDR_Lvl5!L:L))","v":""}]
[38,null,null,null,null,null,null,null,{"$f":"_xlfn.XLOOKUP(H41,EMDN_IVDR_Lvl5!C:C,PROPER(EMDN_IVDR_Lvl5!L:L))","v":""}]
[39,null,null,null,null,null,null,null,{"$f":"_xlfn.XLOOKUP(H42,EMDN_IVDR_Lvl5!C:C,PROPER(EMDN_IVDR_Lvl5!L:L))","v":""}]
[40,null,null,null,null,null,null,null,{"$f":"_xlfn.XLOOKUP(H43,EMDN_IVDR_Lvl5!C:C,PROPER(EMDN_IVDR_Lvl5!L:L))","v":""}]
[41,null,null,null,null,null,null,null,{"$f":"_xlfn.XLOOKUP(H44,EMDN_IVDR_Lvl5!C:C,PROPER(EMDN_IVDR_Lvl5!L:L))","v":""}]
[42,null,null,null,null,null,null,null,{"$f":"_xlfn.XLOOKUP(H45,EMDN_IVDR_Lvl5!C:C,PROPER(EMDN_IVDR_Lvl5!L:L))","v":""}]
[43,null,null,null,null,null,null,null,{"$f":"_xlfn.XLOOKUP(H46,EMDN_IVDR_Lvl5!C:C,PROPER(EMDN_IVDR_Lvl5!L:L))","v":""}]
[44,null,null,null,null,null,null,null,{"$f":"_xlfn.XLOOKUP(H47,EMDN_IVDR_Lvl5!C:C,PROPER(EMDN_IVDR_Lvl5!L:L))","v":""}]
[45,null,null,null,null,null,null,null,{"$f":"_xlfn.XLOOKUP(H48,EMDN_IVDR_Lvl5!C:C,PROPER(EMDN_IVDR_Lvl5!L:L))","v":""}]
[46,null,null,null,null,null,null,null,{"$f":"_xlfn.XLOOKUP(H49,EMDN_IVDR_Lvl5!C:C,PROPER(EMDN_IVDR_Lvl5!L:L))","v":""}]
[47,null,null,null,null,null,null,null,{"$f":"_xlfn.XLOOKUP(H50,EMDN_IVDR_Lvl5!C:C,PROPER(EMDN_IVDR_Lvl5!L:L))","v":""}]
[48,null,null,null,null,null,null,null,{"$f":"_xlfn.XLOOKUP(H51,EMDN_IVDR_Lvl5!C:C,PROPER(EMDN_IVDR_Lvl5!L:L))","v":""}]
[49,null,null,null,null,null,null,null,{"$f":"_xlfn.XLOOKUP(H52,EMDN_IVDR_Lvl5!C:C,PROPER(EMDN_IVDR_Lvl5!L:L))","v":""}]
[50,null,null,null,null,null,null,null,{"$f":"_xlfn.XLOOKUP(H53,EMDN_IVDR_Lvl5!C:C,PROPER(EMDN_IVDR_Lvl5!L:L))","v":""}]
[51,null,null,null,null,null,null,null,{"$f":"_xlfn.XLOOKUP(H54,EMDN_IVDR_Lvl5!C:C,PROPER(EMDN_IVDR_Lvl5!L:L))","v":""}]
[52,null,null,null,null,null,null,null,{"$f":"_xlfn.XLOOKUP(H55,EMDN_IVDR_Lvl5!C:C,PROPER(EMDN_IVDR_Lvl5!L:L))","v":""}]
[53,null,null,null,null,null,null,null,{"$f":"_xlfn.XLOOKUP(H56,EMDN_IVDR_Lvl5!C:C,PROPER(EMDN_IVDR_Lvl5!L:L))","v":""}]
[54,null,null,null,null,null,null,null,{"$f":"_xlfn.XLOOKUP(H57,EMDN_IVDR_Lvl5!C:C,PROPER(EMDN_IVDR_Lvl5!L:L))","v":""}]
[55,null,null,null,null,null,null,null,{"$f":"_xlfn.XLOOKUP(H58,EMDN_IVDR_Lvl5!C:C,PROPER(EMDN_IVDR_Lvl5!L:L))","v":""}]
[56,null,null,null,null,null,null,null,{"$f":"_xlfn.XLOOKUP(H59,EMDN_IVDR_Lvl5!C:C,PROPER(EMDN_IVDR_Lvl5!L:L))","v":""}]
[57,null,null,null,null,null,null,null,{"$f":"_xlfn.XLOOKUP(H60,EMDN_IVDR_Lvl5!C:C,PROPER(EMDN_IVDR_Lvl5!L:L))","v":""}]
[58,null,null,null,null,null,null,null,{"$f":"_xlfn.XLOOKUP(H61,EMDN_IVDR_Lvl5!C:C,PROPER(EMDN_IVDR_Lvl5!L:L))","v":""}]
[59,null,null,null,null,null,null,null,{"$f":"_xlfn.XLOOKUP(H62,EMDN_IVDR_Lvl5!C:C,PROPER(EMDN_IVDR_Lvl5!L:L))","v":""}]
[60,null,null,null,null,null,null,null,{"$f":"_xlfn.XLOOKUP(H63,EMDN_IVDR_Lvl5!C:C,PROPER(EMDN_IVDR_Lvl5!L:L))","v":""}]
[61,null,null,null,null,null,null,null,{"$f":"_xlfn.XLOOKUP(H64,EMDN_IVDR_Lvl5!C:C,PROPER(EMDN_IVDR_Lvl5!L:L))","v":""}]
[62,null,null,null,null,null,null,null,{"$f":"_xlfn.XLOOKUP(H65,EMDN_IVDR_Lvl5!C:C,PROPER(EMDN_IVDR_Lvl5!L:L))","v":""}]
[63,null,null,null,null,null,null,null,{"$f":"_xlfn.XLOOKUP(H66,EMDN_IVDR_Lvl5!C:C,PROPER(EMDN_IVDR_Lvl5!L:L))","v":""}]
[64,null,null,null,null,null,null,null,{"$f":"_xlfn.XLOOKUP(H67,EMDN_IVDR_Lvl5!C:C,PROPER(EMDN_IVDR_Lvl5!L:L))","v":""}]
[65,null,null,null,null,null,null,null,{"$f":"_xlfn.XLOOKUP(H68,EMDN_IVDR_Lvl5!C:C,PROPER(EMDN_IVDR_Lvl5!L:L))","v":""}]
[66,null,null,null,null,null,null,null,{"$f":"_xlfn.XLOOKUP(H69,EMDN_IVDR_Lvl5!C:C,PROPER(EMDN_IVDR_Lvl5!L:L))","v":""}]
[67,null,null,null,null,null,null,null,{"$f":"_xlfn.XLOOKUP(H70,EMDN_IVDR_Lvl5!C:C,PROPER(EMDN_IVDR_Lvl5!L:L))","v":""}]
[68,null,null,null,null,null,null,null,{"$f":"_xlfn.XLOOKUP(H71,EMDN_IVDR_Lvl5!C:C,PROPER(EMDN_IVDR_Lvl5!L:L))","v":""}]
[69,null,null,null,null,null,null,null,{"$f":"_xlfn.XLOOKUP(H72,EMDN_IVDR_Lvl5!C:C,PROPER(EMDN_IVDR_Lvl5!L:L))","v":""}]
[70,null,null,null,null,null,null,null,{"$f":"_xlfn.XLOOKUP(H73,EMDN_IVDR_Lvl5!C:C,PROPER(EMDN_IVDR_Lvl5!L:L))","v":""}]
[71,null,null,null,null,null,null,null,{"$f":"_xlfn.XLOOKUP(H74,EMDN_IVDR_Lvl5!C:C,PROPER(EMDN_IVDR_Lvl5!L:L))","v":""}]
[72,null,null,null,null,null,null,null,{"$f":"_xlfn.XLOOKUP(H75,EMDN_IVDR_Lvl5!C:C,PROPER(EMDN_IVDR_Lvl5!L:L))","v":""}]
[73,null,null,null,null,null,null,null,{"$f":"_xlfn.XLOOKUP(H76,EMDN_IVDR_Lvl5!C:C,PROPER(EMDN_IVDR_Lvl5!L:L))","v":""}]
[74,null,null,null,null,null,null,null,{"$f":"_xlfn.XLOOKUP(H77,EMDN_IVDR_Lvl5!C:C,PROPER(EMDN_IVDR_Lvl5!L:L))","v":""}]
[75,null,null,null,null,null,null,null,{"$f":"_xlfn.XLOOKUP(H78,EMDN_IVDR_Lvl5!C:C,PROPER(EMDN_IVDR_Lvl5!L:L))","v":""}]
[76,null,null,null,null,null,null,null,{"$f":"_xlfn.XLOOKUP(H79,EMDN_IVDR_Lvl5!C:C,PROPER(EMDN_IVDR_Lvl5!L:L))","v":""}]
[77,null,null,null,null,null,null,null,{"$f":"_xlfn.XLOOKUP(H80,EMDN_IVDR_Lvl5!C:C,PROPER(EMDN_IVDR_Lvl5!L:L))","v":""}]
[78,null,null,null,null,null,null,null,{"$f":"_xlfn.XLOOKUP(H81,EMDN_IVDR_Lvl5!C:C,PROPER(EMDN_IVDR_Lvl5!L:L))","v":""}]
[79,null,null,null,null,null,null,null,{"$f":"_xlfn.XLOOKUP(H82,EMDN_IVDR_Lvl5!C:C,PROPER(EMDN_IVDR_Lvl5!L:L))","v":""}]
[80,null,null,null,null,null,null,null,{"$f":"_xlfn.XLOOKUP(H83,EMDN_IVDR_Lvl5!C:C,PROPER(EMDN_IVDR_Lvl5!L:L))","v":""}]
[81,null,null,null,null,null,null,null,{"$f":"_xlfn.XLOOKUP(H84,EMDN_IVDR_Lvl5!C:C,PROPER(EMDN_IVDR_Lvl5!L:L))","v":""}]
[82,null,null,null,null,null,null,null,{"$f":"_xlfn.XLOOKUP(H85,EMDN_IVDR_Lvl5!C:C,PROPER(EMDN_IVDR_Lvl5!L:L))","v":""}]
[83,null,null,null,null,null,null,null,{"$f":"_xlfn.XLOOKUP(H86,EMDN_IVDR_Lvl5!C:C,PROPER(EMDN_IVDR_Lvl5!L:L))","v":""}]
[84,null,null,null,null,null,null,null,{"$f":"_xlfn.XLOOKUP(H87,EMDN_IVDR_Lvl5!C:C,PROPER(EMDN_IVDR_Lvl5!L:L))","v":""}]
[85,null,null,null,null,null,null,null,{"$f":"_xlfn.XLOOKUP(H88,EMDN_IVDR_Lvl5!C:C,PROPER(EMDN_IVDR_Lvl5!L:L))","v":""}]
[86,null,null,null,null,null,null,null,{"$f":"_xlfn.XLOOKUP(H89,EMDN_IVDR_Lvl5!C:C,PROPER(EMDN_IVDR_Lvl5!L:L))","v":""}]
[87,null,null,null,null,null,null,null,{"$f":"_xlfn.XLOOKUP(H90,EMDN_IVDR_Lvl5!C:C,PROPER(EMDN_IVDR_Lvl5!L:L))","v":""}]
[88,null,null,null,null,null,null,null,{"$f":"_xlfn.XLOOKUP(H91,EMDN_IVDR_Lvl5!C:C,PROPER(EMDN_IVDR_Lvl5!L:L))","v":""}]
[89,null,null,null,null,null,null,null,{"$f":"_xlfn.XLOOKUP(H92,EMDN_IVDR_Lvl5!C:C,PROPER(EMDN_IVDR_Lvl5!L:L))","v":""}]
[90,null,null,null,null,null,null,null,{"$f":"_xlfn.XLOOKUP(H93,EMDN_IVDR_Lvl5!C:C,PROPER(EMDN_IVDR_Lvl5!L:L))","v":""}]
[91,null,null,null,null,null,null,null,{"$f":"_xlfn.XLOOKUP(H94,EMDN_IVDR_Lvl5!C:C,PROPER(EMDN_IVDR_Lvl5!L:L))","v":""}]
[92,null,null,null,null,null,null,null,{"$f":"_xlfn.XLOOKUP(H95,EMDN_IVDR_Lvl5!C:C,PROPER(EMDN_IVDR_Lvl5!L:L))","v":""}]
[93,null,null,null,null,null,null,null,{"$f":"_xlfn.XLOOKUP(H96,EMDN_IVDR_Lvl5!C:C,PROPER(EMDN_IVDR_Lvl5!L:L))","v":""}]
[94,null,null,null,null,null,null,null,{"$f":"_xlfn.XLOOKUP(H97,EMDN_IVDR_Lvl5!C:C,PROPER(EMDN_IVDR_Lvl5!L:L))","v":""}]
[95,null,null,null,null,null,null,null,{"$f":"_xlfn.XLOOKUP(H98,EMDN_IVDR_Lvl5!C:C,PROPER(EMDN_IVDR_Lvl5!L:L))","v":""}]
[96,null,null,null,null,null,null,null,{"$f":"_xlfn.XLOOKUP(H99,EMDN_IVDR_Lvl5!C:C,PROPER(EMDN_IVDR_Lvl5!L:L))","v":""}]
[97,null,null,null,null,null,null,null,{"$f":"_xlfn.XLOOKUP(H100,EMDN_IVDR_Lvl5!C:C,PROPER(EMDN_IVDR_Lvl5!L:L))","v":""}]
[98,null,null,null,null,null,null,null,{"$f":"_xlfn.XLOOKUP(H101,EMDN_IVDR_Lvl5!C:C,PROPER(EMDN_IVDR_Lvl5!L:L))","v":""}]
[99,null,null,null,null,null,null,null,{"$f":"_xlfn.XLOOKUP(H102,EMDN_IVDR_Lvl5!C:C,PROPER(EMDN_IVDR_Lvl5!L:L))","v":""}]
[100,null,null,null,null,null,null,null,{"$f":"_xlfn.XLOOKUP(H103,EMDN_IVDR_Lvl5!C:C,PROPER(EMDN_IVDR_Lvl5!L:L))","v":""}]

{"sheet":"Dev_Lists","index":2,"n_rows":35,"n_cols":18,"rows_kept":35,"cut":false,"hidden":true,"merged":[]}
[null,null,null,null,null,null,null,null,null,null,"Desired conf assessment procedures"]
["Yes/No",null,"Risk class","IVR Codes","IVR Codes Full Description","IVR Codes Abbreviated","IVD Codes","IVP Codes","IVP Codes Description","IVS Codes","A","B","C","D","TD Language","TD ready for assessment?","Conformity assessment process","Article 16"]
["Yes","Rule 1","A, sterile","IVR 0101","Devices intended to determine markers of the ABO system [A  (ABO1), B (ABO2), AB (ABO3)]  ","IVR 0101: ABO system blood grouping ","IVD 4001: Bacteriology","IVP 3001","In vitro diagnostic devices which require knowledge regarding agglutination tests","IVS 1001","N/A","N/A","N/A","N/A","English","Technical documentation for all devices is ready for submission","Annex IX chapter I (PLA contains class A sterile device(s) only)","No"]
["No","Rule 2","B","IVR 0102","Devices intended to determine markers of the Rhesus system  [RH1 (D), RHW1, RH2 (C), RH3 (E), RH4 (c), RH5 (e)] ","IVR 0102: Rhesus system blood grouping ","IVD 4002: Clinical Chemistry / Biochemistry","IVP 3002","In vitro diagnostic devices which require knowledge regarding biochemistry","IVS 1002","Annex IX Chapter I","Annex IX Chapter I, II and III","Annex IX Chapter I, II and III","Annex IX Chapter I, II and III","German","Not all technical documentations are ready for submission.\nWe are interested in Confirmation letter according to (EU) 2024/1860","Annex IX chapter I and II","Yes, as distributor"]
[null,"Rule 3 - \n(a)","B, self-testing","IVR 0103","Devices intended to determine markers of the Kell system  [Kel1 (K)] ","IVR 0103: Kell system blood grouping ","IVD 4003: Detection of Transmissible Agents (No organisms/viruses)","IVP 3003","In vitro diagnostic devices which require knowledge regarding chromatography","IVS 1003","Annex XI (Production Quality Assurance incl. parts of the TD)","Annex II + III & Annex XI (Technical Documentation Assessment & Production Quality Assurance)","Annex XI (Production Quality Assurance with existing Type-examination certificate)","Annex XI (Production Quality Assurance with existing Type-examination certificate)","Other EU language (prior approval by TRLP required)","No technical documentation ready for submission.\nWe are interested in Confirmation letter according to (EU) 2024/1860","Annex XI Conformity Assessment based on Production Quality Assurance","Yes, as importer"]
[null,"Rule 3 - \n(b)","B, near-patient testing","IVR 0104","Devices intended to determine markers of the Kidd system  [JK1 (Jka), JK2 (Jkb)]  ","IVR 0104: Kidd system blood grouping ","IVD 4004: Genetics","IVP 3004","In vitro diagnostic devices which require knowledge regarding chromosomal analysis","IVS 1004",null,null,null,null,null,null,null,"Yes, as other persons"]
[null,"Rule 3 - \n(c)","C","IVR 0105","Devices intended to determine markers of the Duffy system  [FY1 (Fya), FY2 (Fyb)]  ","IVR 0105: Duffy system blood grouping ","IVD 4005: Haematology / Haemostasis (+Coagulation Disorders)","IVP 3005","In vitro diagnostic devices which require knowledge regarding coagulometry","IVS 1005"]
[null,"Rule 3 - \n(d)","C, self-testing","IVR 0106","Other devices intended to be used for blood grouping  ","IVR 0106: Other blood grouping ","IVD 4006: Histocompatibility and Immunogenetics","IVP 3006","In vitro diagnostic devices which require knowledge regarding flow cytometry","IVS 1006"]
[null,"Rule 3 - \n(e)","C, near-patient testing","IVR 0201","Devices intended to be used for tissue typing (HLA A, B, DR)  to ensure the immunological compatibility of blood, blood  components, cells, tissue or organs that are intended for  transfusion or transplantation or cell administration  ","IVR 0201: Tissue typing (HLA A, B, DR) to ensure immun. compatibility","IVD 4007: Immunohistochemistry / Histology","IVP 3007","In vitro diagnostic devices which require knowledge regarding immunoassays","IVS 1007"]
[null,"Rule 3 - \n(f)","C, companion diagnostics","IVR 0202","Other devices intended to be used for tissue typing ","IVR 0202: Other tissue typing","IVD 4008: Immunology","IVP 3008","In vitro diagnostic devices which require knowledge regarding lysis based testing","IVS 1008"]
[null,"Rule 3 - \n(g)","D","IVR 0301","Devices intended to be used in screening, diagnosis, staging or  monitoring of cancer ","IVR 0301: Cancer screening, diagnosis, staging or monitoring","IVD 4009: Molecular Biology / Diagnostics\n(in general not to be used, please clarify with TÜV)","IVP 3009","In vitro diagnostic devices which require knowledge regarding measurement of radioactivity","IVS 1009"]
[null,"Rule 3 - \n(h)","D, self-testing","IVR 0302","Other devices intended to be used for markers of cancer and  non-malignant tumours ","IVR 0302: Other cancer and non-malignant tumours","IVD 4010: Mycology","IVP 3010","In vitro diagnostic devices which require knowledge regarding microscopy","IVS 1010"]
[null,"Rule 3 - \n(i)","D, near-patient testing","IVR 0401","Devices intended to be used in screening / confirmation of  congenital / inherited disorders","IVR 0401: Congenital / inherited disorders screening / confirmation","IVD 4011: Parasitology","IVP 3011","In vitro diagnostic devices which require knowledge regarding molecular biological testing including nucleic acid assays and next generation sequencing (NGS)"]
[null,"Rule 3 - \n(j)","D, companion diagnostics","IVR 0402","Devices intended to be used to predict genetic  disease/disorder risk and prognosis  ","IVR 0402: Genetic disease/disorder risk/prognosis","IVD 4012: Virology","IVP 3012","In vitro diagnostic devices which require knowledge regarding physical chemistry including electrochemistry"]
[null,"Rule 3 - \n(k)",null,"IVR 0403","Other devices intended to be used for human genetic testing ","IVR 0403: Other human genetic testing",null,"IVP 3013","In vitro diagnostic devices which require knowledge regarding spectroscopy"]
[null,"Rule 3 - \n(l)",null,"IVR 0501","Devices intended to be used for pre-natal screening of women  in order to determine their immune status towards  transmissible agents  ","IVR 0501: Pre-natal screening to determine immune status towards transmissible agents",null,"IVP 3014","In vitro diagnostic devices which require knowledge regarding tests of cell function"]
[null,"Rule 3 - \n(m)",null,"IVR 0502","Devices intended to be used to detect the presence of, or  exposure to transmissible agents in blood, blood components,  cells, tissues or organs, or in any of their derivatives, to assess  their suitability for transfusion, transplantation or cell  administration  ","IVR 0502: Transmissible agent detection to assess suitability for transfusion/transplantation"]
[null,"Rule 4 - \n(a)",null,"IVR 0503","Devices intended to be used to detect the presence of, or  exposure to an infectious agent including sexually transmitted  agents  ","IVR 0503: Infectious agent detection including sexually transmitted"]
[null,"Rule 4 - \n(b)",null,"IVR 0504","Devices intended to be used to determine the infectious load,  to determine infective disease status or immune status and  devices used for infectious disease staging ","IVR 0504: Infectious load determination and devices used for infectious disease staging"]
[null,"Rule 5 - \n(a)",null,"IVR 0505","Devices intended to be used to grow / isolate / identify and  handle infectious agents  ","IVR 0505: Infectious agents growth/isolation/identification and handling"]
[null,"Rule 5 - \n(b)",null,"IVR 0506","Other devices intended to be used to determine markers of  infections / immune status","IVR 0506: Other markers of infections/immune status"]
[null,"Rule 5 - \n(c)",null,"IVR 0601","Devices intended to be used for screening / confirmation of  specific disorders / impairments ","IVR 0601: Specific disorders/impairments"]
[null,"Rule 6",null,"IVR 0602"," Devices intended to be used for screening, determination or  monitoring of physiological markers for a specific disease","IVR 0602: Physiological markers for a specific disease"]
[null,"Rule 7",null,"IVR 0603","Devices intended to be used for screening, confirmation /  determination, or monitoring of allergies and intolerances  ","IVR 0603: Allergies and intolerances"]
[null,"Implementation Rule 1.5",null,"IVR 0604","Other devices intended to be used for a specific disease ","IVR 0604: Other specific disease"]
[null,"Implementation Rule 1.6",null,"IVR 0605","Devices intended to be used for monitoring of levels of  medicinal products, substances or biological components ","IVR 0605: Medicinal products, substances or biological components levels"]
[null,null,null,"IVR 0606","Devices intended to be used for non-infectious disease staging ","IVR 0606: Non-infectious disease staging"]
[null,null,null,"IVR 0607","Devices intended to be used for detection of pregnancy or  fertility testing ","IVR 0607: Pregnancy or fertility testing"]
[null,null,null,"IVR 0608","Devices intended to be used for screening, determination or  monitoring of physiological markers  ","IVR 0608: Physiological markers"]
[null,null,null,"IVR 0609","Other devices intended to be used to define or monitor  physiological status and therapeutic measures  ","IVR 0609: Other physiological status and therapeutic measures"]
[null,null,null,"IVR 0701","Devices which are controls without a quantitative assigned  value","IVR 0701: Without a quantitative assigned value"]
[null,null,null,"IVR 0702","Devices which are controls without a qualitative assigned value  ","IVR 0702: Without a qualitative assigned value"]
[null,null,null,"IVR 0801","Devices referred to in point 2.5 (rule 5), under a), of Annex VIII  to Regulation (EU) 2017/746 ","IVR 0801: Devices referred to in point 2.5 (rule 5), under a), of Annex VIII to Regulation (EU) 2017/746"]
[null,null,null,"IVR 0802","Instruments intended specifically to be used for in vitro  diagnostic procedures referred to in point 2.5 (rule 5), under b),  of Annex VIII to Regulation (EU) 2017/746 ","IVR 0802: Instruments intended specifically to be used for in vitro diagnostic procedures referred to in point 2.5 (rule 5), under b), of Annex VIII to Regulation (EU) 2017/746"]
[null,null,null,"IVR 0803","Specimen receptacles referred to in point 2.5 (rule 5), under c),  of Annex VIII to Regulation (EU) 2017/746 ","IVR 0803: Specimen receptacles referred to in point 2.5 (rule 5), under c), of Annex VIII to Regulation (EU) 2017/746"]

{"sheet":"EMDN_IVDR_Lvl5","index":3,"n_rows":592,"n_cols":13,"rows_kept":592,"cut":false,"hidden":true,"merged":[]}
["ID","CATEGORY","EMDN CODE","CODE","LEVEL ","BOTTOM LEVEL YES/NO ","Level","Bottom Level","CATEGORY DESCRIPTION ITALIAN_29092021","EMDN  IT DESCRIPTION_29092021","CATEGORY DESCRIPTION_29092021","EMDN EN DESCRIPTION_29092021","EMDN EN DESCRIPTION_29092021 (non capital)"]
[4507,"W","W01010101","W01010101",5,"YES",{"$f":"C2=D2","v":true},null,"DISPOSITIVI MEDICO - DIAGNOSTICI IN VITRO","5'-NUCLEOTIDASI ","IN VITRO DIAGNOSTIC MEDICAL DEVICES ","5'-NUCLEOTIDASE",{"$f":"PROPER(L2)","v":"5'-Nucleotidase"}]
[4508,"W","W01010102","W01010102",5,"YES",true,null,"DISPOSITIVI MEDICO - DIAGNOSTICI IN VITRO","FOSFATASI ACIDA","IN VITRO DIAGNOSTIC MEDICAL DEVICES ","ACID PHOSPHATASE (CC)",{"$f":"PROPER(L3)","v":"Acid Phosphatase (Cc)"}]
[4509,"W","W01010103","W01010103",5,"YES",true,null,"DISPOSITIVI MEDICO - DIAGNOSTICI IN VITRO","ALANINA AMINOTRANSFERASI","IN VITRO DIAGNOSTIC MEDICAL DEVICES ","ALANINE AMINO-TRANSFERASE","Alanine Amino-Transferase"]
[4510,"W","W01010104","W01010104",5,"YES",true,null,"DISPOSITIVI MEDICO - DIAGNOSTICI IN VITRO","ALDOLASI","IN VITRO DIAGNOSTIC MEDICAL DEVICES ","ALDOLASE","Aldolase"]
[4511,"W","W01010105","W01010105",5,"YES",true,null,"DISPOSITIVI MEDICO - DIAGNOSTICI IN VITRO","FOSFATASI ALCALINA - TOTALE","IN VITRO DIAGNOSTIC MEDICAL DEVICES ","ALKALINE PHOSPHATASE - TOTAL","Alkaline Phosphatase - Total"]
[4512,"W","W01010106","W01010106",5,"YES",true,null,"DISPOSITIVI MEDICO - DIAGNOSTICI IN VITRO","FOSFATASI ALCALINA ISOENZIMI","IN VITRO DIAGNOSTIC MEDICAL DEVICES ","ALKALINE PHOSPHATASE ISOENZYMES (CC)","Alkaline Phosphatase Isoenzymes (Cc)"]
[4513,"W","W01010107","W01010107",5,"YES",true,null,"DISPOSITIVI MEDICO - DIAGNOSTICI IN VITRO","AMILASI - TOTALE","IN VITRO DIAGNOSTIC MEDICAL DEVICES ","AMYLASE - TOTAL","Amylase - Total"]
[4514,"W","W01010108","W01010108",5,"YES",true,null,"DISPOSITIVI MEDICO - DIAGNOSTICI IN VITRO","ISOENZIMI AMILASI","IN VITRO DIAGNOSTIC MEDICAL DEVICES ","AMYLASE ISOENZYMES","Amylase Isoenzymes"]
[4515,"W","W01010109","W01010109",5,"YES",true,null,"DISPOSITIVI MEDICO - DIAGNOSTICI IN VITRO","ANGIOTENSINA ENZIMA CONVERTITORE (ACE)","IN VITRO DIAGNOSTIC MEDICAL DEVICES ","ANGIOTENSIN CONVERTING ENZYME (CC)","Angiotensin Converting Enzyme (Cc)"]
[4516,"W","W01010110","W01010110",5,"YES",true,null,"DISPOSITIVI MEDICO - DIAGNOSTICI IN VITRO","ASPARTATO AMINOTRANSFERASI","IN VITRO DIAGNOSTIC MEDICAL DEVICES ","ASPARTATE AMINO-TRANSFERASE","Aspartate Amino-Transferase"]
[4517,"W","W01010111","W01010111",5,"YES",true,null,"DISPOSITIVI MEDICO - DIAGNOSTICI IN VITRO","COLINESTERASI","IN VITRO DIAGNOSTIC MEDICAL DEVICES ","CHOLINESTERASE","Cholinesterase"]
[4518,"W","W01010112","W01010112",5,"YES",true,null,"DISPOSITIVI MEDICO - DIAGNOSTICI IN VITRO","CHIMOTRIPSINA","IN VITRO DIAGNOSTIC MEDICAL DEVICES ","CHYMOTRYPSIN","Chymotrypsin"]
[4519,"W","W01010113","W01010113",5,"YES",true,null,"DISPOSITIVI MEDICO - DIAGNOSTICI IN VITRO","CREATINCHINASI - TOTALE","IN VITRO DIAGNOSTIC MEDICAL DEVICES ","CREATINE KINASE - TOTAL","Creatine Kinase - Total"]
[4520,"W","W01010114","W01010114",5,"YES",true,null,"DISPOSITIVI MEDICO - DIAGNOSTICI IN VITRO","CREATINCHINASI ISOENZIMA MB \"ATTIVITA'\"","IN VITRO DIAGNOSTIC MEDICAL DEVICES ","CREATINE KINASE - MB ACTIVITY (CC)","Creatine Kinase - Mb Activity (Cc)"]
[4521,"W","W01010115","W01010115",5,"YES",true,null,"DISPOSITIVI MEDICO - DIAGNOSTICI IN VITRO","CREATINCHINASI ISOENZIMI","IN VITRO DIAGNOSTIC MEDICAL DEVICES ","CREATINE KINASE ISOENZYMES","Creatine Kinase Isoenzymes"]
[4522,"W","W01010116","W01010116",5,"YES",true,null,"DISPOSITIVI MEDICO - DIAGNOSTICI IN VITRO","GAMMA GLUTAMILTRANSFERASI","IN VITRO DIAGNOSTIC MEDICAL DEVICES ","GAMMA GLUTAMYLTRANSFERASE","Gamma Glutamyltransferase"]
[4523,"W","W01010117","W01010117",5,"YES",true,null,"DISPOSITIVI MEDICO - DIAGNOSTICI IN VITRO","GLUTAMMATO DEIDROGENASI","IN VITRO DIAGNOSTIC MEDICAL DEVICES ","GLUTAMATE DEHYDROGENASE","Glutamate Dehydrogenase"]
[4524,"W","W01010118","W01010118",5,"YES",true,null,"DISPOSITIVI MEDICO - DIAGNOSTICI IN VITRO","IDROSSIBUTIRRATO DEIDROGENASI","IN VITRO DIAGNOSTIC MEDICAL DEVICES ","HYDROXYBUTYRATE DEHYDROGENASE","Hydroxybutyrate Dehydrogenase"]
[4525,"W","W01010119","W01010119",5,"YES",true,null,"DISPOSITIVI MEDICO - DIAGNOSTICI IN VITRO","LATTATO DEIDROGENASI L ( LDH - L --> P )","IN VITRO DIAGNOSTIC MEDICAL DEVICES ","LACTATE DEHYDROGENASE L  ( LDH - L --> P )","Lactate Dehydrogenase L  ( Ldh - L --> P )"]
[4526,"W","W01010120","W01010120",5,"YES",true,null,"DISPOSITIVI MEDICO - DIAGNOSTICI IN VITRO","LATTATO DEIDROGENASI P ( LDH - P --> L )","IN VITRO DIAGNOSTIC MEDICAL DEVICES ","LACTATE DEHYDROGENASE P ( LDH - P --> L )","Lactate Dehydrogenase P ( Ldh - P --> L )"]
[4527,"W","W01010121","W01010121",5,"YES",true,null,"DISPOSITIVI MEDICO - DIAGNOSTICI IN VITRO","LATTATO DEIDROGENASI ISOENZIMI","IN VITRO DIAGNOSTIC MEDICAL DEVICES ","LACTATE DEHYDROGENASE ISOENZYMES","Lactate Dehydrogenase Isoenzymes"]
[4528,"W","W01010122","W01010122",5,"YES",true,null,"DISPOSITIVI MEDICO - DIAGNOSTICI IN VITRO","LEUCINA AMINO PEPTIDASI","IN VITRO DIAGNOSTIC MEDICAL DEVICES ","LEUCINE AMINOPEPTIDASE","Leucine Aminopeptidase"]
[4529,"W","W01010123","W01010123",5,"YES",true,null,"DISPOSITIVI MEDICO - DIAGNOSTICI IN VITRO","LIPASI","IN VITRO DIAGNOSTIC MEDICAL DEVICES ","LIPASE","Lipase"]
[4530,"W","W01010124","W01010124",5,"YES",true,null,"DISPOSITIVI MEDICO - DIAGNOSTICI IN VITRO","LISOZIMA","IN VITRO DIAGNOSTIC MEDICAL DEVICES ","LYSOZYME","Lysozyme"]
[4531,"W","W01010125","W01010125",5,"YES",true,null,"DISPOSITIVI MEDICO - DIAGNOSTICI IN VITRO","MALATO DEIDROGENASI","IN VITRO DIAGNOSTIC MEDICAL DEVICES ","MALATE DEHYDROGENASE","Malate Dehydrogenase"]
[4532,"W","W01010126","W01010126",5,"YES",true,null,"DISPOSITIVI MEDICO - DIAGNOSTICI IN VITRO","N-ACETYL-ß,D-GLUCOSAMINIDASI","IN VITRO DIAGNOSTIC MEDICAL DEVICES ","N-ACETYL-B, D-GLUCOSAMINIDASE","N-Acetyl-B, D-Glucosaminidase"]
[4533,"W","W01010127","W01010127",5,"YES",true,null,"DISPOSITIVI MEDICO - DIAGNOSTICI IN VITRO","PEPSINA","IN VITRO DIAGNOSTIC MEDICAL DEVICES ","PEPSIN","Pepsin"]
[4534,"W","W01010128","W01010128",5,"YES",true,null,"DISPOSITIVI MEDICO - DIAGNOSTICI IN VITRO","FOSFOESOMERASI","IN VITRO DIAGNOSTIC MEDICAL DEVICES ","PHOSPHO HEXOSE ISOMERASE","Phospho Hexose Isomerase"]
[4535,"W","W01010129","W01010129",5,"YES",true,null,"DISPOSITIVI MEDICO - DIAGNOSTICI IN VITRO","SORBITOLO DEIDROGENASI","IN VITRO DIAGNOSTIC MEDICAL DEVICES ","SORBITOL DEHYDROGENASE","Sorbitol Dehydrogenase"]
[4536,"W","W01010130","W01010130",5,"YES",true,null,"DISPOSITIVI MEDICO - DIAGNOSTICI IN VITRO","TRIPSINA","IN VITRO DIAGNOSTIC MEDICAL DEVICES ","TRYPSIN","Trypsin"]
[4537,"W","W01010131","W01010131",5,"YES",true,null,"DISPOSITIVI MEDICO - DIAGNOSTICI IN VITRO","ESOCHINASI ADP","IN VITRO DIAGNOSTIC MEDICAL DEVICES ","HEXOKINASE ADP","Hexokinase Adp"]
[4538,"W","W01010199","W01010199",5,"YES",true,null,"DISPOSITIVI MEDICO - DIAGNOSTICI IN VITRO","ENZIMI - ALTRI","IN VITRO DIAGNOSTIC MEDICAL DEVICES ","ENZYMES - OTHER","Enzymes - Other"]
[4540,"W","W01010201","W01010201",5,"YES",true,null,"DISPOSITIVI MEDICO - DIAGNOSTICI IN VITRO","ALBUMINA","IN VITRO DIAGNOSTIC MEDICAL DEVICES ","ALBUMIN (CC)","Albumin (Cc)"]
[4541,"W","W01010202","W01010202",5,"YES",true,null,"DISPOSITIVI MEDICO - DIAGNOSTICI IN VITRO","ACIDI BILIARI","IN VITRO DIAGNOSTIC MEDICAL DEVICES ","BILE ACIDS","Bile Acids"]
[4542,"W","W01010203","W01010203",5,"YES",true,null,"DISPOSITIVI MEDICO - DIAGNOSTICI IN VITRO","BILIRUBINA","IN VITRO DIAGNOSTIC MEDICAL DEVICES ","BILIRUBIN","Bilirubin"]
[4543,"W","W01010204","W01010204",5,"YES",true,null,"DISPOSITIVI MEDICO - DIAGNOSTICI IN VITRO","UREA/AZOTO UREICO","IN VITRO DIAGNOSTIC MEDICAL DEVICES ","UREA/BLOOD UREA NITROGEN","Urea/Blood Urea Nitrogen"]
[4544,"W","W01010205","W01010205",5,"YES",true,null,"DISPOSITIVI MEDICO - DIAGNOSTICI IN VITRO","COLESTEROLO","IN VITRO DIAGNOSTIC MEDICAL DEVICES ","CHOLESTEROL","Cholesterol"]
[4545,"W","W01010206","W01010206",5,"YES",true,null,"DISPOSITIVI MEDICO - DIAGNOSTICI IN VITRO","RAME","IN VITRO DIAGNOSTIC MEDICAL DEVICES ","COPPER","Copper"]
[4546,"W","W01010207","W01010207",5,"YES",true,null,"DISPOSITIVI MEDICO - DIAGNOSTICI IN VITRO","CREATININA","IN VITRO DIAGNOSTIC MEDICAL DEVICES ","CREATININE","Creatinine"]
[4547,"W","W01010208","W01010208",5,"YES",true,null,"DISPOSITIVI MEDICO - DIAGNOSTICI IN VITRO","D-XILOSIO","IN VITRO DIAGNOSTIC MEDICAL DEVICES ","D-XYLOSE","D-Xylose"]
[4548,"W","W01010209","W01010209",5,"YES",true,null,"DISPOSITIVI MEDICO - DIAGNOSTICI IN VITRO","ACIDO DELTA-AMINOLEVULINICO","IN VITRO DIAGNOSTIC MEDICAL DEVICES ","DELTA-AMINOLAEVULINIC ACID","Delta-Aminolaevulinic Acid"]
[4549,"W","W01010210","W01010210",5,"YES",true,null,"DISPOSITIVI MEDICO - DIAGNOSTICI IN VITRO","FRUTTOSAMINA","IN VITRO DIAGNOSTIC MEDICAL DEVICES ","FRUCTOSAMINE","Fructosamine"]
[4550,"W","W01010211","W01010211",5,"YES",true,null,"DISPOSITIVI MEDICO - DIAGNOSTICI IN VITRO","FRUTTOSIO","IN VITRO DIAGNOSTIC MEDICAL DEVICES ","FRUCTOSE","Fructose"]
[4551,"W","W01010212","W01010212",5,"YES",true,null,"DISPOSITIVI MEDICO - DIAGNOSTICI IN VITRO","GALATTOSIO","IN VITRO DIAGNOSTIC MEDICAL DEVICES ","GALACTOSE","Galactose"]
[4552,"W","W01010213","W01010213",5,"YES",true,null,"DISPOSITIVI MEDICO - DIAGNOSTICI IN VITRO","GLUCOSIO","IN VITRO DIAGNOSTIC MEDICAL DEVICES ","GLUCOSE","Glucose"]
[4553,"W","W01010214","W01010214",5,"YES",true,null,"DISPOSITIVI MEDICO - DIAGNOSTICI IN VITRO","EMOGLOBINA GLICOSILATA/GLICATA","IN VITRO DIAGNOSTIC MEDICAL DEVICES ","GLYCOSYLATED/GLYCATED HAEMOGLOBIN (CC)","Glycosylated/Glycated Haemoglobin (Cc)"]
[4554,"W","W01010215","W01010215",5,"YES",true,null,"DISPOSITIVI MEDICO - DIAGNOSTICI IN VITRO","COLESTEROLO HDL (LIPOPROTEINE AD ALTA DENSITA')","IN VITRO DIAGNOSTIC MEDICAL DEVICES ","HIGH DENSITY LIPOPROTEIN CHOLESTEROL","High Density Lipoprotein Cholesterol"]
[4555,"W","W01010216","W01010216",5,"YES",true,null,"DISPOSITIVI MEDICO - DIAGNOSTICI IN VITRO","FERRO","IN VITRO DIAGNOSTIC MEDICAL DEVICES ","IRON (CC)","Iron (Cc)"]
[4556,"W","W01010217","W01010217",5,"YES",true,null,"DISPOSITIVI MEDICO - DIAGNOSTICI IN VITRO","CAPACITÀ LEGANTE DEL FERRO - TOTALE","IN VITRO DIAGNOSTIC MEDICAL DEVICES ","IRON BINDING CAPACITY - TOTAL (CC)","Iron Binding Capacity - Total (Cc)"]
[4557,"W","W01010218","W01010218",5,"YES",true,null,"DISPOSITIVI MEDICO - DIAGNOSTICI IN VITRO","LATTATO","IN VITRO DIAGNOSTIC MEDICAL DEVICES ","LACTATE","Lactate"]
[4558,"W","W01010219","W01010219",5,"YES",true,null,"DISPOSITIVI MEDICO - DIAGNOSTICI IN VITRO","LECITINA","IN VITRO DIAGNOSTIC MEDICAL DEVICES ","LECITHIN","Lecithin"]
[4559,"W","W01010220","W01010220",5,"YES",true,null,"DISPOSITIVI MEDICO - DIAGNOSTICI IN VITRO","LIPOPROTEINE, DETERMINAZIONE CHIMICA","IN VITRO DIAGNOSTIC MEDICAL DEVICES ","LIPOPROTEIN, CHEMICAL DETERMINATION/DETECTION","Lipoprotein, Chemical Determination/Detection"]
[4560,"W","W01010221","W01010221",5,"YES",true,null,"DISPOSITIVI MEDICO - DIAGNOSTICI IN VITRO","COLESTEROLO LDL (LIPOPROTEINE A BASSA DENSITA' INCLUSE SD-LDL)","IN VITRO DIAGNOSTIC MEDICAL DEVICES ","LOW DENSITY LIPOPROTEIN CHOLESTEROL INCLUDING SD-LDL","Low Density Lipoprotein Cholesterol Including Sd-Ldl"]
[4561,"W","W01010222","W01010222",5,"YES",true,null,"DISPOSITIVI MEDICO - DIAGNOSTICI IN VITRO","ACIDI GRASSI NON ESTERIFICATI","IN VITRO DIAGNOSTIC MEDICAL DEVICES ","NON ESTERIFIED FATTY ACIDS","Non Esterified Fatty Acids"]
[4562,"W","W01010223","W01010223",5,"YES",true,null,"DISPOSITIVI MEDICO - DIAGNOSTICI IN VITRO","OSSALATI","IN VITRO DIAGNOSTIC MEDICAL DEVICES ","OXALATE","Oxalate"]
[4563,"W","W01010224","W01010224",5,"YES",true,null,"DISPOSITIVI MEDICO - DIAGNOSTICI IN VITRO","FOSFOLIPIDI","IN VITRO DIAGNOSTIC MEDICAL DEVICES ","PHOSPHOLIPIDS","Phospholipids"]
[4564,"W","W01010225","W01010225",5,"YES",true,null,"DISPOSITIVI MEDICO - DIAGNOSTICI IN VITRO","PORFOBILINOGENO","IN VITRO DIAGNOSTIC MEDICAL DEVICES ","PORPHOBILINOGEN","Porphobilinogen"]
[4565,"W","W01010226","W01010226",5,"YES",true,null,"DISPOSITIVI MEDICO - DIAGNOSTICI IN VITRO","PIRUVATO","IN VITRO DIAGNOSTIC MEDICAL DEVICES ","PYRUVATE","Pyruvate"]
[4566,"W","W01010227","W01010227",5,"YES",true,null,"DISPOSITIVI MEDICO - DIAGNOSTICI IN VITRO","TIMOLO","IN VITRO DIAGNOSTIC MEDICAL DEVICES ","THYMOL","Thymol"]
[4567,"W","W01010228","W01010228",5,"YES",true,null,"DISPOSITIVI MEDICO - DIAGNOSTICI IN VITRO","LIPIDI TOTALI","IN VITRO DIAGNOSTIC MEDICAL DEVICES ","TOTAL LIPIDS","Total Lipids"]
[4568,"W","W01010229","W01010229",5,"YES",true,null,"DISPOSITIVI MEDICO - DIAGNOSTICI IN VITRO","PORFIRINA TOTALE","IN VITRO DIAGNOSTIC MEDICAL DEVICES ","TOTAL PORPHYRINE","Total Porphyrine"]
[4569,"W","W01010230","W01010230",5,"YES",true,null,"DISPOSITIVI MEDICO - DIAGNOSTICI IN VITRO","PROTEINE TOTALI","IN VITRO DIAGNOSTIC MEDICAL DEVICES ","TOTAL PROTEIN","Total Protein"]
[4570,"W","W01010231","W01010231",5,"YES",true,null,"DISPOSITIVI MEDICO - DIAGNOSTICI IN VITRO","TRIGLICERIDI","IN VITRO DIAGNOSTIC MEDICAL DEVICES ","TRIGLYCERIDES","Triglycerides"]
[4571,"W","W01010232","W01010232",5,"YES",true,null,"DISPOSITIVI MEDICO - DIAGNOSTICI IN VITRO","ACIDO URICO","IN VITRO DIAGNOSTIC MEDICAL DEVICES ","URIC ACID","Uric Acid"]
[4572,"W","W01010233","W01010233",5,"YES",{"$f":"C66=D66","v":true},null,"DISPOSITIVI MEDICO - DIAGNOSTICI IN VITRO","ZINCO","IN VITRO DIAGNOSTIC MEDICAL DEVICES ","ZINC","Zinc"]
[4573,"W","W01010234","W01010234",5,"YES",true,null,"DISPOSITIVI MEDICO - DIAGNOSTICI IN VITRO","ELETTROFORESI LIPOPROTEICA","IN VITRO DIAGNOSTIC MEDICAL DEVICES ","LIPOPROTEIN ELECTROPORESIS",{"$f":"PROPER(L67)","v":"Lipoprotein Electroporesis"}]
[4574,"W","W01010235","W01010235",5,"YES",true,null,"DISPOSITIVI MEDICO - DIAGNOSTICI IN VITRO","ELETTROFORESI PROTEICA","IN VITRO DIAGNOSTIC MEDICAL DEVICES ","PROTEIN ELECTROPORESIS","Protein Electroporesis"]
[4575,"W","W01010236","W01010236",5,"YES",true,null,"DISPOSITIVI MEDICO - DIAGNOSTICI IN VITRO","FENILCHETONURIA","IN VITRO DIAGNOSTIC MEDICAL DEVICES ","PHENYLKETONURIA","Phenylketonuria"]
[4576,"W","W01010299","W01010299",5,"YES",true,null,"DISPOSITIVI MEDICO - DIAGNOSTICI IN VITRO","SUBSTRATI - ALTRI","IN VITRO DIAGNOSTIC MEDICAL DEVICES ","SUBSTRATES - OTHER","Substrates - Other"]
[4578,"W","W01010301","W01010301",5,"YES",true,null,"DISPOSITIVI MEDICO - DIAGNOSTICI IN VITRO","AMMONIO","IN VITRO DIAGNOSTIC MEDICAL DEVICES ","AMMONIA","Ammonia"]
[4579,"W","W01010302","W01010302",5,"YES",true,null,"DISPOSITIVI MEDICO - DIAGNOSTICI IN VITRO","BICARBONATO","IN VITRO DIAGNOSTIC MEDICAL DEVICES ","BICARBONATE","Bicarbonate"]
[4580,"W","W01010303","W01010303",5,"YES",true,null,"DISPOSITIVI MEDICO - DIAGNOSTICI IN VITRO","CALCIO","IN VITRO DIAGNOSTIC MEDICAL DEVICES ","CALCIUM","Calcium"]
[4581,"W","W01010304","W01010304",5,"YES",true,null,"DISPOSITIVI MEDICO - DIAGNOSTICI IN VITRO","CLORURO","IN VITRO DIAGNOSTIC MEDICAL DEVICES ","CHLORIDE","Chloride"]
[4582,"W","W01010305","W01010305",5,"YES",true,null,"DISPOSITIVI MEDICO - DIAGNOSTICI IN VITRO","LITIO","IN VITRO DIAGNOSTIC MEDICAL DEVICES ","LITHIUM","Lithium"]
[4583,"W","W01010306","W01010306",5,"YES",true,null,"DISPOSITIVI MEDICO - DIAGNOSTICI IN VITRO","MAGNESIO","IN VITRO DIAGNOSTIC MEDICAL DEVICES ","MAGNESIUM","Magnesium"]
[4584,"W","W01010307","W01010307",5,"YES",true,null,"DISPOSITIVI MEDICO - DIAGNOSTICI IN VITRO","FOSFATO INORGANICO / FOSFORO","IN VITRO DIAGNOSTIC MEDICAL DEVICES ","PHOSPHATE INORGANIC / PHOSPHORUS","Phosphate Inorganic / Phosphorus"]
[4585,"W","W01010308","W01010308",5,"YES",true,null,"DISPOSITIVI MEDICO - DIAGNOSTICI IN VITRO","POTASSIO","IN VITRO DIAGNOSTIC MEDICAL DEVICES ","POTASSIUM","Potassium"]
[4586,"W","W01010309","W01010309",5,"YES",true,null,"DISPOSITIVI MEDICO - DIAGNOSTICI IN VITRO","SODIO","IN VITRO DIAGNOSTIC MEDICAL DEVICES ","SODIUM","Sodium"]
[4587,"W","W01010399","W01010399",5,"YES",true,null,"DISPOSITIVI MEDICO - DIAGNOSTICI IN VITRO","ELETTROLITI (REAGENTI) - ALTRI","IN VITRO DIAGNOSTIC MEDICAL DEVICES ","ELECTROLYTES - OTHER","Electrolytes - Other"]
[4589,"W","W01010401","W01010401",5,"YES",true,null,"DISPOSITIVI MEDICO - DIAGNOSTICI IN VITRO","SOLI ENZIMI MULTIPLI - REAGENTI DI CHIMICA CLINICA","IN VITRO DIAGNOSTIC MEDICAL DEVICES ","MULTIPLE ENZYMES ONLY - CLIN. CHEM LAB REAGENTS.","Multiple Enzymes Only - Clin. Chem Lab Reagents."]
[4590,"W","W01010402","W01010402",5,"YES",true,null,"DISPOSITIVI MEDICO - DIAGNOSTICI IN VITRO","SOLI SUBSTRATI MULTIPLI - REAGENTI DI CHIMICA CLINICA","IN VITRO DIAGNOSTIC MEDICAL DEVICES ","MULTIPLE SUBSTRATES ONLY - CLIN. CHEM LAB R.","Multiple Substrates Only - Clin. Chem Lab R."]
[4591,"W","W01010403","W01010403",5,"YES",true,null,"DISPOSITIVI MEDICO - DIAGNOSTICI IN VITRO","SOLI ELETTROLITI MULTIPLI - REAGENTI DI CHIMICA CLINICA","IN VITRO DIAGNOSTIC MEDICAL DEVICES ","MULTIPLE ELECTROLYTES ONLY - CLIN. CHEM LAB R.","Multiple Electrolytes Only - Clin. Chem Lab R."]
[4592,"W","W01010404","W01010404",5,"YES",true,null,"DISPOSITIVI MEDICO - DIAGNOSTICI IN VITRO","PARAMETRI MULTIPLI (MISTI) - REAGENTI DI CHIMICA CLINICA","IN VITRO DIAGNOSTIC MEDICAL DEVICES ","MULTIPLE PARAMETERS (MIX OF ALL) - CLIN. CHEM LAB R.","Multiple Parameters (Mix Of All) - Clin. Chem Lab R."]
[4593,"W","W01010499","W01010499",5,"YES",true,null,"DISPOSITIVI MEDICO - DIAGNOSTICI IN VITRO","REAGENTI MULTIPLI DI CHIMICA CLINICA - ALTRI","IN VITRO DIAGNOSTIC MEDICAL DEVICES ","MULTIPLE CLIN. CHEM LAB REAGENTS - OTHER","Multiple Clin. Chem Lab Reagents - Other"]
[4595,"W","W01010501","W01010501",5,"NO",true,null,"DISPOSITIVI MEDICO - DIAGNOSTICI IN VITRO","CONTROLLI MULTICOMPONENTI  (CHIMICA CLINICA)","IN VITRO DIAGNOSTIC MEDICAL DEVICES ","MULTICOMPONENT CONTROLS (CLINICAL CHEMISTRY)","Multicomponent Controls (Clinical Chemistry)"]
[4599,"W","W01010502","W01010502",5,"NO",true,null,"DISPOSITIVI MEDICO - DIAGNOSTICI IN VITRO","CONTROLLI SPECIFICI (CHIMICA CLINICA)","IN VITRO DIAGNOSTIC MEDICAL DEVICES ","SPECIFIC CONTROLS (CLINICAL CHEMISTRY)","Specific Controls (Clinical Chemistry)"]
[4614,"W","W01010503","W01010503",5,"NO",true,null,"DISPOSITIVI MEDICO - DIAGNOSTICI IN VITRO","CALIBRATORI E STANDARDS (CHIMICA CLINICA)","IN VITRO DIAGNOSTIC MEDICAL DEVICES ","CALIBRATORS AND STANDARDS (CLINICAL CHEMISTRY)","Calibrators And Standards (Clinical Chemistry)"]
[4620,"W","W01010601","W01010601",5,"NO",true,null,"DISPOSITIVI MEDICO - DIAGNOSTICI IN VITRO","STRISCE PER ANALISI DEL SANGUE (CC) - TEST RAPIDI E \"POINT OF CARE\"","IN VITRO DIAGNOSTIC MEDICAL DEVICES ","BLOOD TEST STRIPS (CC) - RT & POC","Blood Test Strips (Cc) - Rt & Poc"]
[4636,"W","W01010602","W01010602",5,"NO",true,null,"DISPOSITIVI MEDICO - DIAGNOSTICI IN VITRO","ANALISI URINE - TEST RAPIDI E \"POINT OF CARE\"","IN VITRO DIAGNOSTIC MEDICAL DEVICES ","URINE TESTING (CC) - RT & POC","Urine Testing (Cc) - Rt & Poc"]
[4647,"W","W01010603","W01010603",5,"NO",true,null,"DISPOSITIVI MEDICO - DIAGNOSTICI IN VITRO","ANALISI DELLE FECI - TEST RAPIDI E \"POINT OF CARE\"","IN VITRO DIAGNOSTIC MEDICAL DEVICES ","FAECES TESTS (CC) - RT & POC","Faeces Tests (Cc) - Rt & Poc"]
[4652,"W","W01010604","W01010604",5,"NO",true,null,"DISPOSITIVI MEDICO - DIAGNOSTICI IN VITRO","TEST MULTIPARAMETRICI POC","IN VITRO DIAGNOSTIC MEDICAL DEVICES ","MULTIPLE PARAMETERS POC","Multiple Parameters Poc"]
[4658,"W","W01010606","W01010606",5,"NO",true,null,"DISPOSITIVI MEDICO - DIAGNOSTICI IN VITRO","ELETTRODI O CASSETTE PER EMOGASANALISI INCLUSI ELETTROLITI E METABOLITI - \"POINT OF CARE\"","IN VITRO DIAGNOSTIC MEDICAL DEVICES ","ELECTRODES OR CASSETTES FOR BLOOD GAS ANALYSIS INCL. ELECTROLYTES / METABOLITES - POC","Electrodes Or Cassettes For Blood Gas Analysis Incl. Electrolytes / Metabolites - Poc"]
[4670,"W","W01010699","W01010699",5,"YES",true,null,"DISPOSITIVI MEDICO - DIAGNOSTICI IN VITRO","CHIMICA CLINICA - TEST RAPIDI E \"POINT OF CARE\" - ALTRI","IN VITRO DIAGNOSTIC MEDICAL DEVICES ","CLIN. CHEM. RT & POC - OTHER","Clin. Chem. Rt & Poc - Other"]
[4672,"W","W01010701","W01010701",5,"NO",true,null,"DISPOSITIVI MEDICO - DIAGNOSTICI IN VITRO","ELETTRODI PER ELETTROLITI","IN VITRO DIAGNOSTIC MEDICAL DEVICES ","ELECTROLYTE ELECTRODES","Electrolyte Electrodes"]
[4682,"W","W01010702","W01010702",5,"NO",true,null,"DISPOSITIVI MEDICO - DIAGNOSTICI IN VITRO","ELETTRODI PER SUBSTRATI E BIOSENSORI","IN VITRO DIAGNOSTIC MEDICAL DEVICES ","SUBSTRATE ELECTRODES / BIOSENSORS","Substrate Electrodes / Biosensors"]
[4690,"W","W01010703","W01010703",5,"NO",true,null,"DISPOSITIVI MEDICO - DIAGNOSTICI IN VITRO","MATERIALE E SOLUZIONI TAMPONE DI RIFERIMENTO (ELETTROLITI)","IN VITRO DIAGNOSTIC MEDICAL DEVICES ","REFERENCE MATERIAL AND BUFFERS (ELECTROLYTES)","Reference Material And Buffers (Electrolytes)"]
[4697,"W","W01010801","W01010801",5,"YES",true,null,"DISPOSITIVI MEDICO - DIAGNOSTICI IN VITRO","ENZIMI MULTIPLI - ELETTRODI E BIOSENSORI","IN VITRO DIAGNOSTIC MEDICAL DEVICES ","MULTIPLE ENZYMES ONLY - ELECTRODES/BIOSENSORS","Multiple Enzymes Only - Electrodes/Biosensors"]
[4698,"W","W01010802","W01010802",5,"YES",true,null,"DISPOSITIVI MEDICO - DIAGNOSTICI IN VITRO","SUBSTRATI MULTIPLI - ELETTRODI E BIOSENSORI","IN VITRO DIAGNOSTIC MEDICAL DEVICES ","MULTIPLE SUBSTRATES ONLY - ELECTRODES/BIOSENSORS","Multiple Substrates Only - Electrodes/Biosensors"]
[4699,"W","W01010803","W01010803",5,"YES",true,null,"DISPOSITIVI MEDICO - DIAGNOSTICI IN VITRO","ELETTROLITI MULTIPLI - ELETTRODI E BIOSENSORI","IN VITRO DIAGNOSTIC MEDICAL DEVICES ","MULTIPLE ELECTROLYTES ONLY - ELECTRODES/BIOSENSORS","Multiple Electrolytes Only - Electrodes/Biosensors"]
[4700,"W","W01010804","W01010804",5,"YES",true,null,"DISPOSITIVI MEDICO - DIAGNOSTICI IN VITRO","GAS EMATICI MULTIPLI - ELETTRODI E BIOSENSORI","IN VITRO DIAGNOSTIC MEDICAL DEVICES ","MULTIPLE BLOOD GAS ONLY - ELECTRODES/BIOSENSORS","Multiple Blood Gas Only - Electrodes/Biosensors"]
[4701,"W","W01010805","W01010805",5,"YES",true,null,"DISPOSITIVI MEDICO - DIAGNOSTICI IN VITRO","PARAMETRI MULTIPLI (MISTI) - ELETTRODI E BIOSENSORI","IN VITRO DIAGNOSTIC MEDICAL DEVICES ","MULTIPLE PARAMETERS (MIX OF ALL) - ELECTRODES/BIOSENSORS","Multiple Parameters (Mix Of All) - Electrodes/Biosensors"]
[4702,"W","W01010899","W01010899",5,"YES",true,null,"DISPOSITIVI MEDICO - DIAGNOSTICI IN VITRO","PARAMETRI MULTIPLI - ELETTRODI E BIOSENSORI - ALTRI","IN VITRO DIAGNOSTIC MEDICAL DEVICES ","MULTIPLE PARAMETER - ELECTRODES/BIOSENSORS - OTHER","Multiple Parameter - Electrodes/Biosensors - Other"]
[4704,"W","W01010901","W01010901",5,"YES",true,null,"DISPOSITIVI MEDICO - DIAGNOSTICI IN VITRO","STRISCE/CASSETTE PER TEST DELLE URINE MULTICOMPONENTI- AUTOMATIZZATI","IN VITRO DIAGNOSTIC MEDICAL DEVICES ","URINE MULTI-CONSTITUENT TEST STRIPS / CASSETTES (AUTOMATED)","Urine Multi-Constituent Test Strips / Cassettes (Automated)"]
[4705,"W","W01010902","W01010902",5,"YES",true,null,"DISPOSITIVI MEDICO - DIAGNOSTICI IN VITRO","KIT PER TEST DEL SEDIMENTO URINARIO AUTOMATIZZATI","IN VITRO DIAGNOSTIC MEDICAL DEVICES ","URINE SEDIMENT TEST KIT (AUTOMATED)","Urine Sediment Test Kit (Automated)"]
[4706,"W","W01010999","W01010999",5,"YES",true,null,"DISPOSITIVI MEDICO - DIAGNOSTICI IN VITRO","PARAMETRI MULTIPLI - TEST DELLE URINE - ALTRI","IN VITRO DIAGNOSTIC MEDICAL DEVICES ","MULTIPLE PARAMETERS URINE TESTING - OTHER","Multiple Parameters Urine Testing - Other"]
[4708,"W","W01019001","W01019001",5,"YES",true,null,"DISPOSITIVI MEDICO - DIAGNOSTICI IN VITRO","TAMPONI (NON CLASSIFICABILI), REAGENTI ADDIZIONALI, ECC (CC)","IN VITRO DIAGNOSTIC MEDICAL DEVICES ","BUFFERS (UNASSIGNABLE), SUPPLEM. REAGENTS, ETC (CC)","Buffers (Unassignable), Supplem. Reagents, Etc (Cc)"]
[4709,"W","W01019002","W01019002",5,"YES",true,null,"DISPOSITIVI MEDICO - DIAGNOSTICI IN VITRO","MEZZI PER ELETTROFORESI (NON CLASSIFICABILI)","IN VITRO DIAGNOSTIC MEDICAL DEVICES ","ELECTROPHORESIS MEDIA (UNASSIGNABLE)","Electrophoresis Media (Unassignable)"]
[4710,"W","W01019099","W01019099",5,"YES",true,null,"DISPOSITIVI MEDICO - DIAGNOSTICI IN VITRO","REAGENTI PER CHIMICA CLINICA - ALTRI","IN VITRO DIAGNOSTIC MEDICAL DEVICES ","CLINICAL CHEMISTRY REAGENTS - OTHER","Clinical Chemistry Reagents - Other"]
[4713,"W","W01020101","W01020101",5,"NO",true,null,"DISPOSITIVI MEDICO - DIAGNOSTICI IN VITRO","IMMUNOGLOBULINE (ECCETTO IGE)","IN VITRO DIAGNOSTIC MEDICAL DEVICES ","IMMUNOGLOBULINS (EXCEPT IGE)","Immunoglobulins (Except Ige)"]
[4729,"W","W01020102","W01020102",5,"NO",true,null,"DISPOSITIVI MEDICO - DIAGNOSTICI IN VITRO","COMPONENTI DEL COMPLEMENTO","IN VITRO DIAGNOSTIC MEDICAL DEVICES ","COMPLEMENT COMPONENTS","Complement Components"]
[4739,"W","W01020103","W01020103",5,"NO",true,null,"DISPOSITIVI MEDICO - DIAGNOSTICI IN VITRO","PROTEINE DI TRASPORTO","IN VITRO DIAGNOSTIC MEDICAL DEVICES ","TRANSPORT PROTEINS","Transport Proteins"]
[4750,"W","W01020104","W01020104",5,"NO",true,null,"DISPOSITIVI MEDICO - DIAGNOSTICI IN VITRO","LIPOPROTEINE","IN VITRO DIAGNOSTIC MEDICAL DEVICES ","LIPOPROTEINS","Lipoproteins"]
[4757,"W","W01020190","W01020190",5,"NO",true,null,"DISPOSITIVI MEDICO - DIAGNOSTICI IN VITRO","PROTEINE SPECIFICHE - VARIE","IN VITRO DIAGNOSTIC MEDICAL DEVICES ","OTHER SPECIFIC PROTEINS","Other Specific Proteins"]
[4777,"W","W01020201","W01020201",5,"YES",true,null,"DISPOSITIVI MEDICO - DIAGNOSTICI IN VITRO","IMMUNOGLOBULINE E - TOTALI","IN VITRO DIAGNOSTIC MEDICAL DEVICES ","IMMUNOGLOBULIN E - TOTAL","Immunoglobulin E - Total"]
[4778,"W","W01020202","W01020202",5,"YES",true,null,"DISPOSITIVI MEDICO - DIAGNOSTICI IN VITRO","IMMUNOGLOBULINE E - SPECIFICHE, MONOTEST/MONORISULTATO","IN VITRO DIAGNOSTIC MEDICAL DEVICES ","IMMUNOGLOBULIN E - SPECIFIC, MONOTEST/MONORESULT","Immunoglobulin E - Specific, Monotest/Monoresult"]
[4779,"W","W01020203","W01020203",5,"YES",true,null,"DISPOSITIVI MEDICO - DIAGNOSTICI IN VITRO","IMMUNOGLOBULINE E - MONOTEST/MONORISULTATO-AG MULTIPLI","IN VITRO DIAGNOSTIC MEDICAL DEVICES ","IMMUNOGLOBULIN E - MONOTEST/MONORESULT - MULTI AG","Immunoglobulin E - Monotest/Monoresult - Multi Ag"]
[4780,"W","W01020204","W01020204",5,"YES",true,null,"DISPOSITIVI MEDICO - DIAGNOSTICI IN VITRO","IMMUNOGLOBULINE E - MONOTEST/RISULTATO MULTIPLO-AG MULTIPLI","IN VITRO DIAGNOSTIC MEDICAL DEVICES ","IMMUNOGLOBULIN E - MONOTEST/PLURIRESULT-MULTI AG","Immunoglobulin E - Monotest/Pluriresult-Multi Ag"]
[4781,"W","W01020205","W01020205",5,"YES",true,null,"DISPOSITIVI MEDICO - DIAGNOSTICI IN VITRO","IMMUNOGLOBULINE E - SCREENNING","IN VITRO DIAGNOSTIC MEDICAL DEVICES ","IMMUNOGLOBULIN E - SCREEN","Immunoglobulin E - Screen"]
[4782,"W","W01020206","W01020206",5,"YES",true,null,"DISPOSITIVI MEDICO - DIAGNOSTICI IN VITRO","TEST DI STIMOLAZIONE CON LEUCOTRIENE","IN VITRO DIAGNOSTIC MEDICAL DEVICES ","LEUKOTRIENE STIMULATION TEST","Leukotriene Stimulation Test"]
[4783,"W","W01020207","W01020207",5,"YES",true,null,"DISPOSITIVI MEDICO - DIAGNOSTICI IN VITRO","IGA ALLERGENE SPECIFICHE","IN VITRO DIAGNOSTIC MEDICAL DEVICES ","ALLERGENE SPECIFIC IGA","Allergene Specific Iga"]
[4784,"W","W01020208","W01020208",5,"YES",true,null,"DISPOSITIVI MEDICO - DIAGNOSTICI IN VITRO","IGG ALLERGENE SPECIFICHE","IN VITRO DIAGNOSTIC MEDICAL DEVICES ","ALLERGENE SPECIFIC IGG","Allergene Specific Igg"]
[4785,"W","W01020209","W01020209",5,"YES",true,null,"DISPOSITIVI MEDICO - DIAGNOSTICI IN VITRO","ISTAMINA","IN VITRO DIAGNOSTIC MEDICAL DEVICES ","HISTAMINE","Histamine"]
[4786,"W","W01020299","W01020299",5,"YES",true,null,"DISPOSITIVI MEDICO - DIAGNOSTICI IN VITRO","TEST ALLERGOLOGICI - ALTRI","IN VITRO DIAGNOSTIC MEDICAL DEVICES ","ALLERGY TESTS - OTHER","Allergy Tests - Other"]
[4788,"W","W01020301","W01020301",5,"NO",true,null,"DISPOSITIVI MEDICO - DIAGNOSTICI IN VITRO","ANTIGENI TUMORALI","IN VITRO DIAGNOSTIC MEDICAL DEVICES ","CANCER ANTIGENS","Cancer Antigens"]
[4817,"W","W01020302","W01020302",5,"NO",true,null,"DISPOSITIVI MEDICO - DIAGNOSTICI IN VITRO","TEST DEI RECETTORI","IN VITRO DIAGNOSTIC MEDICAL DEVICES ","RECEPTOR ASSAYS","Receptor Assays"]
[4821,"W","W01020303","W01020303",5,"NO",true,null,"DISPOSITIVI MEDICO - DIAGNOSTICI IN VITRO","ONCOPROTEINE","IN VITRO DIAGNOSTIC MEDICAL DEVICES ","ONCOPROTEINS","Oncoproteins"]
[4825,"W","W01020390","W01020390",5,"NO",true,null,"DISPOSITIVI MEDICO - DIAGNOSTICI IN VITRO","MARCATORI TUMORALI - VARI","IN VITRO DIAGNOSTIC MEDICAL DEVICES ","OTHER TUMOUR MARKERS","Other Tumour Markers"]
[4847,"W","W01020401","W01020401",5,"YES",true,null,"DISPOSITIVI MEDICO - DIAGNOSTICI IN VITRO","TRIIODIOTIRONINA LIBERA (FT3)","IN VITRO DIAGNOSTIC MEDICAL DEVICES ","FREE TRIIODOTHYRONINE","Free Triiodothyronine"]
[4848,"W","W01020402","W01020402",5,"YES",{"$f":"C130=D130","v":true},null,"DISPOSITIVI MEDICO - DIAGNOSTICI IN VITRO","TIROXINA LIBERA (FT4)","IN VITRO DIAGNOSTIC MEDICAL DEVICES ","FREE THYROXINE","Free Thyroxine"]
[4849,"W","W01020403","W01020403",5,"YES",true,null,"DISPOSITIVI MEDICO - DIAGNOSTICI IN VITRO","ORMONE TIREOSTIMOLANTE NEONATALE","IN VITRO DIAGNOSTIC MEDICAL DEVICES ","NEONATAL THYROID STIMULATING HORMONE",{"$f":"PROPER(L131)","v":"Neonatal Thyroid Stimulating Hormone"}]
[4850,"W","W01020404","W01020404",5,"YES",true,null,"DISPOSITIVI MEDICO - DIAGNOSTICI IN VITRO","TRIIODIOTIRONINA INVERSA","IN VITRO DIAGNOSTIC MEDICAL DEVICES ","REVERSE TRIIODOTHYRONINE","Reverse Triiodothyronine"]
[4851,"W","W01020405","W01020405",5,"YES",true,null,"DISPOSITIVI MEDICO - DIAGNOSTICI IN VITRO","TRIIODOTIRONINA (T3)","IN VITRO DIAGNOSTIC MEDICAL DEVICES ","TRIIODOTHYRONINE","Triiodothyronine"]
[4852,"W","W01020406","W01020406",5,"YES",true,null,"DISPOSITIVI MEDICO - DIAGNOSTICI IN VITRO","T- UPTAKE","IN VITRO DIAGNOSTIC MEDICAL DEVICES ","T- UPTAKE","T- Uptake"]
[4853,"W","W01020407","W01020407",5,"YES",true,null,"DISPOSITIVI MEDICO - DIAGNOSTICI IN VITRO","TIROXINA (T4)","IN VITRO DIAGNOSTIC MEDICAL DEVICES ","THYROXINE","Thyroxine"]
[4854,"W","W01020408","W01020408",5,"YES",true,null,"DISPOSITIVI MEDICO - DIAGNOSTICI IN VITRO","TIREOGLOBULINA (HTG)","IN VITRO DIAGNOSTIC MEDICAL DEVICES ","THYROGLOBULIN","Thyroglobulin"]
[4855,"W","W01020409","W01020409",5,"YES",true,null,"DISPOSITIVI MEDICO - DIAGNOSTICI IN VITRO","GLOBULINA LEGANTE GLI ORMONI TIROIDEI (TBG)","IN VITRO DIAGNOSTIC MEDICAL DEVICES ","THYROID BINDING GLOBULIN","Thyroid Binding Globulin"]
[4856,"W","W01020410","W01020410",5,"YES",true,null,"DISPOSITIVI MEDICO - DIAGNOSTICI IN VITRO","ORMONE TIREOSTIMOLANTE","IN VITRO DIAGNOSTIC MEDICAL DEVICES ","THYROID STIMULATING HORMONE","Thyroid Stimulating Hormone"]
[4857,"W","W01020411","W01020411",5,"YES",true,null,"DISPOSITIVI MEDICO - DIAGNOSTICI IN VITRO","TIROXINA NEONATALE","IN VITRO DIAGNOSTIC MEDICAL DEVICES ","NEONATAL THYROXINE","Neonatal Thyroxine"]
[4858,"W","W01020499","W01020499",5,"YES",true,null,"DISPOSITIVI MEDICO - DIAGNOSTICI IN VITRO","ORMONI FUNZIONALITA' TIROIDEA - ALTRI","IN VITRO DIAGNOSTIC MEDICAL DEVICES ","THYROID HORMONES - OTHER","Thyroid Hormones - Other"]
[4860,"W","W01020501","W01020501",5,"NO",true,null,"DISPOSITIVI MEDICO - DIAGNOSTICI IN VITRO","ORMONI FUNZIONALI FERTILITÀ / PROTEINE","IN VITRO DIAGNOSTIC MEDICAL DEVICES ","FERTILITY FUNCTION HORMONES / PROTEINS","Fertility Function Hormones / Proteins"]
[4877,"W","W01020502","W01020502",5,"NO",true,null,"DISPOSITIVI MEDICO - DIAGNOSTICI IN VITRO","ORMONI TEST GRAVIDANZA / PROTEINE","IN VITRO DIAGNOSTIC MEDICAL DEVICES ","PREGNANCY TESTING HORMONES / PROTEINS","Pregnancy Testing Hormones / Proteins"]
[4895,"W","W01020601","W01020601",5,"NO",true,null,"DISPOSITIVI MEDICO - DIAGNOSTICI IN VITRO","ACCERTAMENTO DEL DIABETE (ORMONI)","IN VITRO DIAGNOSTIC MEDICAL DEVICES ","DIABETES ASSAYS (HORMONES)","Diabetes Assays (Hormones)"]
[4906,"W","W01020602","W01020602",5,"NO",true,null,"DISPOSITIVI MEDICO - DIAGNOSTICI IN VITRO","TEST DEL METABOLISMO RENALE","IN VITRO DIAGNOSTIC MEDICAL DEVICES ","RENAL METABOLISM ASSAYS","Renal Metabolism Assays"]
[4916,"W","W01020603","W01020603",5,"NO",true,null,"DISPOSITIVI MEDICO - DIAGNOSTICI IN VITRO","TEST METABOLISMO OSSEO E MINERALE","IN VITRO DIAGNOSTIC MEDICAL DEVICES ","BONE AND MINERAL METABOLISM ASSAYS","Bone And Mineral Metabolism Assays"]
[4936,"W","W01020604","W01020604",5,"NO",true,null,"DISPOSITIVI MEDICO - DIAGNOSTICI IN VITRO","PEPTIDI ED ORMONI ENDOCRINI","IN VITRO DIAGNOSTIC MEDICAL DEVICES ","ENDOCRINE HORMONES AND PEPTIDES","Endocrine Hormones And Peptides"]
[4946,"W","W01020605","W01020605",5,"NO",true,null,"DISPOSITIVI MEDICO - DIAGNOSTICI IN VITRO","TEST FUNZIONALITÀ NEUROENDOCRINA","IN VITRO DIAGNOSTIC MEDICAL DEVICES ","NEUROENDOCRINE FUNCTION ASSAYS","Neuroendocrine Function Assays"]
[4957,"W","W01020606","W01020606",5,"NO",true,null,"DISPOSITIVI MEDICO - DIAGNOSTICI IN VITRO","ORMONI MULTIPLI - INDIVIDUALI E SPECIFICI","IN VITRO DIAGNOSTIC MEDICAL DEVICES ","MULTIPLE HORMONES - INDIVIDUAL AND SPECIFIC","Multiple Hormones - Individual And Specific"]
[4960,"W","W01020690","W01020690",5,"NO",true,null,"DISPOSITIVI MEDICO - DIAGNOSTICI IN VITRO","ORMONI INDIVIDUALI E SPECIFICI - VARI","IN VITRO DIAGNOSTIC MEDICAL DEVICES ","VARIOUS INDIVIDUAL AND SPECIFIC HORMONES","Various Individual And Specific Hormones"]
[4979,"W","W01020701","W01020701",5,"NO",true,null,"DISPOSITIVI MEDICO - DIAGNOSTICI IN VITRO","ANEMIA","IN VITRO DIAGNOSTIC MEDICAL DEVICES ","ANEMIA","Anemia"]
[4988,"W","W01020702","W01020702",5,"NO",true,null,"DISPOSITIVI MEDICO - DIAGNOSTICI IN VITRO","VITAMINE","IN VITRO DIAGNOSTIC MEDICAL DEVICES ","VITAMINES","Vitamines"]
[4996,"W","W01020703","W01020703",5,"NO",true,null,"DISPOSITIVI MEDICO - DIAGNOSTICI IN VITRO","TEST MULTIPLI DELLE VITAMINE CORRELATE ALL'ANEMIA","IN VITRO DIAGNOSTIC MEDICAL DEVICES ","MULTIPLE - ANEMIA RELATED / VITAMIN TESTS","Multiple - Anemia Related / Vitamin Tests"]
[5000,"W","W01020801","W01020801",5,"NO",true,null,"DISPOSITIVI MEDICO - DIAGNOSTICI IN VITRO","MONITORAGGIO FARMACI CARDIOVASCOLARI","IN VITRO DIAGNOSTIC MEDICAL DEVICES ","CARDIOVASCULAR TDM","Cardiovascular Tdm"]
[5011,"W","W01020802","W01020802",5,"NO",true,null,"DISPOSITIVI MEDICO - DIAGNOSTICI IN VITRO","MONITORAGGIO FARMACI SISTEMA NERVOSO CENTRALE","IN VITRO DIAGNOSTIC MEDICAL DEVICES ","CENTRAL NERVOUS SYSTEMS TDM","Central Nervous Systems Tdm"]
[5028,"W","W01020803","W01020803",5,"NO",true,null,"DISPOSITIVI MEDICO - DIAGNOSTICI IN VITRO","MONITORAGGIO FARMACI ANTIBIOTICI / ANTIVIRALI","IN VITRO DIAGNOSTIC MEDICAL DEVICES ","ANTIBIOTIC TDM / ANTIVIRUS TDM","Antibiotic Tdm / Antivirus Tdm"]
[5041,"W","W01020804","W01020804",5,"NO",true,null,"DISPOSITIVI MEDICO - DIAGNOSTICI IN VITRO","MONITORAGGIO FARMACI ANTI-ASMATICI","IN VITRO DIAGNOSTIC MEDICAL DEVICES ","ANTI-ASTHMA TDM","Anti-Asthma Tdm"]
[5045,"W","W01020805","W01020805",5,"NO",true,null,"DISPOSITIVI MEDICO - DIAGNOSTICI IN VITRO","MONITORAGGIO FARMACI ANTINEOPLASTICI","IN VITRO DIAGNOSTIC MEDICAL DEVICES ","ANTI-NEOPLASTIC TDM","Anti-Neoplastic Tdm"]
[5048,"W","W01020806","W01020806",5,"NO",true,null,"DISPOSITIVI MEDICO - DIAGNOSTICI IN VITRO","MONITORAGGIO FARMACI IMMUNOSOPPRESSORI","IN VITRO DIAGNOSTIC MEDICAL DEVICES ","IMMUNOSUPPRESSANT TDM","Immunosuppressant Tdm"]
[5056,"W","W01020807","W01020807",5,"NO",true,null,"DISPOSITIVI MEDICO - DIAGNOSTICI IN VITRO","MONITORAGGIO FARMACI MALATTIE AUTOIMMUNI","IN VITRO DIAGNOSTIC MEDICAL DEVICES ","AUTOIMMUNE DISEASE TDM","Autoimmune Disease Tdm"]
[5062,"W","W01020899","W01020899",5,"YES",true,null,"DISPOSITIVI MEDICO - DIAGNOSTICI IN VITRO","MONITORAGGIO FARMACI - ALTRI","IN VITRO DIAGNOSTIC MEDICAL DEVICES ","THERAPEUTIC DRUG MONITORING - OTHER","Therapeutic Drug Monitoring - Other"]
[5064,"W","W01020901","W01020901",5,"NO",true,null,"DISPOSITIVI MEDICO - DIAGNOSTICI IN VITRO","DROGHE D'ABUSO","IN VITRO DIAGNOSTIC MEDICAL DEVICES ","DRUGS OF ABUSE","Drugs Of Abuse"]
[5083,"W","W01020902","W01020902",5,"NO",true,null,"DISPOSITIVI MEDICO - DIAGNOSTICI IN VITRO","TOSSICOLOGIA","IN VITRO DIAGNOSTIC MEDICAL DEVICES ","TOXICOLOGY","Toxicology"]
[5108,"W","W01021001","W01021001",5,"NO",true,null,"DISPOSITIVI MEDICO - DIAGNOSTICI IN VITRO","MALATTIE AUTOIMMUNI DEL TESSUTO CONNETTIVO","IN VITRO DIAGNOSTIC MEDICAL DEVICES ","AUTOIMMUNE CONNECTIVE TISSUE DISEASES","Autoimmune Connective Tissue Diseases"]
[5126,"W","W01021002","W01021002",5,"NO",true,null,"DISPOSITIVI MEDICO - DIAGNOSTICI IN VITRO","MALATTIE NEURO AUTOIMMUNI","IN VITRO DIAGNOSTIC MEDICAL DEVICES ","NEURO-AUTO-IMMUNE DISEASE","Neuro-Auto-Immune Disease"]
[5140,"W","W01021003","W01021003",5,"NO",true,null,"DISPOSITIVI MEDICO - DIAGNOSTICI IN VITRO","TIREOPATIE AUTOIMMUNI","IN VITRO DIAGNOSTIC MEDICAL DEVICES ","THYROID-AUTO-IMMUNE DISEASE","Thyroid-Auto-Immune Disease"]
[5146,"W","W01021004","W01021004",5,"NO",true,null,"DISPOSITIVI MEDICO - DIAGNOSTICI IN VITRO","VASCULITE","IN VITRO DIAGNOSTIC MEDICAL DEVICES ","VASCULITIS","Vasculitis"]
[5151,"W","W01021005","W01021005",5,"NO",true,null,"DISPOSITIVI MEDICO - DIAGNOSTICI IN VITRO","SINDROME ANTI-FOSFOLIPIDE ","IN VITRO DIAGNOSTIC MEDICAL DEVICES ","ANTI-PHOSPHOLIPID SYNDROM","Anti-Phospholipid Syndrom"]
[5156,"W","W01021006","W01021006",5,"NO",true,null,"DISPOSITIVI MEDICO - DIAGNOSTICI IN VITRO","CELIACHIA","IN VITRO DIAGNOSTIC MEDICAL DEVICES ","CELIAC DISEASE","Celiac Disease"]
[5162,"W","W01021007","W01021007",5,"NO",true,null,"DISPOSITIVI MEDICO - DIAGNOSTICI IN VITRO","EPATITE AUTOIMMUNE","IN VITRO DIAGNOSTIC MEDICAL DEVICES ","AUTOIMMUNE HEPATITIS","Autoimmune Hepatitis"]
[5184,"W","W01021090","W01021090",5,"NO",true,null,"DISPOSITIVI MEDICO - DIAGNOSTICI IN VITRO","MALATTIE AUTO-IMMUNI - VARI","IN VITRO DIAGNOSTIC MEDICAL DEVICES ","VARIOUS AUTO-IMMUNE DISEASE","Various Auto-Immune Disease"]
[5197,"W","W01021101","W01021101",5,"YES",true,null,"DISPOSITIVI MEDICO - DIAGNOSTICI IN VITRO","ANTI-STREPTOCOCCO D NASE B","IN VITRO DIAGNOSTIC MEDICAL DEVICES ","ANTI-STREPTOCOCCAL DEOXYRIBONUCLEASE B (ANTI-DNAASE B)","Anti-Streptococcal Deoxyribonuclease B (Anti-Dnaase B)"]
[5198,"W","W01021102","W01021102",5,"YES",true,null,"DISPOSITIVI MEDICO - DIAGNOSTICI IN VITRO","ANTI- STREPTOCOCCO IALUNORIDASI","IN VITRO DIAGNOSTIC MEDICAL DEVICES ","ANTI-STREPTOCOCCAL HYALURONIDASE","Anti-Streptococcal Hyaluronidase"]
[5199,"W","W01021103","W01021103",5,"YES",true,null,"DISPOSITIVI MEDICO - DIAGNOSTICI IN VITRO","ANTI-STREPTOCHINASI (ASK)","IN VITRO DIAGNOSTIC MEDICAL DEVICES ","ANTI-STREPTOKINASE","Anti-Streptokinase"]
[5200,"W","W01021104","W01021104",5,"YES",true,null,"DISPOSITIVI MEDICO - DIAGNOSTICI IN VITRO","ANTI-STREPTOLISINA (QUANTITATIVA)","IN VITRO DIAGNOSTIC MEDICAL DEVICES ","ANTI-STREPTOLYSIN O (QUANTITATIVE)","Anti-Streptolysin O (Quantitative)"]
[5201,"W","W01021105","W01021105",5,"YES",true,null,"DISPOSITIVI MEDICO - DIAGNOSTICI IN VITRO","ANTI-STREPTOLISINA/ANTI-STREPTOLISINA O (QUALITATIVA)","IN VITRO DIAGNOSTIC MEDICAL DEVICES ","ANTI-STREPTOLYSIN O REACTION TIME / TITRE (QUALITATIVE)","Anti-Streptolysin O Reaction Time / Titre (Qualitative)"]
[5202,"W","W01021106","W01021106",5,"YES",true,null,"DISPOSITIVI MEDICO - DIAGNOSTICI IN VITRO","ANTI-STAFILOLISINA (QUANTITATIVA)","IN VITRO DIAGNOSTIC MEDICAL DEVICES ","ANTI-STAPHYLOLYSIN (QUANTITATIVE)","Anti-Staphylolysin (Quantitative)"]
[5203,"W","W01021107","W01021107",5,"YES",true,null,"DISPOSITIVI MEDICO - DIAGNOSTICI IN VITRO","ANTI-STAFILOLISINA (QUALITATIVA)","IN VITRO DIAGNOSTIC MEDICAL DEVICES ","ANTI-STAPHYLOLYSIN REACTION TIME / TITRE (QUALITATIVE)","Anti-Staphylolysin Reaction Time / Titre (Qualitative)"]
[5204,"W","W01021108","W01021108",5,"YES",true,null,"DISPOSITIVI MEDICO - DIAGNOSTICI IN VITRO","COMPLESSI IMMUNOCIRCOLANTI","IN VITRO DIAGNOSTIC MEDICAL DEVICES ","CIRCULATING IMMUNE COMPLEXES","Circulating Immune Complexes"]
[5205,"W","W01021109","W01021109",5,"YES",true,null,"DISPOSITIVI MEDICO - DIAGNOSTICI IN VITRO","PROTEINA C REATTIVA","IN VITRO DIAGNOSTIC MEDICAL DEVICES ","C-REACTIVE PROTEIN","C-Reactive Protein"]
[5206,"W","W01021110","W01021110",5,"YES",true,null,"DISPOSITIVI MEDICO - DIAGNOSTICI IN VITRO","FATTORI REUMATOIDI","IN VITRO DIAGNOSTIC MEDICAL DEVICES ","RHEUMATOID FACTORS","Rheumatoid Factors"]
[5207,"W","W01021111","W01021111",5,"YES",true,null,"DISPOSITIVI MEDICO - DIAGNOSTICI IN VITRO","SCREENING STREPTOCOCCO A","IN VITRO DIAGNOSTIC MEDICAL DEVICES ","ANTI-STREPTOCOCCAL SCREENING","Anti-Streptococcal Screening"]
[5208,"W","W01021112","W01021112",5,"YES",true,null,"DISPOSITIVI MEDICO - DIAGNOSTICI IN VITRO","ANTI-PEPTIDE CITRULLINATO CICLICO (ANTI - CCP)","IN VITRO DIAGNOSTIC MEDICAL DEVICES ","ANTI-CYCLIC CITRULLINATED PEPTIDE ","Anti-Cyclic Citrullinated Peptide "]
[5209,"W","W01021199","W01021199",5,"YES",true,null,"DISPOSITIVI MEDICO - DIAGNOSTICI IN VITRO","MARCATORI REUMOPATIE - MALATTIE INFIAMMATORIE - ALTRI","IN VITRO DIAGNOSTIC MEDICAL DEVICES ","RHEUMATOID / INFLAMMATORY DISEASE MARKERS - OTHER","Rheumatoid / Inflammatory Disease Markers - Other"]
[5211,"W","W01021201","W01021201",5,"NO",true,null,"DISPOSITIVI MEDICO - DIAGNOSTICI IN VITRO","FUNZIONALITÀ EPATICA (IMMUNOCHIMICA)","IN VITRO DIAGNOSTIC MEDICAL DEVICES ","LIVER FUNCTION    (IMMUNOCHEMISTRY)","Liver Function    (Immunochemistry)"]
[5218,"W","W01021299","W01021299",5,"YES",true,null,"DISPOSITIVI MEDICO - DIAGNOSTICI IN VITRO","TEST FUNZIONALITÀ ORGANO SPECIFICI - ALTRI","IN VITRO DIAGNOSTIC MEDICAL DEVICES ","ORGAN FUNCTION ASSAYS - OTHER","Organ Function Assays - Other"]
[5220,"W","W01021301","W01021301",5,"YES",true,null,"DISPOSITIVI MEDICO - DIAGNOSTICI IN VITRO","PEPTIDE NATRIURETICO ATRIALE DI TIPO B (INCL. PRO-ANP/BNP)","IN VITRO DIAGNOSTIC MEDICAL DEVICES ","BNP / PROBNP (INCLUDING OTHER NATRIURIC PEPTIDES)","Bnp / Probnp (Including Other Natriuric Peptides)"]
[5221,"W","W01021302","W01021302",5,"YES",true,null,"DISPOSITIVI MEDICO - DIAGNOSTICI IN VITRO","PROTEINA LEGANTE ACIDI GRASSI","IN VITRO DIAGNOSTIC MEDICAL DEVICES ","HEART-TYPE FATTY ACID BINDING PROTEIN","Heart-Type Fatty Acid Binding Protein"]
[5222,"W","W01021303","W01021303",5,"YES",true,null,"DISPOSITIVI MEDICO - DIAGNOSTICI IN VITRO","GLICOGENO FOSFORILASI BB","IN VITRO DIAGNOSTIC MEDICAL DEVICES ","GLYCOGEN PHOSPHORYLASE BB","Glycogen Phosphorylase Bb"]
[5223,"W","W01021304","W01021304",5,"YES",true,null,"DISPOSITIVI MEDICO - DIAGNOSTICI IN VITRO","MIOGLOBINA","IN VITRO DIAGNOSTIC MEDICAL DEVICES ","MYOGLOBIN","Myoglobin"]
[5224,"W","W01021305","W01021305",5,"YES",true,null,"DISPOSITIVI MEDICO - DIAGNOSTICI IN VITRO","CATENA LEGGERE MIOSINA","IN VITRO DIAGNOSTIC MEDICAL DEVICES ","MYOSIN LIGHT CHAIN","Myosin Light Chain"]
[5225,"W","W01021306","W01021306",5,"YES",true,null,"DISPOSITIVI MEDICO - DIAGNOSTICI IN VITRO","TROPONINA (T + I)","IN VITRO DIAGNOSTIC MEDICAL DEVICES ","TROPONIN I/T","Troponin I/T"]
[5226,"W","W01021307","W01021307",5,"YES",true,null,"DISPOSITIVI MEDICO - DIAGNOSTICI IN VITRO","OMOCISTEINA","IN VITRO DIAGNOSTIC MEDICAL DEVICES ","HOMOCYSTEINE","Homocysteine"]
[5227,"W","W01021308","W01021308",5,"YES",true,null,"DISPOSITIVI MEDICO - DIAGNOSTICI IN VITRO","PROTEINA C REATTIVA ALTAMENTE SENSIBILE ","IN VITRO DIAGNOSTIC MEDICAL DEVICES ","HIGH-SENSITIVITY C-.REACTIVE PROTEIN ","High-Sensitivity C-.Reactive Protein "]
[5228,"W","W01021309","W01021309",5,"YES",{"$f":"C194=D194","v":true},null,"DISPOSITIVI MEDICO - DIAGNOSTICI IN VITRO","ALBUMINA MODIFICATA DALL'ISCHEMIA","IN VITRO DIAGNOSTIC MEDICAL DEVICES ","ISCHEMIA MODIFIED ALBUMIN","Ischemia Modified Albumin"]
[5229,"W","W01021310","W01021310",5,"YES",true,null,"DISPOSITIVI MEDICO - DIAGNOSTICI IN VITRO","MIELOPEROSSIDASI (MPO)","IN VITRO DIAGNOSTIC MEDICAL DEVICES ","MYELOPEROXIDASE",{"$f":"PROPER(L195)","v":"Myeloperoxidase"}]
[5230,"W","W01021311","W01021311",5,"YES",true,null,"DISPOSITIVI MEDICO - DIAGNOSTICI IN VITRO","CREATIN CHINASI - MB MASSA (IC)","IN VITRO DIAGNOSTIC MEDICAL DEVICES ","CREATINE KINASE - MB MASS (IC)","Creatine Kinase - Mb Mass (Ic)"]
[5231,"W","W01021312","W01021312",5,"YES",true,null,"DISPOSITIVI MEDICO - DIAGNOSTICI IN VITRO","FOSFOLIPASI A2 ASSOCIATA ALLE LIPOPROTEINE","IN VITRO DIAGNOSTIC MEDICAL DEVICES ","LIPOPROTEIN-ASSOCIATED PHOSPHOLIPASE A2","Lipoprotein-Associated Phospholipase A2"]
[5232,"W","W01021313","W01021313",5,"YES",true,null,"DISPOSITIVI MEDICO - DIAGNOSTICI IN VITRO","GALECTINA-3","IN VITRO DIAGNOSTIC MEDICAL DEVICES ","GALECTIN-3","Galectin-3"]
[5233,"W","W01021314","W01021314",5,"YES",true,null,"DISPOSITIVI MEDICO - DIAGNOSTICI IN VITRO","ST2","IN VITRO DIAGNOSTIC MEDICAL DEVICES ","ST2","St2"]
[5234,"W","W01021399","W01021399",5,"YES",true,null,"DISPOSITIVI MEDICO - DIAGNOSTICI IN VITRO","PROTEINE CARDIACHE - ALTRE","IN VITRO DIAGNOSTIC MEDICAL DEVICES ","CARDIAC MARKERS - OTHER","Cardiac Markers - Other"]
[5236,"W","W01021499","W01021499",5,"YES",true,null,"DISPOSITIVI MEDICO - DIAGNOSTICI IN VITRO","REAGENTI MULTIPLI IMMUNOCHIMICA - ALTRI","IN VITRO DIAGNOSTIC MEDICAL DEVICES ","MULTIPLE IMMUNOCHEMISTRY REAGENTS - OTHER","Multiple Immunochemistry Reagents - Other"]
[5238,"W","W01021520","W01021520",5,"NO",true,null,"DISPOSITIVI MEDICO - DIAGNOSTICI IN VITRO","CONTROLLI IMMUNOCHIMICA","IN VITRO DIAGNOSTIC MEDICAL DEVICES ","CONTROLS - IMMUNOCHEMISTRY","Controls - Immunochemistry"]
[5251,"W","W01021521","W01021521",5,"YES",true,null,"DISPOSITIVI MEDICO - DIAGNOSTICI IN VITRO","CONTROLLI MULTICOMPONENTI PER IMMUNOCHIMICA","IN VITRO DIAGNOSTIC MEDICAL DEVICES ","MULTICOMPONENT IMMUNOCHEMISTRY CONTROLS","Multicomponent Immunochemistry Controls"]
[5252,"W","W01021522","W01021522",5,"NO",true,null,"DISPOSITIVI MEDICO - DIAGNOSTICI IN VITRO","STANDARDS E CALIBRATORI IMMUNOCHIMICA","IN VITRO DIAGNOSTIC MEDICAL DEVICES ","STANDARDS AND CALIBRATORS IMMUNOCHEMISTRY","Standards And Calibrators Immunochemistry"]
[5266,"W","W01021601","W01021601",5,"NO",true,null,"DISPOSITIVI MEDICO - DIAGNOSTICI IN VITRO","PROTEINE SPECIFICHE - TEST RAPIDI E \"POINT OF CARE\"","IN VITRO DIAGNOSTIC MEDICAL DEVICES ","SPECIFIC PROTEINS RT & POC","Specific Proteins Rt & Poc"]
[5270,"W","W01021602","W01021602",5,"NO",true,null,"DISPOSITIVI MEDICO - DIAGNOSTICI IN VITRO","MARCATORI TUMORALI - TEST RAPIDI E \"POINT OF CARE\"","IN VITRO DIAGNOSTIC MEDICAL DEVICES ","TUMOUR MARKERS RT & POC","Tumour Markers Rt & Poc"]
[5275,"W","W01021603","W01021603",5,"NO",true,null,"DISPOSITIVI MEDICO - DIAGNOSTICI IN VITRO","PER FERTILITÀ/GRAVIDANZA - TEST RAPIDI E \"POINT OF CARE\"","IN VITRO DIAGNOSTIC MEDICAL DEVICES ","FERTILITY / PREGNANCY RT & POC","Fertility / Pregnancy Rt & Poc"]
[5281,"W","W01021604","W01021604",5,"NO",true,null,"DISPOSITIVI MEDICO - DIAGNOSTICI IN VITRO","MONITORAGGIO TERAPEUTICO DEI FARMACI (TDM) - TEST RAPIDI E \"POINT OF CARE\"","IN VITRO DIAGNOSTIC MEDICAL DEVICES ","THERAPEUTIC DRUG MONITORING (TDM) RT & POC","Therapeutic Drug Monitoring (Tdm) Rt & Poc"]
[5284,"W","W01021605","W01021605",5,"NO",true,null,"DISPOSITIVI MEDICO - DIAGNOSTICI IN VITRO","DROGHE D'ABUSO / TOSSICOLOGIA - TEST RAPIDI E \"POINT OF CARE\"","IN VITRO DIAGNOSTIC MEDICAL DEVICES ","DRUGS OF ABUSE/TOXICOLOGY RT & POC","Drugs Of Abuse/Toxicology Rt & Poc"]
[5297,"W","W01021606","W01021606",5,"NO",true,null,"DISPOSITIVI MEDICO - DIAGNOSTICI IN VITRO","MALATTIE REUMATICHE/ INFIAMMATORIE - TEST RAPIDI E \"POINT OF CARE\"","IN VITRO DIAGNOSTIC MEDICAL DEVICES ","RHEUMATOID / INFLAMMATORY DISEASE RT & POC","Rheumatoid / Inflammatory Disease Rt & Poc"]
[5300,"W","W01021607","W01021607",5,"NO",true,null,"DISPOSITIVI MEDICO - DIAGNOSTICI IN VITRO","MARCATORI CARDIACI - TEST RAPIDI E \"POINT OF CARE\"","IN VITRO DIAGNOSTIC MEDICAL DEVICES ","CARDIAC MARKERS - RT & POC","Cardiac Markers - Rt & Poc"]
[5308,"W","W01021608","W01021608",5,"NO",true,null,"DISPOSITIVI MEDICO - DIAGNOSTICI IN VITRO","CONTROLLI/STANDARDS/CALIBRATORI IMMUNOCHIMICA - TEST RAPIDI E \"POINT OF CARE\" - ALTRI","IN VITRO DIAGNOSTIC MEDICAL DEVICES ","CONTROLS / STANDARDS / CALIBRATORS IMMUNOCHEM - RT & POC","Controls / Standards / Calibrators Immunochem - Rt & Poc"]
[5311,"W","W01021609","W01021609",5,"NO",true,null,"DISPOSITIVI MEDICO - DIAGNOSTICI IN VITRO","TEST RAPIDI PER ORMONI/PROTEINE SINGOLI E SPECIFICI","IN VITRO DIAGNOSTIC MEDICAL DEVICES ","INDIVIDUAL AND SPECIFIC HORMONES/PROTEINS RT & POC","Individual And Specific Hormones/Proteins Rt & Poc"]
[5316,"W","W01021699","W01021699",5,"YES",true,null,"DISPOSITIVI MEDICO - DIAGNOSTICI IN VITRO","TEST RAPIDI E POC PER IMMUNOCHIMICA - ALTRI","IN VITRO DIAGNOSTIC MEDICAL DEVICES ","RAPID TESTS & POINT OF CARE - IMMUNOCHEMISTRY - OTHER","Rapid Tests & Point Of Care - Immunochemistry - Other"]
[5318,"W","W01029001","W01029001",5,"YES",true,null,"DISPOSITIVI MEDICO - DIAGNOSTICI IN VITRO","ANTISIERI (MONOVALENTI AND POLIVALENTI)","IN VITRO DIAGNOSTIC MEDICAL DEVICES ","ANTISERA (MONOVALENT AND POLYVALENT)","Antisera (Monovalent And Polyvalent)"]
[5319,"W","W01029002","W01029002",5,"YES",true,null,"DISPOSITIVI MEDICO - DIAGNOSTICI IN VITRO","AMANITIA ( VELENI ORGANICI )","IN VITRO DIAGNOSTIC MEDICAL DEVICES ","AMANITIN ( ORGANIC POISONS )","Amanitin ( Organic Poisons )"]
[5320,"W","W01029003","W01029003",5,"YES",true,null,"DISPOSITIVI MEDICO - DIAGNOSTICI IN VITRO","TAMPONI (NON CLASSIFICABILI), REAGENTI COMPLEMENTARI, ECC (IC)","IN VITRO DIAGNOSTIC MEDICAL DEVICES ","BUFFERS (UNASSIGNABLE), SUPPLEM. REAGENTS, ETC (IC)","Buffers (Unassignable), Supplem. Reagents, Etc (Ic)"]
[5321,"W","W01029004","W01029004",5,"YES",true,null,"DISPOSITIVI MEDICO - DIAGNOSTICI IN VITRO","PROVETTE E SFERETTE \"COATED\" (NON CLASSIFICABILI) PER IMMUNOCHIMICA","IN VITRO DIAGNOSTIC MEDICAL DEVICES ","COATED TUBES AND BEADS (UNASSIGNABLE) (IC)","Coated Tubes And Beads (Unassignable) (Ic)"]
[5322,"W","W01029099","W01029099",5,"YES",true,null,"DISPOSITIVI MEDICO - DIAGNOSTICI IN VITRO","REAGENTI IMMUNOCHIMICA - ALTRI","IN VITRO DIAGNOSTIC MEDICAL DEVICES ","IMMUNOCHEMISTRY REAGENTS - OTHER","Immunochemistry Reagents - Other"]
[5325,"W","W01030101","W01030101",5,"NO",true,null,"DISPOSITIVI MEDICO - DIAGNOSTICI IN VITRO","REAGENTI PER ANALIZZATORI (AUTOMATICI) EMATOLOGIA","IN VITRO DIAGNOSTIC MEDICAL DEVICES ","REAGENTS FOR (AUTOMATED) HAEMATOLOGY ANALYZER","Reagents For (Automated) Haematology Analyzer"]
[5331,"W","W01030102","W01030102",5,"NO",true,null,"DISPOSITIVI MEDICO - DIAGNOSTICI IN VITRO","TEST PER EMOGLOBINA (TIPO)","IN VITRO DIAGNOSTIC MEDICAL DEVICES ","HAEMOGLOBIN (TYPES) TESTING","Haemoglobin (Types) Testing"]
[5335,"W","W01030103","W01030103",5,"NO",true,null,"DISPOSITIVI MEDICO - DIAGNOSTICI IN VITRO","COLORANTI CELLULARI PER MICROSCOPIA","IN VITRO DIAGNOSTIC MEDICAL DEVICES ","CELLULAR STAINS FOR MICROSCOPY","Cellular Stains For Microscopy"]
[5339,"W","W01030105","W01030105",5,"NO",true,null,"DISPOSITIVI MEDICO - DIAGNOSTICI IN VITRO","CONTROLLI E CALIBRATORI EMATOLOGIA","IN VITRO DIAGNOSTIC MEDICAL DEVICES ","HAEMATOLOGY CONTROLS AND CALIBRATORS","Haematology Controls And Calibrators"]
[5348,"W","W01030106","W01030106",5,"NO",true,null,"DISPOSITIVI MEDICO - DIAGNOSTICI IN VITRO","EMATOLOGIA - TEST RAPIDI E \"POINT OF CARE\"","IN VITRO DIAGNOSTIC MEDICAL DEVICES ","HAEMATOLOGY TESTS - RT & POC","Haematology Tests - Rt & Poc"]
[5357,"W","W01030107","W01030107",5,"YES",true,null,"DISPOSITIVI MEDICO - DIAGNOSTICI IN VITRO","REAGENTI PER VELOCITÀ DI ERITROSEDIMENTAZIONE","IN VITRO DIAGNOSTIC MEDICAL DEVICES ","ERYTHROCYTE SEDIMENTATION RATE (ESR) TEST","Erythrocyte Sedimentation Rate (Esr) Test"]
[5358,"W","W01030190","W01030190",5,"NO",true,null,"DISPOSITIVI MEDICO - DIAGNOSTICI IN VITRO","REAGENTI EMATOLOGIA VARI","IN VITRO DIAGNOSTIC MEDICAL DEVICES ","OTHER HAEMATOLOGY REAGENTS","Other Haematology Reagents"]
[5360,"W","W01030199","W01030199",5,"YES",true,null,"DISPOSITIVI MEDICO - DIAGNOSTICI IN VITRO","REAGENTI EMATOLOGIA - ALTRI","IN VITRO DIAGNOSTIC MEDICAL DEVICES ","HAEMATOLOGY REAGENTS - OTHER","Haematology Reagents - Other"]
[5362,"W","W01030201","W01030201",5,"NO",true,null,"DISPOSITIVI MEDICO - DIAGNOSTICI IN VITRO","TEST COAGULAZIONE IN GENERE","IN VITRO DIAGNOSTIC MEDICAL DEVICES ","GENERAL COAGULATION TESTS","General Coagulation Tests"]
[5368,"W","W01030202","W01030202",5,"NO",true,null,"DISPOSITIVI MEDICO - DIAGNOSTICI IN VITRO","FATTORI DI COAGULAZIONE","IN VITRO DIAGNOSTIC MEDICAL DEVICES ","COAGULATION FACTORS","Coagulation Factors"]
[5388,"W","W01030203","W01030203",5,"NO",true,null,"DISPOSITIVI MEDICO - DIAGNOSTICI IN VITRO","TEST SPECIALI COAGULAZIONE","IN VITRO DIAGNOSTIC MEDICAL DEVICES ","SPECIAL COAGULATION TESTS","Special Coagulation Tests"]
[5400,"W","W01030204","W01030204",5,"NO",true,null,"DISPOSITIVI MEDICO - DIAGNOSTICI IN VITRO","FATTORI PIASTRINICI","IN VITRO DIAGNOSTIC MEDICAL DEVICES ","PLATELET FACTORS","Platelet Factors"]
[5409,"W","W01030205","W01030205",5,"NO",true,null,"DISPOSITIVI MEDICO - DIAGNOSTICI IN VITRO","FIBRINOLISI","IN VITRO DIAGNOSTIC MEDICAL DEVICES ","FIBRINOLYSIS","Fibrinolysis"]
[5420,"W","W01030206","W01030206",5,"NO",true,null,"DISPOSITIVI MEDICO - DIAGNOSTICI IN VITRO","INIBITORI DI COAGULAZIONE/MARCATORI TROMBOFILIA","IN VITRO DIAGNOSTIC MEDICAL DEVICES ","COAGULATION INHIBITORS/THROMBOPHILIA MARKERS","Coagulation Inhibitors/Thrombophilia Markers"]
[5436,"W","W01030207","W01030207",5,"NO",true,null,"DISPOSITIVI MEDICO - DIAGNOSTICI IN VITRO","CONTROLLI E CALIBRATORI PER  EMOSTASI","IN VITRO DIAGNOSTIC MEDICAL DEVICES ","HAEMOSTASIS CALIBRATORS/CONTROLS","Haemostasis Calibrators/Controls"]
[5440,"W","W01030208","W01030208",5,"NO",true,null,"DISPOSITIVI MEDICO - DIAGNOSTICI IN VITRO","EMOSTASI - TEST RAPIDI E \"POINT OF CARE\"","IN VITRO DIAGNOSTIC MEDICAL DEVICES ","HAEMOSTASIS RAPID TESTS - RT & POC","Haemostasis Rapid Tests - Rt & Poc"]
[5449,"W","W01030209","W01030209",5,"NO",true,null,"DISPOSITIVI MEDICO - DIAGNOSTICI IN VITRO","REAGENTI AUSILIARI E COMPLEMENTARI (EMOSTASI)","IN VITRO DIAGNOSTIC MEDICAL DEVICES ","AUXILIARY REAGENTS AND SUPPLEMENTS (HAEMOSTASIS)","Auxiliary Reagents And Supplements (Haemostasis)"]
[5455,"W","W01030299","W01030299",5,"YES",true,null,"DISPOSITIVI MEDICO - DIAGNOSTICI IN VITRO","REAGENTI EMOSTASI -ALTRI","IN VITRO DIAGNOSTIC MEDICAL DEVICES ","HAEMOSTASIS REAGENTS - OTHER","Haemostasis Reagents - Other"]
[5457,"W","W01030301","W01030301",5,"NO",true,null,"DISPOSITIVI MEDICO - DIAGNOSTICI IN VITRO","TIPIZZAZIONE GRUPPI ABO","IN VITRO DIAGNOSTIC MEDICAL DEVICES ","ABO TYPING","Abo Typing"]
[5461,"W","W01030302","W01030302",5,"NO",true,null,"DISPOSITIVI MEDICO - DIAGNOSTICI IN VITRO","TIPIZZAZIONE RHESUS","IN VITRO DIAGNOSTIC MEDICAL DEVICES ","RHESUS TYPING","Rhesus Typing"]
[5465,"W","W01030303","W01030303",5,"NO",true,null,"DISPOSITIVI MEDICO - DIAGNOSTICI IN VITRO","INDIVIDUAZIONE ANTICORPI (IMMUNOEMATOLOGIA)","IN VITRO DIAGNOSTIC MEDICAL DEVICES ","ANTIBODY DETECTION (IMMUNOHAEMATOLOGY)","Antibody Detection (Immunohaematology)"]
[5475,"W","W01030304","W01030304",5,"NO",true,null,"DISPOSITIVI MEDICO - DIAGNOSTICI IN VITRO","CONTROLLI IMMUNOEMATOLOGIA","IN VITRO DIAGNOSTIC MEDICAL DEVICES ","IMMUNOHAEMATOLOGY CONTROLS","Immunohaematology Controls"]
[5479,"W","W01030305","W01030305",5,"NO",true,null,"DISPOSITIVI MEDICO - DIAGNOSTICI IN VITRO","TIPIZZAZIONE ANTIGENI - ALTRI","IN VITRO DIAGNOSTIC MEDICAL DEVICES ","OTHER ANTIGEN TYPING","Other Antigen Typing"]
[5481,"W","W01030309","W01030309",5,"NO",true,null,"DISPOSITIVI MEDICO - DIAGNOSTICI IN VITRO","TIPIZZAZIONE COMBINATA GRUPPI AB0 + RHESUS","IN VITRO DIAGNOSTIC MEDICAL DEVICES ","COMBINED ABO TYPING + RHESUS TYPING","Combined Abo Typing + Rhesus Typing"]
[5485,"W","W01030399","W01030399",5,"YES",true,null,"DISPOSITIVI MEDICO - DIAGNOSTICI IN VITRO","TEST IMMUNOEMATOLOGIA (TIPIZZAZIONE DEL SANGUE) - ALTRI","IN VITRO DIAGNOSTIC MEDICAL DEVICES ","IMMUNOHAEMATOLOGY  (BLOOD GROUPING) TESTS - OTHER","Immunohaematology  (Blood Grouping) Tests - Other"]
[5487,"W","W01030401","W01030401",5,"YES",true,null,"DISPOSITIVI MEDICO - DIAGNOSTICI IN VITRO","COMPLEMENTO PER TEST HLA","IN VITRO DIAGNOSTIC MEDICAL DEVICES ","COMPLEMENT FOR HLA TESTING","Complement For Hla Testing"]
[5488,"W","W01030402","W01030402",5,"YES",true,null,"DISPOSITIVI MEDICO - DIAGNOSTICI IN VITRO","SCREENING ANTICORPO HLA","IN VITRO DIAGNOSTIC MEDICAL DEVICES ","HLA ANTIBODY SCREENING","Hla Antibody Screening"]
[5489,"W","W01030403","W01030403",5,"YES",true,null,"DISPOSITIVI MEDICO - DIAGNOSTICI IN VITRO","TIPIZZAZIONE ANTIGENE HLA","IN VITRO DIAGNOSTIC MEDICAL DEVICES ","HLA ANTIGEN TYPING","Hla Antigen Typing"]
[5490,"W","W01030404","W01030404",5,"YES",true,null,"DISPOSITIVI MEDICO - DIAGNOSTICI IN VITRO","CELLULE CONTROLLO HLA","IN VITRO DIAGNOSTIC MEDICAL DEVICES ","HLA CONTROL CELLS","Hla Control Cells"]
[5491,"W","W01030405","W01030405",5,"YES",true,null,"DISPOSITIVI MEDICO - DIAGNOSTICI IN VITRO","MEZZI DI SEPARAZIONE LINFOCITARIA","IN VITRO DIAGNOSTIC MEDICAL DEVICES ","LYMPHOCYTE SEPARATION MEDIA","Lymphocyte Separation Media"]
[5492,"W","W01030406","W01030406",5,"YES",true,null,"DISPOSITIVI MEDICO - DIAGNOSTICI IN VITRO","MEZZI STABILIZZAZIONE LINFOCITARIA","IN VITRO DIAGNOSTIC MEDICAL DEVICES ","LYMPHOCYTE STABILIZING MEDIA","Lymphocyte Stabilizing Media"]
[5493,"W","W01030499","W01030499",5,"YES",true,null,"DISPOSITIVI MEDICO - DIAGNOSTICI IN VITRO","REAGENTI TIPIZZAZIONE TISSUTALE - ALTRI","IN VITRO DIAGNOSTIC MEDICAL DEVICES ","TISSUE TYPING REAGENTS - OTHER","Tissue Typing Reagents - Other"]
[5495,"W","W01030601","W01030601",5,"YES",true,null,"DISPOSITIVI MEDICO - DIAGNOSTICI IN VITRO","INTERFERONI (α, β, ɣ…)","IN VITRO DIAGNOSTIC MEDICAL DEVICES ","INTERFERONS (α, β, ɣ…)","Interferons (Α, Β, Ɣ…)"]
[5496,"W","W01030602","W01030602",5,"YES",true,null,"DISPOSITIVI MEDICO - DIAGNOSTICI IN VITRO","ANTIGENI SOLUBILI / RECETTORI","IN VITRO DIAGNOSTIC MEDICAL DEVICES ","SOLUBLE ANTIGENS / RECEPTORS","Soluble Antigens / Receptors"]
[5497,"W","W01030603","W01030603",5,"YES",true,null,"DISPOSITIVI MEDICO - DIAGNOSTICI IN VITRO","FATTORI NECROSI TUMORALE (TNFα,TNFβ, ...)","IN VITRO DIAGNOSTIC MEDICAL DEVICES ","TUMOUR NECROSIS FACTORS (TNFα,TNFβ, ...)","Tumour Necrosis Factors (Tnfα,Tnfβ, ...)"]
[5498,"W","W01030604","W01030604",5,"YES",true,null,"DISPOSITIVI MEDICO - DIAGNOSTICI IN VITRO","RECETTORI DI FATTORI NECROSI TUMORALE (TNF-R1, TNF-R2, ...)","IN VITRO DIAGNOSTIC MEDICAL DEVICES ","TUMOUR NECROSIS FACTORS RECEPTORS (TNF-R I,TNF-R II)","Tumour Necrosis Factors Receptors (Tnf-R I,Tnf-R Ii)"]
[5499,"W","W01030605","W01030605",5,"YES",true,null,"DISPOSITIVI MEDICO - DIAGNOSTICI IN VITRO","FATTORI STIMOLANTI COLONIZZAZIONE (G-CSF,M-CSF,GM-CSF)","IN VITRO DIAGNOSTIC MEDICAL DEVICES ","COLONY STIMULATING FACTORS (G-CSF,M-CSF,GM-CSF)","Colony Stimulating Factors (G-Csf,M-Csf,Gm-Csf)"]
[5500,"W","W01030606","W01030606",5,"YES",true,null,"DISPOSITIVI MEDICO - DIAGNOSTICI IN VITRO","INTERLEUCHINE (ESCLUSO IL-6)","IN VITRO DIAGNOSTIC MEDICAL DEVICES ","OTHER INTERLEUKINS (EXCEPT FOR IL-6)","Other Interleukins (Except For Il-6)"]
[5501,"W","W01030607","W01030607",5,"YES",{"$f":"C258=D258","v":true},null,"DISPOSITIVI MEDICO - DIAGNOSTICI IN VITRO","RECETTORI INTERLEUCHINE (IL-2R,IL6R ...)","IN VITRO DIAGNOSTIC MEDICAL DEVICES ","INTERLEUKINS RECEPTORS (IL-2R,IL6R ...)","Interleukins Receptors (Il-2R,Il6R ...)"]
[5502,"W","W01030608","W01030608",5,"YES",true,null,"DISPOSITIVI MEDICO - DIAGNOSTICI IN VITRO","CALIBRATORI/CONTROLLI CITOCHINE","IN VITRO DIAGNOSTIC MEDICAL DEVICES ","CYTOKINES CALIBRATORS/CONTROLS",{"$f":"PROPER(L259)","v":"Cytokines Calibrators/Controls"}]
[5503,"W","W01030609","W01030609",5,"YES",true,null,"DISPOSITIVI MEDICO - DIAGNOSTICI IN VITRO","INTERLEUCHINE 6 (IL-6)","IN VITRO DIAGNOSTIC MEDICAL DEVICES ","INTERLEUKIN 6 (IL-6)","Interleukin 6 (Il-6)"]
[5504,"W","W01030699","W01030699",5,"YES",true,null,"DISPOSITIVI MEDICO - DIAGNOSTICI IN VITRO","LINFOCHINE / IMMUNOMODULATORI - ALTRI","IN VITRO DIAGNOSTIC MEDICAL DEVICES ","LYMPHOKINES /IMMUNMODULATORS - OTHER","Lymphokines /Immunmodulators - Other"]
[5506,"W","W01030701","W01030701",5,"YES",true,null,"DISPOSITIVI MEDICO - DIAGNOSTICI IN VITRO","KIT/REAGENTI PER COLTURA CROMOSOMI","IN VITRO DIAGNOSTIC MEDICAL DEVICES ","CHROMOSOME CULTURE KITS / REAGENTS","Chromosome Culture Kits / Reagents"]
[5507,"W","W01030702","W01030702",5,"YES",true,null,"DISPOSITIVI MEDICO - DIAGNOSTICI IN VITRO","REAGENTI MARCATURA CITOCHIMICA","IN VITRO DIAGNOSTIC MEDICAL DEVICES ","CYTOCHEMICAL STAINING REAGENTS","Cytochemical Staining Reagents"]
[5508,"W","W01030703","W01030703",5,"YES",true,null,"DISPOSITIVI MEDICO - DIAGNOSTICI IN VITRO","REAGENTI IBRIDAZIONE DNA IN SITU","IN VITRO DIAGNOSTIC MEDICAL DEVICES ","DNA IN SITU HYBRIDISATION REAGENTS","Dna In Situ Hybridisation Reagents"]
[5509,"W","W01030704","W01030704",5,"YES",true,null,"DISPOSITIVI MEDICO - DIAGNOSTICI IN VITRO","MEZZI DI IMMERSIONE (ISTOLOGIA/CITOLOGIA)","IN VITRO DIAGNOSTIC MEDICAL DEVICES ","EMBEDDING MEDIA (HISTOLOGY/CYTOLOGY)","Embedding Media (Histology/Cytology)"]
[5510,"W","W01030705","W01030705",5,"YES",true,null,"DISPOSITIVI MEDICO - DIAGNOSTICI IN VITRO","REAGENTI FISSAZIONE (ISTOLOGIA/CITOLOGIA)","IN VITRO DIAGNOSTIC MEDICAL DEVICES ","FIXING REAGENTS (HISTOLOGY/CYTOLOGY)","Fixing Reagents (Histology/Cytology)"]
[5511,"W","W01030706","W01030706",5,"YES",true,null,"DISPOSITIVI MEDICO - DIAGNOSTICI IN VITRO","MEZZI DI MONTAGGIO PER ISTOLOGIA /CITOLOGIA","IN VITRO DIAGNOSTIC MEDICAL DEVICES ","MOUNTING MEDIA (HISTOLOGY/CYTOLOGY)","Mounting Media (Histology/Cytology)"]
[5512,"W","W01030707","W01030707",5,"YES",true,null,"DISPOSITIVI MEDICO - DIAGNOSTICI IN VITRO","COLORANTI IN POLVERE (ISTOLOGIA / CITOLOGIA)","IN VITRO DIAGNOSTIC MEDICAL DEVICES ","STAIN POWDERS (HISTOLOGY/CYTOLOGY)","Stain Powders (Histology/Cytology)"]
[5513,"W","W01030708","W01030708",5,"YES",true,null,"DISPOSITIVI MEDICO - DIAGNOSTICI IN VITRO","SOLUZIONI COLORANTI (ISTOLOGIA/CITOLOGIA)","IN VITRO DIAGNOSTIC MEDICAL DEVICES ","STAIN SOLUTIONS (HISTOLOGY/CYTOLOGY)","Stain Solutions (Histology/Cytology)"]
[5514,"W","W01030709","W01030709",5,"YES",true,null,"DISPOSITIVI MEDICO - DIAGNOSTICI IN VITRO","ANTISIERI PRIMARI PER IMMUNOISTOLOGIA","IN VITRO DIAGNOSTIC MEDICAL DEVICES ","PRIMARY ANTISERA FOR IMMUNOHISTOLOGY","Primary Antisera For Immunohistology"]
[5515,"W","W01030710","W01030710",5,"YES",true,null,"DISPOSITIVI MEDICO - DIAGNOSTICI IN VITRO","ANTISIERI SECONDARI PER IMMUNOISTOLOGIA","IN VITRO DIAGNOSTIC MEDICAL DEVICES ","SECONDARY ANTISERA FOR IMMUNOHISTOLOGY","Secondary Antisera For Immunohistology"]
[5516,"W","W01030711","W01030711",5,"YES",true,null,"DISPOSITIVI MEDICO - DIAGNOSTICI IN VITRO","KIT DI IMMUNOISTOLOGIA","IN VITRO DIAGNOSTIC MEDICAL DEVICES ","IMMUNOHISTOLOGY KITS","Immunohistology Kits"]
[5517,"W","W01030799","W01030799",5,"YES",true,null,"DISPOSITIVI MEDICO - DIAGNOSTICI IN VITRO","REAGENTI ISTOLOGIA / CITOLOGIA - ALTRI","IN VITRO DIAGNOSTIC MEDICAL DEVICES ","HISTOLOGY / CYTOLOGY REAGENTS - OTHER","Histology / Cytology Reagents - Other"]
[5519,"W","W01030801","W01030801",5,"NO",true,null,"DISPOSITIVI MEDICO - DIAGNOSTICI IN VITRO","ANTICORPI MONOCLONALI PER ANTIGENI DI SUPERFICIE CELLULARE","IN VITRO DIAGNOSTIC MEDICAL DEVICES ","MONOCLONAL ANTIBODIES FOR CELL SURFACE ANTIGENS","Monoclonal Antibodies For Cell Surface Antigens"]
[5527,"W","W01030802","W01030802",5,"NO",true,null,"DISPOSITIVI MEDICO - DIAGNOSTICI IN VITRO","ANTICORPI MONOCLONALI PER ANTIGENI CITOPLASMATICI","IN VITRO DIAGNOSTIC MEDICAL DEVICES ","MONOCLONAL ANTIBODIES FOR CYTOPLASMATIC ANTIGENS","Monoclonal Antibodies For Cytoplasmatic Antigens"]
[5533,"W","W01030803","W01030803",5,"YES",true,null,"DISPOSITIVI MEDICO - DIAGNOSTICI IN VITRO","REAGENTI PER LA CONTA DI CELLULE STAMINALI","IN VITRO DIAGNOSTIC MEDICAL DEVICES ","STEM CELL ENUMERATION REAGENTS","Stem Cell Enumeration Reagents"]
[5534,"W","W01030804","W01030804",5,"NO",true,null,"DISPOSITIVI MEDICO - DIAGNOSTICI IN VITRO","CONTROLLI PER CITOMETRIA A FLUSSO","IN VITRO DIAGNOSTIC MEDICAL DEVICES ","FLOW CYTOMETRY CONTROLS","Flow Cytometry Controls"]
[5540,"W","W01030805","W01030805",5,"NO",true,null,"DISPOSITIVI MEDICO - DIAGNOSTICI IN VITRO","REAGENTI AUSILIARI E SUPPLEMENTARI PER CITOMETRIA A FLUSSO","IN VITRO DIAGNOSTIC MEDICAL DEVICES ","AUXILIARY & SUPPLEMENTAL REAGENTS FOR FLOW CYTOMETRY","Auxiliary & Supplemental Reagents For Flow Cytometry"]
[5544,"W","W01030806","W01030806",5,"NO",true,null,"DISPOSITIVI MEDICO - DIAGNOSTICI IN VITRO","REAGENTI VARI PER CITOMETRIA A FLUSSO","IN VITRO DIAGNOSTIC MEDICAL DEVICES ","OTHER REAGENTS FOR FLOW CYTOMETRY","Other Reagents For Flow Cytometry"]
[5550,"W","W01040101","W01040101",5,"NO",true,null,"DISPOSITIVI MEDICO - DIAGNOSTICI IN VITRO","TERRENI DI COLTURA DISIDRATATI (TCD - BATTERIOLOGIA)","IN VITRO DIAGNOSTIC MEDICAL DEVICES ","DEHYDRATED CULTURE MEDIA (DCM - BACTERIOLOGY))","Dehydrated Culture Media (Dcm - Bacteriology))"]
[5557,"W","W01040102","W01040102",5,"NO",true,null,"DISPOSITIVI MEDICO - DIAGNOSTICI IN VITRO","TERRENI PRONTI IN PROVETTA (BATTERIOLOGIA)","IN VITRO DIAGNOSTIC MEDICAL DEVICES ","PREPARED MEDIA IN TUBES (BACTERIOLOGY)","Prepared Media In Tubes (Bacteriology)"]
[5562,"W","W01040103","W01040103",5,"NO",true,null,"DISPOSITIVI MEDICO - DIAGNOSTICI IN VITRO","TERRENI PRONTI IN FLACONI (BATTERIOLOGIA)","IN VITRO DIAGNOSTIC MEDICAL DEVICES ","PREPARED MEDIA IN BOTTLES (BACTERIOLOGY)","Prepared Media In Bottles (Bacteriology)"]
[5564,"W","W01040104","W01040104",5,"NO",true,null,"DISPOSITIVI MEDICO - DIAGNOSTICI IN VITRO","TERRENI PRONTI IN PIASTRA (BATTERIOLOGIA)","IN VITRO DIAGNOSTIC MEDICAL DEVICES ","PREPARED MEDIA IN PLATES (BACTERIOLOGY)","Prepared Media In Plates (Bacteriology)"]
[5572,"W","W01040105","W01040105",5,"NO",true,null,"DISPOSITIVI MEDICO - DIAGNOSTICI IN VITRO","EMOCOLTURE (MANUALI ED AUTOMATIZZATE)","IN VITRO DIAGNOSTIC MEDICAL DEVICES ","BLOOD CULTURE - MANUAL & AUTOMATED","Blood Culture - Manual & Automated"]
[5576,"W","W01040106","W01040106",5,"NO",true,null,"DISPOSITIVI MEDICO - DIAGNOSTICI IN VITRO","COLTURA MICOBATTERI (MANUALE - AUTOMATIZZATA)","IN VITRO DIAGNOSTIC MEDICAL DEVICES ","MYCOBACTERIA CULTURE (MANUAL & AUTOMATED)","Mycobacteria Culture (Manual & Automated)"]
[5580,"W","W01040107","W01040107",5,"NO",true,null,"DISPOSITIVI MEDICO - DIAGNOSTICI IN VITRO","SCREENING DELLE URINE (BATTERIOLOGIA)","IN VITRO DIAGNOSTIC MEDICAL DEVICES ","URINE SCREENING (BACTERIOLOGY)","Urine Screening (Bacteriology)"]
[5585,"W","W01040108","W01040108",5,"NO",true,null,"DISPOSITIVI MEDICO - DIAGNOSTICI IN VITRO","COLORANTI E TAMPONI (BATTERIOLOGIA)","IN VITRO DIAGNOSTIC MEDICAL DEVICES ","STAINS, BUFFERS (BACTERIOLOGY)","Stains, Buffers (Bacteriology)"]
[5595,"W","W01040109","W01040109",5,"NO",true,null,"DISPOSITIVI MEDICO - DIAGNOSTICI IN VITRO","SISTEMI DI GENERAZIONE AMBIENTALE","IN VITRO DIAGNOSTIC MEDICAL DEVICES ","ENVIRONMENTAL GENERATING SYSTEMS","Environmental Generating Systems"]
[5599,"W","W01040301","W01040301",5,"NO",true,null,"DISPOSITIVI MEDICO - DIAGNOSTICI IN VITRO","TERRENI DI COLTURA DISIDRATATI (TCD - MICOLOGIA)","IN VITRO DIAGNOSTIC MEDICAL DEVICES ","DEHYDRATED CULTURE MEDIA   (MYCOLOGY)","Dehydrated Culture Media   (Mycology)"]
[5602,"W","W01040302","W01040302",5,"NO",true,null,"DISPOSITIVI MEDICO - DIAGNOSTICI IN VITRO","TERRENI PRONTI IN PIASTRA (MICOLOGIA)","IN VITRO DIAGNOSTIC MEDICAL DEVICES ","PREPARED MEDIA IN PLATES   (MYCOLOGY)","Prepared Media In Plates   (Mycology)"]
[5606,"W","W01040303","W01040303",5,"NO",true,null,"DISPOSITIVI MEDICO - DIAGNOSTICI IN VITRO","TERRENI IN PROVETTE E FLACONI PER LIEVITI E FUNGHI","IN VITRO DIAGNOSTIC MEDICAL DEVICES ","TUBES AND BOTTLED MEDIA FOR YEASTS AND FUNGI","Tubes And Bottled Media For Yeasts And Fungi"]
[5611,"W","W01040304","W01040304",5,"NO",true,null,"DISPOSITIVI MEDICO - DIAGNOSTICI IN VITRO","IDENTIFICAZIONE (MICOLOGIA)","IN VITRO DIAGNOSTIC MEDICAL DEVICES ","IDENTIFICATION   (MYCOLOGY)","Identification   (Mycology)"]
[5616,"W","W01040305","W01040305",5,"NO",true,null,"DISPOSITIVI MEDICO - DIAGNOSTICI IN VITRO","IDENTIFICAZIONE SIEROLOGICA (MICOLOGIA)","IN VITRO DIAGNOSTIC MEDICAL DEVICES ","SEROLOGICAL IDENTIFICATION   (MYCOLOGY)","Serological Identification   (Mycology)"]
[5619,"W","W01040306","W01040306",5,"NO",true,null,"DISPOSITIVI MEDICO - DIAGNOSTICI IN VITRO","TEST DI SENSIBILITÀ (MICOLOGIA)","IN VITRO DIAGNOSTIC MEDICAL DEVICES ","SUSCEPTIBILITY TESTING   (MYCOLOGY)","Susceptibility Testing   (Mycology)"]
[5625,"W","W01040401","W01040401",5,"YES",true,null,"DISPOSITIVI MEDICO - DIAGNOSTICI IN VITRO","CELLULE PER COLTURA TISSUTALE","IN VITRO DIAGNOSTIC MEDICAL DEVICES ","CELLS FOR TISSUE CULTURE","Cells For Tissue Culture"]
[5626,"W","W01040402","W01040402",5,"YES",true,null,"DISPOSITIVI MEDICO - DIAGNOSTICI IN VITRO","TERRENI PER COLTURA TISSUTALE","IN VITRO DIAGNOSTIC MEDICAL DEVICES ","MEDIA FOR TISSUE CULTURE","Media For Tissue Culture"]
[5627,"W","W01040403","W01040403",5,"YES",true,null,"DISPOSITIVI MEDICO - DIAGNOSTICI IN VITRO","SIERO PER COLTURA TISSUTALE","IN VITRO DIAGNOSTIC MEDICAL DEVICES ","SERUM FOR TISSUE CULTURE","Serum For Tissue Culture"]
[5628,"W","W01040404","W01040404",5,"YES",true,null,"DISPOSITIVI MEDICO - DIAGNOSTICI IN VITRO","ALTRI ADDITIVI E SOLUZIONI PER COLTURA TISSUTALE","IN VITRO DIAGNOSTIC MEDICAL DEVICES ","OTHER TISSUE CULTURE ADDITIVES AND SOLUTIONS","Other Tissue Culture Additives And Solutions"]
[5629,"W","W01040499","W01040499",5,"YES",true,null,"DISPOSITIVI MEDICO - DIAGNOSTICI IN VITRO","REAGENTI PER COLTURA VIRALE - ALTRI","IN VITRO DIAGNOSTIC MEDICAL DEVICES ","VIRAL CULTURE REAGENTS - OTHER","Viral Culture Reagents - Other"]
[5631,"W","W01040501","W01040501",5,"NO",true,null,"DISPOSITIVI MEDICO - DIAGNOSTICI IN VITRO","REAGENTI PER PARASSITOLOGIA","IN VITRO DIAGNOSTIC MEDICAL DEVICES ","PARASITOLOGY REAGENTS","Parasitology Reagents"]
[5635,"W","W01040502","W01040502",5,"NO",true,null,"DISPOSITIVI MEDICO - DIAGNOSTICI IN VITRO","RICERCA ED IDENTIFICAZIONE (PARASSITOLOGIA)","IN VITRO DIAGNOSTIC MEDICAL DEVICES ","DETECTION AND IDENTIFICATION (PARASITOLOGY)","Detection And Identification (Parasitology)"]
[5641,"W","W01040601","W01040601",5,"YES",true,null,"DISPOSITIVI MEDICO - DIAGNOSTICI IN VITRO","CEPPI BATTERICI PER IL CONTROLLO DI QUALITA' IN BATTERIOLOGIA","IN VITRO DIAGNOSTIC MEDICAL DEVICES ","QC STRAINS BACTERIOLOGY","Qc Strains Bacteriology"]
[5642,"W","W01040699","W01040699",5,"YES",true,null,"DISPOSITIVI MEDICO - DIAGNOSTICI IN VITRO","CONTROLLI/STANDARD/CALIBRATORI IN MICROBIOLOGIA - ALTRI","IN VITRO DIAGNOSTIC MEDICAL DEVICES ","CONTROLS, STANDARDS, CALIBRATORS, MICROBIOLOGY - OTHER","Controls, Standards, Calibrators, Microbiology - Other"]
[5645,"W","W01040801","W01040801",5,"NO",true,null,"DISPOSITIVI MEDICO - DIAGNOSTICI IN VITRO","TEST DI IDENTIFICAZIONE BIOCHIMICA E SENSIBILITA'-AUTOMATIZZATA","IN VITRO DIAGNOSTIC MEDICAL DEVICES ","BIOCHEMICAL IDENTIFICATION AND SUSCEPTIBILITY TESTING - AUTOMATED","Biochemical Identification And Susceptibility Testing - Automated"]
[5657,"W","W01040802","W01040802",5,"NO",true,null,"DISPOSITIVI MEDICO - DIAGNOSTICI IN VITRO","IDENTIFICAZIONE BIOCHIMICA - MANUALE","IN VITRO DIAGNOSTIC MEDICAL DEVICES ","BIOCHEMICAL IDENTIFICATION - MANUAL","Biochemical Identification - Manual"]
[5664,"W","W01040803","W01040803",5,"NO",true,null,"DISPOSITIVI MEDICO - DIAGNOSTICI IN VITRO","IDENTIFICAZIONE IMMUNOLOGICA DA COLTURA","IN VITRO DIAGNOSTIC MEDICAL DEVICES ","IMMUNOLOGICAL IDENTIFICATION BY CULTURE","Immunological Identification By Culture"]
[5670,"W","W01040805","W01040805",5,"NO",true,null,"DISPOSITIVI MEDICO - DIAGNOSTICI IN VITRO","TEST DI SENSIBILITÀ - MANUALE","IN VITRO DIAGNOSTIC MEDICAL DEVICES ","MANUAL SUSCEPTIBILITY TESTING","Manual Susceptibility Testing"]
[5679,"W","W01040806","W01040806",5,"NO",true,null,"DISPOSITIVI MEDICO - DIAGNOSTICI IN VITRO","IDENTIFICAZIONE ACIDI NUCLEICI (BATTERIOLOGIA)","IN VITRO DIAGNOSTIC MEDICAL DEVICES ","NUCLEIC ACID IDENTIFICATION (BACTERIOLOGY)","Nucleic Acid Identification (Bacteriology)"]
[5690,"W","W01050101","W01050101",5,"NO",true,null,"DISPOSITIVI MEDICO - DIAGNOSTICI IN VITRO","CHLAMYDIA","IN VITRO DIAGNOSTIC MEDICAL DEVICES ","CHLAMYDIA","Chlamydia"]
[5704,"W","W01050102","W01050102",5,"NO",true,null,"DISPOSITIVI MEDICO - DIAGNOSTICI IN VITRO","GONOCOCCHI (NEISSERIA GONORRHOEAE)","IN VITRO DIAGNOSTIC MEDICAL DEVICES ","GONOCOCCI (NEISSERIA GONORRHOEAE)","Gonococci (Neisseria Gonorrhoeae)"]
[5709,"W","W01050103","W01050103",5,"NO",true,null,"DISPOSITIVI MEDICO - DIAGNOSTICI IN VITRO","SIFILIDE (TREPONEMA PALLIDUM)","IN VITRO DIAGNOSTIC MEDICAL DEVICES ","SYPHILIS (TREPONEMA PALLIDUM)","Syphilis (Treponema Pallidum)"]
[5716,"W","W01050104","W01050104",5,"NO",true,null,"DISPOSITIVI MEDICO - DIAGNOSTICI IN VITRO","HELICOBACTER PYLORI","IN VITRO DIAGNOSTIC MEDICAL DEVICES ","HELICOBACTER PYLORI","Helicobacter Pylori"]
[5721,"W","W01050105","W01050105",5,"NO",true,null,"DISPOSITIVI MEDICO - DIAGNOSTICI IN VITRO","LEGIONELLA","IN VITRO DIAGNOSTIC MEDICAL DEVICES ","LEGIONELLA","Legionella"]
[5726,"W","W01050106","W01050106",5,"NO",true,null,"DISPOSITIVI MEDICO - DIAGNOSTICI IN VITRO","BORRELIA (SINDROME DI LYME)","IN VITRO DIAGNOSTIC MEDICAL DEVICES ","LYME BORRELIOSIS","Lyme Borreliosis"]
[5733,"W","W01050107","W01050107",5,"NO",true,null,"DISPOSITIVI MEDICO - DIAGNOSTICI IN VITRO","MICOBATTERI GENERE + SPECIE","IN VITRO DIAGNOSTIC MEDICAL DEVICES ","MYCOBACTERIA GENUS + SPECIES","Mycobacteria Genus + Species"]
[5738,"W","W01050108","W01050108",5,"NO",true,null,"DISPOSITIVI MEDICO - DIAGNOSTICI IN VITRO","MYCOPLASMA","IN VITRO DIAGNOSTIC MEDICAL DEVICES ","MYCOPLASMA","Mycoplasma"]
[5743,"W","W01050109","W01050109",5,"NO",true,null,"DISPOSITIVI MEDICO - DIAGNOSTICI IN VITRO","PSEUDOMONAS AERUGINOSA","IN VITRO DIAGNOSTIC MEDICAL DEVICES ","PSEUDOMONAS AERUGINOSA","Pseudomonas Aeruginosa"]
[5747,"W","W01050110","W01050110",5,"NO",true,null,"DISPOSITIVI MEDICO - DIAGNOSTICI IN VITRO","SALMONELLA","IN VITRO DIAGNOSTIC MEDICAL DEVICES ","SALMONELLA","Salmonella"]
[5752,"W","W01050111","W01050111",5,"NO",true,null,"DISPOSITIVI MEDICO - DIAGNOSTICI IN VITRO","STREPTOCOCCI (STREPTOCOCCHI)","IN VITRO DIAGNOSTIC MEDICAL DEVICES ","STREPTOCOCCI","Streptococci"]
[5759,"W","W01050112","W01050112",5,"NO",true,null,"DISPOSITIVI MEDICO - DIAGNOSTICI IN VITRO","STAPHYLOCOCCI (STAFILOCOCCHI)","IN VITRO DIAGNOSTIC MEDICAL DEVICES ","STAPHYLOCOCCI","Staphylococci"]
[5764,"W","W01050113","W01050113",5,"NO",true,null,"DISPOSITIVI MEDICO - DIAGNOSTICI IN VITRO","LISTERIA","IN VITRO DIAGNOSTIC MEDICAL DEVICES ","LISTERIA","Listeria"]
[5771,"W","W01050114","W01050114",5,"NO",{"$f":"C322=D322","v":true},null,"DISPOSITIVI MEDICO - DIAGNOSTICI IN VITRO","CAMPYLOBACTER","IN VITRO DIAGNOSTIC MEDICAL DEVICES ","CAMPYLOBACTER","Campylobacter"]
[5775,"W","W01050115","W01050115",5,"NO",true,null,"DISPOSITIVI MEDICO - DIAGNOSTICI IN VITRO","ESCHERICHIA COLI","IN VITRO DIAGNOSTIC MEDICAL DEVICES ","ESCHERICHIA COLI",{"$f":"PROPER(L323)","v":"Escherichia Coli"}]
[5781,"W","W01050116","W01050116",5,"NO",true,null,"DISPOSITIVI MEDICO - DIAGNOSTICI IN VITRO","ALTRI PRODOTTI PER BATTERIOLOGIA - REAGENTI NAS","IN VITRO DIAGNOSTIC MEDICAL DEVICES ","OTHER BACTERIOLOGY - NA REAGENTS","Other Bacteriology - Na Reagents"]
[5797,"W","W01050117","W01050117",5,"NO",true,null,"DISPOSITIVI MEDICO - DIAGNOSTICI IN VITRO","DETERMINAZIONI IMMUNOLOGICHE IN BATTERIOLOGIA - VARIE","IN VITRO DIAGNOSTIC MEDICAL DEVICES ","OTHER BACTERIOLOGY IMMUNOASSAYS","Other Bacteriology Immunoassays"]
[5812,"W","W01050118","W01050118",5,"NO",true,null,"DISPOSITIVI MEDICO - DIAGNOSTICI IN VITRO","CLOSTRIDIUM DIFFICILE","IN VITRO DIAGNOSTIC MEDICAL DEVICES ","CLOSTRIDIUM DIFFICILE","Clostridium Difficile"]
[5819,"W","W01050201","W01050201",5,"NO",true,null,"DISPOSITIVI MEDICO - DIAGNOSTICI IN VITRO","VIRUS DELL'EPATITE A","IN VITRO DIAGNOSTIC MEDICAL DEVICES ","HEPATITIS A VIRUS","Hepatitis A Virus"]
[5826,"W","W01050202","W01050202",5,"NO",true,null,"DISPOSITIVI MEDICO - DIAGNOSTICI IN VITRO","VIRUS DELL'EPATITE B","IN VITRO DIAGNOSTIC MEDICAL DEVICES ","HEPATITIS B VIRUS","Hepatitis B Virus"]
[5846,"W","W01050203","W01050203",5,"NO",true,null,"DISPOSITIVI MEDICO - DIAGNOSTICI IN VITRO","VIRUS DELL'EPATITE C","IN VITRO DIAGNOSTIC MEDICAL DEVICES ","HEPATITIS C VIRUS","Hepatitis C Virus"]
[5857,"W","W01050204","W01050204",5,"NO",true,null,"DISPOSITIVI MEDICO - DIAGNOSTICI IN VITRO","VIRUS DELL'EPATITE DELTA","IN VITRO DIAGNOSTIC MEDICAL DEVICES ","HEPATITIS DELTA VIRUS","Hepatitis Delta Virus"]
[5865,"W","W01050205","W01050205",5,"NO",true,null,"DISPOSITIVI MEDICO - DIAGNOSTICI IN VITRO","VIRUS DELL'EPATITE E","IN VITRO DIAGNOSTIC MEDICAL DEVICES ","HEPATITIS E VIRUS","Hepatitis E Virus"]
[5874,"W","W01050206","W01050206",5,"NO",true,null,"DISPOSITIVI MEDICO - DIAGNOSTICI IN VITRO","VIRUS DELL'EPATITE G","IN VITRO DIAGNOSTIC MEDICAL DEVICES ","HEPATITIS G VIRUS","Hepatitis G Virus"]
[5882,"W","W01050207","W01050207",5,"NO",true,null,"DISPOSITIVI MEDICO - DIAGNOSTICI IN VITRO","VIRUS DELL'EPATITE X","IN VITRO DIAGNOSTIC MEDICAL DEVICES ","HEPATITIS X VIRUS","Hepatitis X Virus"]
[5890,"W","W01050290","W01050290",5,"NO",true,null,"DISPOSITIVI MEDICO - DIAGNOSTICI IN VITRO","EPATITE VIRUS - ALTRI","IN VITRO DIAGNOSTIC MEDICAL DEVICES ","OTHER HEPATITIS VIRUSES","Other Hepatitis Viruses"]
[5893,"W","W01050301","W01050301",5,"NO",true,null,"DISPOSITIVI MEDICO - DIAGNOSTICI IN VITRO","HIV 1","IN VITRO DIAGNOSTIC MEDICAL DEVICES ","HIV 1","Hiv 1"]
[5903,"W","W01050302","W01050302",5,"NO",true,null,"DISPOSITIVI MEDICO - DIAGNOSTICI IN VITRO","HIV 2","IN VITRO DIAGNOSTIC MEDICAL DEVICES ","HIV 2","Hiv 2"]
[5910,"W","W01050303","W01050303",5,"NO",true,null,"DISPOSITIVI MEDICO - DIAGNOSTICI IN VITRO","HIV P24","IN VITRO DIAGNOSTIC MEDICAL DEVICES ","HIV P24","Hiv P24"]
[5915,"W","W01050304","W01050304",5,"NO",true,null,"DISPOSITIVI MEDICO - DIAGNOSTICI IN VITRO","HIV - MULTIPLO ( 1 / 2 )","IN VITRO DIAGNOSTIC MEDICAL DEVICES ","HIV - MULTIPLE ( 1 / 2 )","Hiv - Multiple ( 1 / 2 )"]
[5922,"W","W01050305","W01050305",5,"NO",true,null,"DISPOSITIVI MEDICO - DIAGNOSTICI IN VITRO","HTLV I","IN VITRO DIAGNOSTIC MEDICAL DEVICES ","HTLV I","Htlv I"]
[5928,"W","W01050306","W01050306",5,"NO",true,null,"DISPOSITIVI MEDICO - DIAGNOSTICI IN VITRO","HTLV II","IN VITRO DIAGNOSTIC MEDICAL DEVICES ","HTLV II","Htlv Ii"]
[5934,"W","W01050307","W01050307",5,"NO",true,null,"DISPOSITIVI MEDICO - DIAGNOSTICI IN VITRO","HTLV MULTIPLO","IN VITRO DIAGNOSTIC MEDICAL DEVICES ","HTLV MULTIPLE","Htlv Multiple"]
[5941,"W","W01050401","W01050401",5,"NO",true,null,"DISPOSITIVI MEDICO - DIAGNOSTICI IN VITRO","VIRUS DELLA ROSOLIA","IN VITRO DIAGNOSTIC MEDICAL DEVICES ","RUBELLA VIRUS","Rubella Virus"]
[5947,"W","W01050402","W01050402",5,"NO",true,null,"DISPOSITIVI MEDICO - DIAGNOSTICI IN VITRO","CYTOMEGALOVIRUS","IN VITRO DIAGNOSTIC MEDICAL DEVICES ","CYTOMEGALOVIRUS","Cytomegalovirus"]
[5955,"W","W01050403","W01050403",5,"NO",true,null,"DISPOSITIVI MEDICO - DIAGNOSTICI IN VITRO","HERPES SIMPLEX VIRUS","IN VITRO DIAGNOSTIC MEDICAL DEVICES ","HERPES SIMPLEX VIRUS","Herpes Simplex Virus"]
[5968,"W","W01050404","W01050404",5,"NO",true,null,"DISPOSITIVI MEDICO - DIAGNOSTICI IN VITRO","EPSTEIN BARR VIRUS","IN VITRO DIAGNOSTIC MEDICAL DEVICES ","EPSTEIN BARR VIRUS","Epstein Barr Virus"]
[5983,"W","W01050405","W01050405",5,"NO",true,null,"DISPOSITIVI MEDICO - DIAGNOSTICI IN VITRO","ALTRI TEST DI VIROLOGIA - REAGENTI NAS","IN VITRO DIAGNOSTIC MEDICAL DEVICES ","OTHER VIROLOGY - NA REAGENTS","Other Virology - Na Reagents"]
[6013,"W","W01050406","W01050406",5,"NO",true,null,"DISPOSITIVI MEDICO - DIAGNOSTICI IN VITRO","ULTERIORI RICERCHE DI ANTIGENI/ANTICORPI PER VIROLOGIA","IN VITRO DIAGNOSTIC MEDICAL DEVICES ","OTHER VIROLOGY ANTIGEN/ANTIBODY DETECTION","Other Virology Antigen/Antibody Detection"]
[6041,"W","W01050407","W01050407",5,"NO",true,null,"DISPOSITIVI MEDICO - DIAGNOSTICI IN VITRO","MORBILLO","IN VITRO DIAGNOSTIC MEDICAL DEVICES ","MEASLES VIRUS","Measles Virus"]
[6047,"W","W01050408","W01050408",5,"NO",true,null,"DISPOSITIVI MEDICO - DIAGNOSTICI IN VITRO","PAROTITE EPIDEMICA","IN VITRO DIAGNOSTIC MEDICAL DEVICES ","MUMPS / PAROTITIS VIRUS","Mumps / Parotitis Virus"]
[6053,"W","W01050409","W01050409",5,"NO",true,null,"DISPOSITIVI MEDICO - DIAGNOSTICI IN VITRO","VARICELLA ZOSTER","IN VITRO DIAGNOSTIC MEDICAL DEVICES ","VARICELLA ZOSTER VIRUS","Varicella Zoster Virus"]
[6059,"W","W01050410","W01050410",5,"NO",true,null,"DISPOSITIVI MEDICO - DIAGNOSTICI IN VITRO","VIRUS DEL PAPILLOMA UMANO ","IN VITRO DIAGNOSTIC MEDICAL DEVICES ","HUMAN PAPILLOMA VIRUS","Human Papilloma Virus"]
[6066,"W","W01050499","W01050499",5,"YES",true,null,"DISPOSITIVI MEDICO - DIAGNOSTICI IN VITRO","REAGENTI PER TEST DI VIROLOGIA - ALTRI","IN VITRO DIAGNOSTIC MEDICAL DEVICES ","VIROLOGY REAGENTS - OTHER","Virology Reagents - Other"]
[6068,"W","W01050501","W01050501",5,"NO",true,null,"DISPOSITIVI MEDICO - DIAGNOSTICI IN VITRO","TOXOPLASMA","IN VITRO DIAGNOSTIC MEDICAL DEVICES ","TOXOPLASMA","Toxoplasma"]
[6075,"W","W01050502","W01050502",5,"NO",true,null,"DISPOSITIVI MEDICO - DIAGNOSTICI IN VITRO","VARIE PER PARASSITOLOGIA ","IN VITRO DIAGNOSTIC MEDICAL DEVICES ","MISCELLANEOUS PARASITOLOGY ","Miscellaneous Parasitology "]
[6089,"W","W01050603","W01050603",5,"NO",true,null,"DISPOSITIVI MEDICO - DIAGNOSTICI IN VITRO","TEST IMMUNOLOGICI PER MICOLOGIA","IN VITRO DIAGNOSTIC MEDICAL DEVICES ","MYCOLOGY IMMUNOASSAYS","Mycology Immunoassays"]
[6094,"W","W01050604","W01050604",5,"NO",true,null,"DISPOSITIVI MEDICO - DIAGNOSTICI IN VITRO","MICOLOGIA - REAGENTI NAS","IN VITRO DIAGNOSTIC MEDICAL DEVICES ","MYCOLOGY - NA REAGENTS","Mycology - Na Reagents"]
[6100,"W","W01050702","W01050702",5,"NO",true,null,"DISPOSITIVI MEDICO - DIAGNOSTICI IN VITRO","PANNELLI MULTIPLI PER BATTERI/FUNGHI","IN VITRO DIAGNOSTIC MEDICAL DEVICES ","MULTIPLE BACTERIA / FUNGI PANELS","Multiple Bacteria / Fungi Panels"]
[6104,"W","W01050703","W01050703",5,"NO",true,null,"DISPOSITIVI MEDICO - DIAGNOSTICI IN VITRO","PANNELLI MULTIPLI VIRALI","IN VITRO DIAGNOSTIC MEDICAL DEVICES ","MULTIPLE VIRUSES PANELS","Multiple Viruses Panels"]
[6110,"W","W01050704","W01050704",5,"YES",true,null,"DISPOSITIVI MEDICO - DIAGNOSTICI IN VITRO","PANNELLI MULTIPLI PER PARASSITI","IN VITRO DIAGNOSTIC MEDICAL DEVICES ","MULTIPLE PARASITES PANELS","Multiple Parasites Panels"]
[6111,"W","W01050705","W01050705",5,"NO",true,null,"DISPOSITIVI MEDICO - DIAGNOSTICI IN VITRO","PANNELLI MULTIPLI PER INFEZIONI - VARI","IN VITRO DIAGNOSTIC MEDICAL DEVICES ","MULTIPLE PANELS FOR INFECTIONS - VARIOUS","Multiple Panels For Infections - Various"]
[6119,"W","W01050799","W01050799",5,"YES",true,null,"DISPOSITIVI MEDICO - DIAGNOSTICI IN VITRO","VIRUS MULTIPLI - ALTRI","IN VITRO DIAGNOSTIC MEDICAL DEVICES ","MULTIPLE VIRUSES - OTHER","Multiple Viruses - Other"]
[6121,"W","W01050808","W01050808",5,"NO",true,null,"DISPOSITIVI MEDICO - DIAGNOSTICI IN VITRO","CONTROLLI - IMMUNOINFETTIVOLOGIA","IN VITRO DIAGNOSTIC MEDICAL DEVICES ","CONTROLS - INFECT. IMMUNOLOGY","Controls - Infect. Immunology"]
[6131,"W","W01050809","W01050809",5,"NO",true,null,"DISPOSITIVI MEDICO - DIAGNOSTICI IN VITRO","STANDARD E CALIBRATORI  (IMMUNOINFETTIVOLOGIA/NAT)","IN VITRO DIAGNOSTIC MEDICAL DEVICES ","STANDARDS AND CALIBRATORS - INFECT. IMMUNOLOGY/NAT","Standards And Calibrators - Infect. Immunology/Nat"]
[6142,"W","W01050901","W01050901",5,"NO",true,null,"DISPOSITIVI MEDICO - DIAGNOSTICI IN VITRO","BATTERIOLOGIA - TEST RAPIDI E \"POINT OF CARE\"","IN VITRO DIAGNOSTIC MEDICAL DEVICES ","BACTERIOLOGY - RT & POC","Bacteriology - Rt & Poc"]
[6153,"W","W01050902","W01050902",5,"NO",true,null,"DISPOSITIVI MEDICO - DIAGNOSTICI IN VITRO","VIRUS DELL'EPATITE - TEST RAPIDI E \"POINT OF CARE\"","IN VITRO DIAGNOSTIC MEDICAL DEVICES ","HEPATITIS VIRUSES - RT & POC","Hepatitis Viruses - Rt & Poc"]
[6157,"W","W01050903","W01050903",5,"NO",true,null,"DISPOSITIVI MEDICO - DIAGNOSTICI IN VITRO","RETROVIRUS - TEST RAPIDI E \"POINT OF CARE\"","IN VITRO DIAGNOSTIC MEDICAL DEVICES ","RETROVIRUSES RT & POC","Retroviruses Rt & Poc"]
[6162,"W","W01050904","W01050904",5,"NO",true,null,"DISPOSITIVI MEDICO - DIAGNOSTICI IN VITRO","PARASSITOLOGIA - TEST RAPIDI","IN VITRO DIAGNOSTIC MEDICAL DEVICES ","PARASITOLOGY RT & POC","Parasitology Rt & Poc"]
[6165,"W","W01050940","W01050940",5,"NO",true,null,"DISPOSITIVI MEDICO - DIAGNOSTICI IN VITRO","CONTROLLI , STANDARD, CALIBRATORI  PER IMMUNOLOGIA INFETTIVA/NAT- TEST RAPIDI E POINT OF CARE","IN VITRO DIAGNOSTIC MEDICAL DEVICES ","CONTROLS, STANDARDS AND CALIBRATORS INFECTIOUS IMMUNOLOGY/NAT - RT & POC","Controls, Standards And Calibrators Infectious Immunology/Nat - Rt & Poc"]
[6168,"W","W01050990","W01050990",5,"NO",true,null,"DISPOSITIVI MEDICO - DIAGNOSTICI IN VITRO","VIROLOGIA - TEST RAPIDI E \"POINT OF CARE\" - VARI","IN VITRO DIAGNOSTIC MEDICAL DEVICES ","OTHER VIROLOGY RT & POC","Other Virology Rt & Poc"]
[6177,"W","W01059001","W01059001",5,"NO",true,null,"DISPOSITIVI MEDICO - DIAGNOSTICI IN VITRO","IMMUNOINFETTIVOLOGIA - REAGENTI NAS","IN VITRO DIAGNOSTIC MEDICAL DEVICES ","INFECTIOUS IMMUNOLOGY ","Infectious Immunology "]
[6181,"W","W01059002","W01059002",5,"NO",true,null,"DISPOSITIVI MEDICO - DIAGNOSTICI IN VITRO","REAGENTI IMMUNOINFETTIVOLOGIA - ALTRI","IN VITRO DIAGNOSTIC MEDICAL DEVICES ","OTHER INFECTIOUS IMMUNOLOGY REAGENTS","Other Infectious Immunology Reagents"]
[6186,"W","W01060101","W01060101",5,"NO",true,null,"DISPOSITIVI MEDICO - DIAGNOSTICI IN VITRO","DISORDINI MONOGENETICI","IN VITRO DIAGNOSTIC MEDICAL DEVICES ","MONOGENETIC DISORDERS","Monogenetic Disorders"]
[6203,"W","W01060102","W01060102",5,"NO",true,null,"DISPOSITIVI MEDICO - DIAGNOSTICI IN VITRO","DISORDINI POLIGENETICI","IN VITRO DIAGNOSTIC MEDICAL DEVICES ","POLYGENETIC DISORDERS","Polygenetic Disorders"]
[6212,"W","W01060103","W01060103",5,"NO",true,null,"DISPOSITIVI MEDICO - DIAGNOSTICI IN VITRO","DISORDINI CROMOSOMICI","IN VITRO DIAGNOSTIC MEDICAL DEVICES ","CHROMOSOMAL DISORDERS","Chromosomal Disorders"]
[6219,"W","W01060104","W01060104",5,"NO",true,null,"DISPOSITIVI MEDICO - DIAGNOSTICI IN VITRO","POLIMORFISMI","IN VITRO DIAGNOSTIC MEDICAL DEVICES ","POLYMORPHISMS","Polymorphisms"]
[6223,"W","W01060201","W01060201",5,"YES",true,null,"DISPOSITIVI MEDICO - DIAGNOSTICI IN VITRO","P53","IN VITRO DIAGNOSTIC MEDICAL DEVICES ","P53","P53"]
[6224,"W","W01060202","W01060202",5,"YES",true,null,"DISPOSITIVI MEDICO - DIAGNOSTICI IN VITRO","K-RAS","IN VITRO DIAGNOSTIC MEDICAL DEVICES ","K-RAS","K-Ras"]
[6225,"W","W01060203","W01060203",5,"YES",true,null,"DISPOSITIVI MEDICO - DIAGNOSTICI IN VITRO","BRCA 1+2","IN VITRO DIAGNOSTIC MEDICAL DEVICES ","BRCA 1+2","Brca 1+2"]
[6226,"W","W01060204","W01060204",5,"YES",true,null,"DISPOSITIVI MEDICO - DIAGNOSTICI IN VITRO","RET","IN VITRO DIAGNOSTIC MEDICAL DEVICES ","RET","Ret"]
[6227,"W","W01060205","W01060205",5,"YES",true,null,"DISPOSITIVI MEDICO - DIAGNOSTICI IN VITRO","C-MYC","IN VITRO DIAGNOSTIC MEDICAL DEVICES ","C-MYC","C-Myc"]
[6228,"W","W01060206","W01060206",5,"YES",true,null,"DISPOSITIVI MEDICO - DIAGNOSTICI IN VITRO","HNPCC","IN VITRO DIAGNOSTIC MEDICAL DEVICES ","HNPCC","Hnpcc"]
[6229,"W","W01060207","W01060207",5,"YES",true,null,"DISPOSITIVI MEDICO - DIAGNOSTICI IN VITRO","APC","IN VITRO DIAGNOSTIC MEDICAL DEVICES ","APC","Apc"]
[6230,"W","W01060208","W01060208",5,"YES",true,null,"DISPOSITIVI MEDICO - DIAGNOSTICI IN VITRO","T(9;22)","IN VITRO DIAGNOSTIC MEDICAL DEVICES ","T (9;22)","T (9;22)"]
[6231,"W","W01060209","W01060209",5,"YES",true,null,"DISPOSITIVI MEDICO - DIAGNOSTICI IN VITRO","T(8;14)","IN VITRO DIAGNOSTIC MEDICAL DEVICES ","T (8;14)","T (8;14)"]
[6232,"W","W01060210","W01060210",5,"YES",true,null,"DISPOSITIVI MEDICO - DIAGNOSTICI IN VITRO","T(14;18)","IN VITRO DIAGNOSTIC MEDICAL DEVICES ","T (14;18)","T (14;18)"]
[6233,"W","W01060211","W01060211",5,"YES",{"$f":"C386=D386","v":true},null,"DISPOSITIVI MEDICO - DIAGNOSTICI IN VITRO","INV (16)","IN VITRO DIAGNOSTIC MEDICAL DEVICES ","INV (16)","Inv (16)"]
[6234,"W","W01060212","W01060212",5,"YES",true,null,"DISPOSITIVI MEDICO - DIAGNOSTICI IN VITRO","TELOMERASI","IN VITRO DIAGNOSTIC MEDICAL DEVICES ","TELOMERASE",{"$f":"PROPER(L387)","v":"Telomerase"}]
[6235,"W","W01060213","W01060213",5,"YES",true,null,"DISPOSITIVI MEDICO - DIAGNOSTICI IN VITRO","HER-2/NEU","IN VITRO DIAGNOSTIC MEDICAL DEVICES ","HER-2/NEU (BREAST CANCER)","Her-2/Neu (Breast Cancer)"]
[6236,"W","W01060214","W01060214",5,"YES",true,null,"DISPOSITIVI MEDICO - DIAGNOSTICI IN VITRO","CANCRO COLORETTALE (MSI-H/DMMR)","IN VITRO DIAGNOSTIC MEDICAL DEVICES ","COLORECTAL CANCER (MSI-H / DMMR)","Colorectal Cancer (Msi-H / Dmmr)"]
[6237,"W","W01060215","W01060215",5,"YES",true,null,"DISPOSITIVI MEDICO - DIAGNOSTICI IN VITRO","CANCRO DELLA VESCICA RILEVAMENTO/MONITORAGGIO","IN VITRO DIAGNOSTIC MEDICAL DEVICES ","BLADDER CANCER DETECTION / MONITORING","Bladder Cancer Detection / Monitoring"]
[6238,"W","W01060299","W01060299",5,"YES",true,null,"DISPOSITIVI MEDICO - DIAGNOSTICI IN VITRO","TEST PER ALTERAZIONI GENETICHE O CROMOSOMICHE ACQUISITE - ALTRI","IN VITRO DIAGNOSTIC MEDICAL DEVICES ","TESTS FOR ACQUIRED GENETIC OR CHROMOSOMAL ALTERATIONS - OTHER","Tests For Acquired Genetic Or Chromosomal Alterations - Other"]
[6240,"W","W01060301","W01060301",5,"NO",true,null,"DISPOSITIVI MEDICO - DIAGNOSTICI IN VITRO","TEST DI FARMACOGENOMICA","IN VITRO DIAGNOSTIC MEDICAL DEVICES ","PHARMACOGENOMICS","Pharmacogenomics"]
[6247,"W","W02010101","W02010101",5,"NO",true,null,"DISPOSITIVI MEDICO - DIAGNOSTICI IN VITRO","ANALIZZATORI MULTIPARAMETRICI PER CHIMICA CLINICA","IN VITRO DIAGNOSTIC MEDICAL DEVICES ","CHEMISTRY ANALYSERS","Chemistry Analysers"]
[6260,"W","W02010102","W02010102",5,"NO",true,null,"DISPOSITIVI MEDICO - DIAGNOSTICI IN VITRO","ANALIZZATORI A PANNELLI LIMITATI SPECIALISTICI PER CHIMICA CLINICA","IN VITRO DIAGNOSTIC MEDICAL DEVICES ","LIMITED PANEL CHEMISTRY ANALYSERS","Limited Panel Chemistry Analysers"]
[6276,"W","W02010199","W02010199",5,"YES",true,null,"DISPOSITIVI MEDICO - DIAGNOSTICI IN VITRO","STRUMENTAZIONE PER CHIMICA CLINICA - ALTRA","IN VITRO DIAGNOSTIC MEDICAL DEVICES ","CHEMISTRY INSTRUMENTS - OTHER","Chemistry Instruments - Other"]
[6278,"W","W02010201","W02010201",5,"NO",true,null,"DISPOSITIVI MEDICO - DIAGNOSTICI IN VITRO","ANALIZZATORI AUTOMATICI PER IMMUNOCHIMICA","IN VITRO DIAGNOSTIC MEDICAL DEVICES ","AUTOMATED IMMUNOCHEMISTRY ANALYSERS","Automated Immunochemistry Analysers"]
[6287,"W","W02010202","W02010202",5,"NO",true,null,"DISPOSITIVI MEDICO - DIAGNOSTICI IN VITRO","ANALIZZATORI A PANNELLI LIMITATI SPECIALISTICI PER IMMUNOCHIMICA","IN VITRO DIAGNOSTIC MEDICAL DEVICES ","LIMITED PANEL IMMUNOCHEMISTRY ANALYSERS","Limited Panel Immunochemistry Analysers"]
[6298,"W","W02010299","W02010299",5,"YES",true,null,"DISPOSITIVI MEDICO - DIAGNOSTICI IN VITRO","STRUMENTAZIONE PER IMMUNOCHIMICA - ALTRA","IN VITRO DIAGNOSTIC MEDICAL DEVICES ","IMMUNOCHEMISTRY INSTRUMENTS - OTHER","Immunochemistry Instruments - Other"]
[6300,"W","W02010301","W02010301",5,"NO",true,null,"DISPOSITIVI MEDICO - DIAGNOSTICI IN VITRO","ANALIZZATORI MULTIPARAMETRICI A PANNELLO MISTO","IN VITRO DIAGNOSTIC MEDICAL DEVICES ","MIXED PANEL MULTIPARAMETER ANALYSERS","Mixed Panel Multiparameter Analysers"]
[6308,"W","W02010399","W02010399",5,"YES",true,null,"DISPOSITIVI MEDICO - DIAGNOSTICI IN VITRO","STRUMENTAZIONE PER CHIMICA CLINICA / IMMUNOCHIMICA INTEGRATA/MODULARE - ALTRA","IN VITRO DIAGNOSTIC MEDICAL DEVICES ","INTEGRATED / MODULAR CHEMISTRY / IMMUNOCHEMISTRY INSTRUMENTS - OTHER","Integrated / Modular Chemistry / Immunochemistry Instruments - Other"]
[6310,"W","W02010401","W02010401",5,"NO",true,null,"DISPOSITIVI MEDICO - DIAGNOSTICI IN VITRO","EMOGASANALIZZATORI","IN VITRO DIAGNOSTIC MEDICAL DEVICES ","BLOOD GAS ANALYSERS","Blood Gas Analysers"]
[6317,"W","W02010402","W02010402",5,"NO",true,null,"DISPOSITIVI MEDICO - DIAGNOSTICI IN VITRO","ANALIZZATORI A PANNELLI LIMITATI SPECIALISTICI PER EMOGASANALISI / ELETTROLITI","IN VITRO DIAGNOSTIC MEDICAL DEVICES ","LIMITED PANEL ANALYSERS FOR BLOOD GAS ANALYSIS / ELECTROLYTES","Limited Panel Analysers For Blood Gas Analysis / Electrolytes"]
[6326,"W","W02010499","W02010499",5,"YES",true,null,"DISPOSITIVI MEDICO - DIAGNOSTICI IN VITRO","STRUMENTAZIONE PER EMOGASANALISI / ELETTROLITI - ALTRA","IN VITRO DIAGNOSTIC MEDICAL DEVICES ","BLOOD GAS ANALYSIS / ELECTROLYTE INSTRUMENTS - OTHER","Blood Gas Analysis / Electrolyte Instruments - Other"]
[6328,"W","W02010501","W02010501",5,"NO",true,null,"DISPOSITIVI MEDICO - DIAGNOSTICI IN VITRO","STRUMENTAZIONE PER ELETTROFORESI","IN VITRO DIAGNOSTIC MEDICAL DEVICES ","ELECTROPHORESIS INSTRUMENTS","Electrophoresis Instruments"]
[6347,"W","W02010502","W02010502",5,"NO",true,null,"DISPOSITIVI MEDICO - DIAGNOSTICI IN VITRO","STRUMENTAZIONE PER CROMATOGRAFIA (HPLC)","IN VITRO DIAGNOSTIC MEDICAL DEVICES ","CHROMATOGRAPHY INSTRUMENTS (HPLC)","Chromatography Instruments (Hplc)"]
[6355,"W","W02010601","W02010601",5,"NO",true,null,"DISPOSITIVI MEDICO - DIAGNOSTICI IN VITRO","MONITORAGGIO DEL DIABETE","IN VITRO DIAGNOSTIC MEDICAL DEVICES ","DIABETES MONITORING","Diabetes Monitoring"]
[6364,"W","W02010690","W02010690",5,"NO",true,null,"DISPOSITIVI MEDICO - DIAGNOSTICI IN VITRO","STRUMENTAZIONE VARIA CHIMICA CLINICA / IMMUNOCHIMICA TEST RAPIDI (\"POINT OF CARE\" E/O URGENZA)","IN VITRO DIAGNOSTIC MEDICAL DEVICES ","VARIOUS RAPID TEST CHEMISTRY / IMMUNOCHEMISTRY INSTRUMENTS (\"POINT OF CARE\" AND/OR EMERGENCY)","Various Rapid Test Chemistry / Immunochemistry Instruments (\"Point Of Care\" And/Or Emergency)"]
[6376,"W","W02010701","W02010701",5,"YES",true,null,"DISPOSITIVI MEDICO - DIAGNOSTICI IN VITRO","ANALIZZATORI DA LABORATORIO PER URINE-  STRUMENTAZIONE","IN VITRO DIAGNOSTIC MEDICAL DEVICES ","URINALYSIS (UR) - LABORATORY ANALYSERS- INSTRUMENTS","Urinalysis (Ur) - Laboratory Analysers- Instruments"]
[6377,"W","W02010780","W02010780",5,"YES",true,null,"DISPOSITIVI MEDICO - DIAGNOSTICI IN VITRO","ANALIZZATORI DA LABORATORIO PER URINE - ACCESSORI HARDWARE","IN VITRO DIAGNOSTIC MEDICAL DEVICES ","URINALYSIS (UR) - LABORATORY ANALYSERS - HARDWARE ACCESSORIES","Urinalysis (Ur) - Laboratory Analysers - Hardware Accessories"]
[6378,"W","W02010782","W02010782",5,"YES",true,null,"DISPOSITIVI MEDICO - DIAGNOSTICI IN VITRO","ANALIZZATORI DA LABORATORIO PER URINE - ACCESSORI SOFTWARE","IN VITRO DIAGNOSTIC MEDICAL DEVICES ","URINALYSIS (UR) - LABORATORY ANALYSERS - SOFTWARE ACCESSORIES","Urinalysis (Ur) - Laboratory Analysers - Software Accessories"]
[6379,"W","W02010785","W02010785",5,"YES",true,null,"DISPOSITIVI MEDICO - DIAGNOSTICI IN VITRO","ANALIZZATORI DA LABORATORIO PER URINE- COMPONENTI ACCESSORI CONSUMABILI","IN VITRO DIAGNOSTIC MEDICAL DEVICES ","URINALYSIS (UR) - LABORATORY ANALYSERS - CONSUMABLES","Urinalysis (Ur) - Laboratory Analysers - Consumables"]
[6380,"W","W02010792","W02010792",5,"YES",true,null,"DISPOSITIVI MEDICO - DIAGNOSTICI IN VITRO","ANALIZZATORI DA LABORATORIO PER URINE - DISPOSITIVI MEDICI SOFTWARE IVD","IN VITRO DIAGNOSTIC MEDICAL DEVICES ","URINALYSIS (UR) - LABORATORY ANALYSERS- IVD MEDICAL DEVICE SOFTWARE ","Urinalysis (Ur) - Laboratory Analysers- Ivd Medical Device Software "]
[6383,"W","W02020101","W02020101",5,"NO",true,null,"DISPOSITIVI MEDICO - DIAGNOSTICI IN VITRO","CONTAGLOBULI AUTOMATICI DIFFERENZIALI A 5 POPOLAZIONI","IN VITRO DIAGNOSTIC MEDICAL DEVICES ","AUTOMATED 5 PART DIFFERENTIAL HEMATOLOGY ANALYSERS","Automated 5 Part Differential Hematology Analysers"]
[6391,"W","W02020102","W02020102",5,"NO",true,null,"DISPOSITIVI MEDICO - DIAGNOSTICI IN VITRO","ANALIZZATORI A PANNELLI LIMITATI SPECIALISTICI PER CONTA CELLULARE","IN VITRO DIAGNOSTIC MEDICAL DEVICES ","LIMITED PANEL CELL COUNTING ANALYSERS","Limited Panel Cell Counting Analysers"]
[6399,"W","W02020199","W02020199",5,"YES",true,null,"DISPOSITIVI MEDICO - DIAGNOSTICI IN VITRO","STRUMENTAZIONE PER CONTA CELLULARE - ALTRA","IN VITRO DIAGNOSTIC MEDICAL DEVICES ","CELL COUNTING INSTRUMENTS - OTHER","Cell Counting Instruments - Other"]
[6401,"W","W02020201","W02020201",5,"NO",true,null,"DISPOSITIVI MEDICO - DIAGNOSTICI IN VITRO","COAGULOMETRI","IN VITRO DIAGNOSTIC MEDICAL DEVICES ","COAGULOMETERS","Coagulometers"]
[6408,"W","W02020290","W02020290",5,"NO",true,null,"DISPOSITIVI MEDICO - DIAGNOSTICI IN VITRO","STRUMENTAZIONE VARIA PER EMOSTASI","IN VITRO DIAGNOSTIC MEDICAL DEVICES ","VARIOUS HEMOSTASIS INSTRUMENTS","Various Hemostasis Instruments"]
[6416,"W","W02020301","W02020301",5,"NO",true,null,"DISPOSITIVI MEDICO - DIAGNOSTICI IN VITRO","ANALIZZATORI GRUPPO SANGUIGNO","IN VITRO DIAGNOSTIC MEDICAL DEVICES ","BLOOD GROUPING ANALYSERS","Blood Grouping Analysers"]
[6423,"W","W02020302","W02020302",5,"NO",true,null,"DISPOSITIVI MEDICO - DIAGNOSTICI IN VITRO","ANALIZZATORI A PANNELLI LIMITATI SPECIALISTICI PER LA DETERMINAZIONE DEL GRUPPO SANGUIGNO","IN VITRO DIAGNOSTIC MEDICAL DEVICES ","LIMITED PANEL BLOOD GROUPING ANALYSERS","Limited Panel Blood Grouping Analysers"]
[6431,"W","W02020399","W02020399",5,"YES",true,null,"DISPOSITIVI MEDICO - DIAGNOSTICI IN VITRO","STRUMENTAZIONE PER LA DETERMINAZIONE DEL GRUPPO SANGUIGNO - ALTRA","IN VITRO DIAGNOSTIC MEDICAL DEVICES ","BLOOD GROUPING INSTRUMENTS - OTHER","Blood Grouping Instruments - Other"]
[6433,"W","W02020401","W02020401",5,"NO",true,null,"DISPOSITIVI MEDICO - DIAGNOSTICI IN VITRO","CITOFLUORIMETRI","IN VITRO DIAGNOSTIC MEDICAL DEVICES ","CYTOFLOWMETERS","Cytoflowmeters"]
[6441,"W","W02020499","W02020499",5,"YES",true,null,"DISPOSITIVI MEDICO - DIAGNOSTICI IN VITRO","STRUMENTAZIONE PER CITOMETRIA A FLUSSO - ALTRA","IN VITRO DIAGNOSTIC MEDICAL DEVICES ","FLOW CYTOMETRY INSTRUMENTS - OTHER","Flow Cytometry Instruments - Other"]
[6443,"W","W02020501","W02020501",5,"YES",true,null,"DISPOSITIVI MEDICO - DIAGNOSTICI IN VITRO","ANALIZZATORI CAMPIONI ISTOLOGICI","IN VITRO DIAGNOSTIC MEDICAL DEVICES ","HISTOLOGICAL SAMPLES ANALYSERS","Histological Samples Analysers"]
[6444,"W","W02020502","W02020502",5,"YES",true,null,"DISPOSITIVI MEDICO - DIAGNOSTICI IN VITRO","SISTEMI PER SCREENING CERVICALE (PAP TEST)","IN VITRO DIAGNOSTIC MEDICAL DEVICES ","CERVICAL SCREENING SYSTEMS","Cervical Screening Systems"]
[6445,"W","W02020503","W02020503",5,"NO",true,null,"DISPOSITIVI MEDICO - DIAGNOSTICI IN VITRO","STRUMENTAZIONE PER INDAGINI MICROSCOPICHE DI LABORATORIO","IN VITRO DIAGNOSTIC MEDICAL DEVICES ","LABORATORY INSTRUMENTS FOR MICROSCOPIC INVESTIGATIONS","Laboratory Instruments For Microscopic Investigations"]
[6454,"W","W02020590","W02020590",5,"NO",true,null,"DISPOSITIVI MEDICO - DIAGNOSTICI IN VITRO","STRUMENTAZIONE VARIA PER PROCESSAZIONE IN ISTOLOGIA / CITOLOGIA","IN VITRO DIAGNOSTIC MEDICAL DEVICES ","VARIOUS PROCESSING INSTRUMENTS FOR HYSTOLOGY / CYTOLOGY","Various Processing Instruments For Hystology / Cytology"]
[6478,"W","W02020601","W02020601",5,"YES",true,null,"DISPOSITIVI MEDICO - DIAGNOSTICI IN VITRO","STRUMENTAZIONE PER CONTA CELLULARE TEST RAPIDI","IN VITRO DIAGNOSTIC MEDICAL DEVICES ","RAPID TEST CELL COUNT INSTRUMENTS","Rapid Test Cell Count Instruments"]
[6479,"W","W02020602","W02020602",5,"YES",true,null,"DISPOSITIVI MEDICO - DIAGNOSTICI IN VITRO","STRUMENTAZIONE PER EMOSTASI TEST RAPIDI","IN VITRO DIAGNOSTIC MEDICAL DEVICES ","RAPID TEST HEMOSTASIS INSTRUMENTS","Rapid Test Hemostasis Instruments"]
[6480,"W","W02020680","W02020680",5,"YES",true,null,"DISPOSITIVI MEDICO - DIAGNOSTICI IN VITRO","STRUMENTAZIONE PER EMATOLOGIA / EMOSTASI / IMMUNOEMATOLOGIA / ISTOLOGIA / CITOLOGIA TEST RAPIDI - ACCESSORI HARDWARE","IN VITRO DIAGNOSTIC MEDICAL DEVICES ","RAPID TEST HEMATOLOGY / HISTOLOGY / CYTOLOGY INSTRUMENTS - HARDWARE ACCESSORIES","Rapid Test Hematology / Histology / Cytology Instruments - Hardware Accessories"]
[6481,"W","W02020682","W02020682",5,"YES",true,null,"DISPOSITIVI MEDICO - DIAGNOSTICI IN VITRO","STRUMENTAZIONE PER EMATOLOGIA / EMOSTASI / IMMUNOEMATOLOGIA / ISTOLOGIA / CITOLOGIA TEST RAPIDI - ACCESSORI SOFTWARE","IN VITRO DIAGNOSTIC MEDICAL DEVICES ","RAPID TEST HEMATOLOGY / HISTOLOGY / CYTOLOGY INSTRUMENTS - SOFTWARE ACCESSORIES","Rapid Test Hematology / Histology / Cytology Instruments - Software Accessories"]
[6482,"W","W02020685","W02020685",5,"YES",true,null,"DISPOSITIVI MEDICO - DIAGNOSTICI IN VITRO","STRUMENTAZIONE PER EMATOLOGIA / EMOSTASI / IMMUNOEMATOLOGIA / ISTOLOGIA / CITOLOGIA TEST RAPIDI - MATERIALI SPECIFICI","IN VITRO DIAGNOSTIC MEDICAL DEVICES ","RAPID TEST HEMATOLOGY / HISTOLOGY / CYTOLOGY INSTRUMENTS - CONSUMABLES","Rapid Test Hematology / Histology / Cytology Instruments - Consumables"]
[6483,"W","W02020692","W02020692",5,"YES",true,null,"DISPOSITIVI MEDICO - DIAGNOSTICI IN VITRO","STRUMENTAZIONE PER EMATOLOGIA / EMOSTASI / IMMUNOEMATOLOGIA / ISTOLOGIA / CITOLOGIA TEST RAPIDI - DISPOSITIVI MEDICI SOFTWARE IVD","IN VITRO DIAGNOSTIC MEDICAL DEVICES ","RAPID TEST HEMATOLOGY / HISTOLOGY / CYTOLOGY INSTRUMENTS - IVD MEDICAL DEVICE SOFTWARE","Rapid Test Hematology / Histology / Cytology Instruments - Ivd Medical Device Software"]
[6484,"W","W02020699","W02020699",5,"YES",true,null,"DISPOSITIVI MEDICO - DIAGNOSTICI IN VITRO","STRUMENTAZIONE PER EMATOLOGIA / EMOSTASI / IMMUNOEMATOLOGIA / ISTOLOGIA / CITOLOGIA TEST RAPIDI - ALTRA","IN VITRO DIAGNOSTIC MEDICAL DEVICES ","RAPID TEST HEMATOLOGY / HISTOLOGY / CYTOLOGY INSTRUMENTS - OTHER","Rapid Test Hematology / Histology / Cytology Instruments - Other"]
[6486,"W","W02029001","W02029001",5,"YES",true,null,"DISPOSITIVI MEDICO - DIAGNOSTICI IN VITRO","APPARECCHIATURE PER VELOCITA` DI ERITRO-SEDIMENTAZIONE","IN VITRO DIAGNOSTIC MEDICAL DEVICES ","ERYTHROCYTE SEDIMENTATION RATE DEVICES","Erythrocyte Sedimentation Rate Devices"]
[6487,"W","W02029002","W02029002",5,"YES",true,null,"DISPOSITIVI MEDICO - DIAGNOSTICI IN VITRO","APPARECCHIATURE PER IL TRATTAMENTO FOTODINAMICO DEL SANGUE","IN VITRO DIAGNOSTIC MEDICAL DEVICES ","BLOOD PHOTODYNAMIC TREATMENT UNITS","Blood Photodynamic Treatment Units"]
[6488,"W","W02029003","W02029003",5,"YES",true,null,"DISPOSITIVI MEDICO - DIAGNOSTICI IN VITRO","ESTRATTORI AUTOMATICI DI EMOCOMPONENTI","IN VITRO DIAGNOSTIC MEDICAL DEVICES ","AUTOMATED BLOOD COMPONENT EXTRACTORS","Automated Blood Component Extractors"]
[6489,"W","W02029005","W02029005",5,"YES",true,null,"DISPOSITIVI MEDICO - DIAGNOSTICI IN VITRO","PREPARATORI PER CITOFLUORIMETRIA","IN VITRO DIAGNOSTIC MEDICAL DEVICES ","CYTOFLUOROMETRIC PREPARATION UNITS","Cytofluorometric Preparation Units"]
[6490,"W","W02029006","W02029006",5,"YES",true,null,"DISPOSITIVI MEDICO - DIAGNOSTICI IN VITRO","SEPARATORI CELLULARE","IN VITRO DIAGNOSTIC MEDICAL DEVICES ","APHERESIS UNITS","Apheresis Units"]
[6491,"W","W02029007","W02029007",5,"YES",true,null,"DISPOSITIVI MEDICO - DIAGNOSTICI IN VITRO","APPARECCHIATURE PER SEPARAZIONE CELLULARE IMMUNOMAGNETICA","IN VITRO DIAGNOSTIC MEDICAL DEVICES ","IMMUNOMAGNETIC CELLULAR SEPARATION SYSTEMS","Immunomagnetic Cellular Separation Systems"]
[6492,"W","W02029008","W02029008",5,"YES",true,null,"DISPOSITIVI MEDICO - DIAGNOSTICI IN VITRO","SALDATORI DI TUBI","IN VITRO DIAGNOSTIC MEDICAL DEVICES ","TUBING WELDERS","Tubing Welders"]
[6493,"W","W02029009","W02029009",5,"YES",true,null,"DISPOSITIVI MEDICO - DIAGNOSTICI IN VITRO","SPREMISACCHE","IN VITRO DIAGNOSTIC MEDICAL DEVICES ","BLOOD BAG PRESSES","Blood Bag Presses"]
[6494,"W","W02029010","W02029010",5,"YES",true,null,"DISPOSITIVI MEDICO - DIAGNOSTICI IN VITRO","SALDATORI DI SACCHE","IN VITRO DIAGNOSTIC MEDICAL DEVICES ","BAG SEALERS","Bag Sealers"]
[6495,"W","W02029080","W02029080",5,"YES",true,null,"DISPOSITIVI MEDICO - DIAGNOSTICI IN VITRO","STRUMENTAZIONE VARIA PER EMATOLOGIA / EMOSTASI / IMMUNOEMATOLOGIA / ISTOLOGIA / CITOLOGIA - ACCESSORI HARDWARE","IN VITRO DIAGNOSTIC MEDICAL DEVICES ","VARIOUS HEMATOLOGY / HISTOLOGY / CYTOLOGY INSTRUMENTS - HARDWARE ACCESSORIES","Various Hematology / Histology / Cytology Instruments - Hardware Accessories"]
[6496,"W","W02029082","W02029082",5,"YES",true,null,"DISPOSITIVI MEDICO - DIAGNOSTICI IN VITRO","STRUMENTAZIONE VARIA PER EMATOLOGIA / EMOSTASI / IMMUNOEMATOLOGIA / ISTOLOGIA / CITOLOGIA - ACCESSORI SOFTWARE","IN VITRO DIAGNOSTIC MEDICAL DEVICES ","VARIOUS HEMATOLOGY / HISTOLOGY / CYTOLOGY INSTRUMENTS - SOFTWARE ACCESSORIES","Various Hematology / Histology / Cytology Instruments - Software Accessories"]
[6497,"W","W02029085","W02029085",5,"YES",true,null,"DISPOSITIVI MEDICO - DIAGNOSTICI IN VITRO","STRUMENTAZIONE VARIA PER EMATOLOGIA / EMOSTASI / IMMUNOEMATOLOGIA / ISTOLOGIA / CITOLOGIA - MATERIALI SPECIFICI","IN VITRO DIAGNOSTIC MEDICAL DEVICES ","VARIOUS HEMATOLOGY / HISTOLOGY / CYTOLOGY INSTRUMENTS - CONSUMABLES","Various Hematology / Histology / Cytology Instruments - Consumables"]
[6498,"W","W02029092","W02029092",5,"YES",true,null,"DISPOSITIVI MEDICO - DIAGNOSTICI IN VITRO","STRUMENTAZIONE VARIA PER EMATOLOGIA / EMOSTASI / IMMUNOEMATOLOGIA / ISTOLOGIA / CITOLOGIA - DISPOSITIVI MEDICI SOFTWARE IVD","IN VITRO DIAGNOSTIC MEDICAL DEVICES ","VARIOUS HEMATOLOGY / HISTOLOGY / CYTOLOGY INSTRUMENTS - IVD MEDICAL DEVICE SOFTWARE","Various Hematology / Histology / Cytology Instruments - Ivd Medical Device Software"]
[6499,"W","W02029099","W02029099",5,"YES",true,null,"DISPOSITIVI MEDICO - DIAGNOSTICI IN VITRO","STRUMENTAZIONE VARIA PER EMATOLOGIA / EMOSTASI / IMMUNOEMATOLOGIA / ISTOLOGIA / CITOLOGIA - ALTRA","IN VITRO DIAGNOSTIC MEDICAL DEVICES ","VARIOUS HEMATOLOGY / HISTOLOGY / CYTOLOGY INSTRUMENTS - OTHER","Various Hematology / Histology / Cytology Instruments - Other"]
[6502,"W","W02030101","W02030101",5,"NO",true,null,"DISPOSITIVI MEDICO - DIAGNOSTICI IN VITRO","APPARECCHIATURE PER ANTIBIOGRAMMA ED IDENTIFICAZIONE MICROBICA","IN VITRO DIAGNOSTIC MEDICAL DEVICES ","ANTIBIOTIC SUSCEPTIBILITY ANALYSERS","Antibiotic Susceptibility Analysers"]
[6507,"W","W02030199","W02030199",5,"YES",true,null,"DISPOSITIVI MEDICO - DIAGNOSTICI IN VITRO","STRUMENTAZIONE PER MICROBIOLOGIA SUSCETTIBILITA' / IDENTIFICAZIONE - ALTRA","IN VITRO DIAGNOSTIC MEDICAL DEVICES ","ANTIBIOTIC SUSCEPTIBILITY ANALYSERS - OTHER","Antibiotic Susceptibility Analysers - Other"]
[6509,"W","W02030201","W02030201",5,"YES",{"$f":"C450=D450","v":true},null,"DISPOSITIVI MEDICO - DIAGNOSTICI IN VITRO","ANALIZZATORI AUTOMATICI EMOCOLTURE","IN VITRO DIAGNOSTIC MEDICAL DEVICES ","AUTOMATED BLOOD CULTURE ANALYSERS","Automated Blood Culture Analysers"]
[6510,"W","W02030299","W02030299",5,"YES",true,null,"DISPOSITIVI MEDICO - DIAGNOSTICI IN VITRO","STRUMENTAZIONE PER EMOCOLTURE E MICOBATTERI - ALTRA","IN VITRO DIAGNOSTIC MEDICAL DEVICES ","INSTRUMENTS FOR BLOOD CULTURES AND MYCOBACTERIA - OTHER",{"$f":"PROPER(L451)","v":"Instruments For Blood Cultures And Mycobacteria - Other"}]
[6516,"W","W02039001","W02039001",5,"YES",true,null,"DISPOSITIVI MEDICO - DIAGNOSTICI IN VITRO","CONTATORI DI COLONIE","IN VITRO DIAGNOSTIC MEDICAL DEVICES ","COLONY COUNTERS","Colony Counters"]
[6517,"W","W02039002","W02039002",5,"YES",true,null,"DISPOSITIVI MEDICO - DIAGNOSTICI IN VITRO","INCUBATORI AD ANIDRIDE CARBONICA","IN VITRO DIAGNOSTIC MEDICAL DEVICES ","CARBON DIOXIDE INCUBATORS","Carbon Dioxide Incubators"]
[6518,"W","W02039003","W02039003",5,"YES",true,null,"DISPOSITIVI MEDICO - DIAGNOSTICI IN VITRO","PREPARATORI AUTOMATICI PIASTRE","IN VITRO DIAGNOSTIC MEDICAL DEVICES ","PETRI DISH FILLERS","Petri Dish Fillers"]
[6519,"W","W02039004","W02039004",5,"YES",true,null,"DISPOSITIVI MEDICO - DIAGNOSTICI IN VITRO","PREPARATORI AUTOMATICI DI VETRINI","IN VITRO DIAGNOSTIC MEDICAL DEVICES ","AUTOMATED SLIDE PREPARATION UNITS","Automated Slide Preparation Units"]
[6520,"W","W02039005","W02039005",5,"YES",true,null,"DISPOSITIVI MEDICO - DIAGNOSTICI IN VITRO","PREPARATORI DI TERRENI","IN VITRO DIAGNOSTIC MEDICAL DEVICES ","CULTURE MEDIUM PREPARATION UNITS","Culture Medium Preparation Units"]
[6521,"W","W02039006","W02039006",5,"YES",true,null,"DISPOSITIVI MEDICO - DIAGNOSTICI IN VITRO","AMPLIFICATORI DI SEQUENZE NUCLEOTIDICHE","IN VITRO DIAGNOSTIC MEDICAL DEVICES ","DNA THERMAL CYCLERS","Dna Thermal Cyclers"]
[6522,"W","W02039080","W02039080",5,"YES",true,null,"DISPOSITIVI MEDICO - DIAGNOSTICI IN VITRO","STRUMENTAZIONE VARIA PER MICROBIOLOGIA - ACCESSORI HARDWARE","IN VITRO DIAGNOSTIC MEDICAL DEVICES ","VARIOUS MICROBIOLOGY INSTRUMENTS - HARDWARE ACCESSORIES","Various Microbiology Instruments - Hardware Accessories"]
[6523,"W","W02039082","W02039082",5,"YES",true,null,"DISPOSITIVI MEDICO - DIAGNOSTICI IN VITRO","STRUMENTAZIONE VARIA PER MICROBIOLOGIA - ACCESSORI SOFTWARE","IN VITRO DIAGNOSTIC MEDICAL DEVICES ","VARIOUS MICROBIOLOGY INSTRUMENTS - SOFTWARE ACCESSORIES","Various Microbiology Instruments - Software Accessories"]
[6524,"W","W02039085","W02039085",5,"YES",true,null,"DISPOSITIVI MEDICO - DIAGNOSTICI IN VITRO","STRUMENTAZIONE VARIA PER MICROBIOLOGIA - MATERIALI SPECIFICI","IN VITRO DIAGNOSTIC MEDICAL DEVICES ","VARIOUS MICROBIOLOGY INSTRUMENTS - CONSUMABLES","Various Microbiology Instruments - Consumables"]
[6525,"W","W02039092","W02039092",5,"YES",true,null,"DISPOSITIVI MEDICO - DIAGNOSTICI IN VITRO","STRUMENTAZIONE VARIA PER MICROBIOLOGIA - DISPOSITIVI MEDICI SOFTWARE IVD","IN VITRO DIAGNOSTIC MEDICAL DEVICES ","VARIOUS MICROBIOLOGY INSTRUMENTS - IVD MEDICAL DEVICE SOFTWARE","Various Microbiology Instruments - Ivd Medical Device Software"]
[6526,"W","W02039099","W02039099",5,"YES",true,null,"DISPOSITIVI MEDICO - DIAGNOSTICI IN VITRO","STRUMENTAZIONE VARIA PER MICROBIOLOGIA - ALTRA","IN VITRO DIAGNOSTIC MEDICAL DEVICES ","VARIOUS MICROBIOLOGY INSTRUMENTS - OTHER","Various Microbiology Instruments - Other"]
[6530,"W","W02050101","W02050101",5,"YES",true,null,"DISPOSITIVI MEDICO - DIAGNOSTICI IN VITRO","APPARECCHIATURE PER IBRIDAZIONE DI ACIDI NUCLEICI","IN VITRO DIAGNOSTIC MEDICAL DEVICES ","NUCLEIC ACID HYBRIDIZATION UNITS","Nucleic Acid Hybridization Units"]
[6531,"W","W02050102","W02050102",5,"YES",true,null,"DISPOSITIVI MEDICO - DIAGNOSTICI IN VITRO","BIOREATTORI PER CELLULE EUCARIOTICHE","IN VITRO DIAGNOSTIC MEDICAL DEVICES ","EUKARYOTIC CELL BIOREACTORS","Eukaryotic Cell Bioreactors"]
[6532,"W","W02050103","W02050103",5,"YES",true,null,"DISPOSITIVI MEDICO - DIAGNOSTICI IN VITRO","APPARECCHIATURE PER BLOTTING","IN VITRO DIAGNOSTIC MEDICAL DEVICES ","BLOTTING SYSTEMS","Blotting Systems"]
[6533,"W","W02050104","W02050104",5,"YES",true,null,"DISPOSITIVI MEDICO - DIAGNOSTICI IN VITRO","SISTEMI AUTOMATICI DI ELABORAZIONE DI CARIOTIPI","IN VITRO DIAGNOSTIC MEDICAL DEVICES ","KARYOTYPE PROCESSING AUTOMATED SYSTEMS","Karyotype Processing Automated Systems"]
[6534,"W","W02050105","W02050105",5,"YES",true,null,"DISPOSITIVI MEDICO - DIAGNOSTICI IN VITRO","APPARECCHIATURE PER ELETTROPORAZIONE","IN VITRO DIAGNOSTIC MEDICAL DEVICES ","ELECTROPORATION DEVICES","Electroporation Devices"]
[6535,"W","W02050106","W02050106",5,"YES",true,null,"DISPOSITIVI MEDICO - DIAGNOSTICI IN VITRO","ESTRATTORI DI ACIDI NUCLEICI","IN VITRO DIAGNOSTIC MEDICAL DEVICES ","DNA GENOMIC PREPARATION DEVICES","Dna Genomic Preparation Devices"]
[6536,"W","W02050107","W02050107",5,"YES",true,null,"DISPOSITIVI MEDICO - DIAGNOSTICI IN VITRO","LETTORI PRODOTTI FINALI AMPLIFICAZIONE","IN VITRO DIAGNOSTIC MEDICAL DEVICES ","MICRO-ARRAY SCANNERS","Micro-Array Scanners"]
[6537,"W","W02050108","W02050108",5,"YES",true,null,"DISPOSITIVI MEDICO - DIAGNOSTICI IN VITRO","LETTORI PER SISTEMA GENETICO","IN VITRO DIAGNOSTIC MEDICAL DEVICES ","GENETIC SYSTEM READERS","Genetic System Readers"]
[6538,"W","W02050109","W02050109",5,"YES",true,null,"DISPOSITIVI MEDICO - DIAGNOSTICI IN VITRO","STAZIONI DI LAVAGGIO PER INDAGINI CELLULARI E/O MOLECOLARI","IN VITRO DIAGNOSTIC MEDICAL DEVICES ","CELL WASHERS","Cell Washers"]
[6539,"W","W02050110","W02050110",5,"YES",true,null,"DISPOSITIVI MEDICO - DIAGNOSTICI IN VITRO","MICROINIETTORI","IN VITRO DIAGNOSTIC MEDICAL DEVICES ","MICROINJECTORS","Microinjectors"]
[6540,"W","W02050111","W02050111",5,"YES",true,null,"DISPOSITIVI MEDICO - DIAGNOSTICI IN VITRO","MISURATORI DI RESISTENZA ELETTRICA TRANSEPITELIALE","IN VITRO DIAGNOSTIC MEDICAL DEVICES ","EPITHELIAL VOLTOHMMETERS","Epithelial Voltohmmeters"]
[6541,"W","W02050112","W02050112",5,"YES",true,null,"DISPOSITIVI MEDICO - DIAGNOSTICI IN VITRO","SISTEMI PER IL MONITORAGGIO DELL'ESPRESSIONE GENICA","IN VITRO DIAGNOSTIC MEDICAL DEVICES ","GENIC EXPRESSION MONITORING SYSTEMS","Genic Expression Monitoring Systems"]
[6542,"W","W02050113","W02050113",5,"YES",true,null,"DISPOSITIVI MEDICO - DIAGNOSTICI IN VITRO","SINTETIZZATORI DI PEPTIDI","IN VITRO DIAGNOSTIC MEDICAL DEVICES ","PEPTIDE SYNTHESIZERS","Peptide Synthesizers"]
[6543,"W","W02050114","W02050114",5,"YES",true,null,"DISPOSITIVI MEDICO - DIAGNOSTICI IN VITRO","SCANNER PER BIOLOGIA MOLECOLARE","IN VITRO DIAGNOSTIC MEDICAL DEVICES ","MOLECULAR BIOLOGY SCANNERS","Molecular Biology Scanners"]
[6544,"W","W02050115","W02050115",5,"YES",true,null,"DISPOSITIVI MEDICO - DIAGNOSTICI IN VITRO","ANALIZZATORI DI SEQUENZE NUCLEOTIDICHE","IN VITRO DIAGNOSTIC MEDICAL DEVICES ","DNA SYNTHESIZERS","Dna Synthesizers"]
[6545,"W","W02050116","W02050116",5,"YES",true,null,"DISPOSITIVI MEDICO - DIAGNOSTICI IN VITRO","SISTEMI INTEGRATI PER ESTRAZIONE/AMPLIFICAZIONE/DETECTION DI ACIDI NUCLEICI","IN VITRO DIAGNOSTIC MEDICAL DEVICES ","NUCLEIC ACID TESTING INTEGRETED EXTRATION /AMPLIFICATION /DETECTION SYSTEMS","Nucleic Acid Testing Integreted Extration /Amplification /Detection Systems"]
[6546,"W","W02050180","W02050180",5,"YES",true,null,"DISPOSITIVI MEDICO - DIAGNOSTICI IN VITRO","STRUMENTAZIONE PER ANALISI DI ACIDI NUCLEICI TRANNE I MICRO-ARRAYS - ACCESSORI HARDWARE","IN VITRO DIAGNOSTIC MEDICAL DEVICES ","NUCLEIC ACID TESTING INSTRUMENTS EXCEPT MICRO-ARRAYS - HARDWARE ACCESSORIES","Nucleic Acid Testing Instruments Except Micro-Arrays - Hardware Accessories"]
[6547,"W","W02050182","W02050182",5,"YES",true,null,"DISPOSITIVI MEDICO - DIAGNOSTICI IN VITRO","STRUMENTAZIONE PER ANALISI DI ACIDI NUCLEICI TRANNE I MICRO-ARRAYS - ACCESSORI SOFTWARE","IN VITRO DIAGNOSTIC MEDICAL DEVICES ","NUCLEIC ACID TESTING INSTRUMENTS EXCEPT MICRO-ARRAYS - SOFTWARE ACCESSORIES","Nucleic Acid Testing Instruments Except Micro-Arrays - Software Accessories"]
[6548,"W","W02050185","W02050185",5,"YES",true,null,"DISPOSITIVI MEDICO - DIAGNOSTICI IN VITRO","STRUMENTAZIONE PER ANALISI DI ACIDI NUCLEICI TRANNE I MICRO-ARRAYS - MATERIALI SPECIFICI","IN VITRO DIAGNOSTIC MEDICAL DEVICES ","NUCLEIC ACID TESTING INSTRUMENTS EXCEPT MICRO-ARRAYS - CONSUMABLES","Nucleic Acid Testing Instruments Except Micro-Arrays - Consumables"]
[6549,"W","W02050192","W02050192",5,"YES",true,null,"DISPOSITIVI MEDICO - DIAGNOSTICI IN VITRO","STRUMENTAZIONE PER ANALISI DI ACIDI NUCLEICI TRANNE I MICRO-ARRAYS - DISPOSITIVI MEDICI SOFTWARE IVD","IN VITRO DIAGNOSTIC MEDICAL DEVICES ","NUCLEIC ACID TESTING INSTRUMENTS EXCEPT MICRO-ARRAYS - IVD MEDICAL DEVICE SOFTWARE","Nucleic Acid Testing Instruments Except Micro-Arrays - Ivd Medical Device Software"]
[6550,"W","W02050199","W02050199",5,"YES",true,null,"DISPOSITIVI MEDICO - DIAGNOSTICI IN VITRO","STRUMENTAZIONE PER ANALISI DI ACIDI NUCLEICI TRANNE I MICRO-ARRAYS - ALTRA","IN VITRO DIAGNOSTIC MEDICAL DEVICES ","NUCLEIC ACID TESTING INSTRUMENTS EXCEPT MICRO-ARRAYS - OTHER","Nucleic Acid Testing Instruments Except Micro-Arrays - Other"]
[6552,"W","W02050201","W02050201",5,"YES",true,null,"DISPOSITIVI MEDICO - DIAGNOSTICI IN VITRO","ANALIZZATORI DI MICRO-ARRAYS","IN VITRO DIAGNOSTIC MEDICAL DEVICES ","MICRO-ARRAY ANALYSERS","Micro-Array Analysers"]
[6553,"W","W02050202","W02050202",5,"YES",true,null,"DISPOSITIVI MEDICO - DIAGNOSTICI IN VITRO","PREPARATORI DI MICRO-ARRAYS","IN VITRO DIAGNOSTIC MEDICAL DEVICES ","MICRO-ARRAYS PREPARATION UNITS","Micro-Arrays Preparation Units"]
[6554,"W","W02050280","W02050280",5,"YES",true,null,"DISPOSITIVI MEDICO - DIAGNOSTICI IN VITRO","STRUMENTAZIONE PER MICRO-ARRAYS - ACCESSORI HARDWARE","IN VITRO DIAGNOSTIC MEDICAL DEVICES ","MICRO-ARRAY INSTRUMENTS - HARDWARE ACCESSORIES","Micro-Array Instruments - Hardware Accessories"]
[6555,"W","W02050282","W02050282",5,"YES",true,null,"DISPOSITIVI MEDICO - DIAGNOSTICI IN VITRO","STRUMENTAZIONE PER MICRO-ARRAYS - ACCESSORI SOFTWARE","IN VITRO DIAGNOSTIC MEDICAL DEVICES ","MICRO-ARRAY INSTRUMENTS - SOFTWARE ACCESSORIES","Micro-Array Instruments - Software Accessories"]
[6556,"W","W02050285","W02050285",5,"YES",true,null,"DISPOSITIVI MEDICO - DIAGNOSTICI IN VITRO","STRUMENTAZIONE PER MICRO-ARRAYS - MATERIALI SPECIFICI","IN VITRO DIAGNOSTIC MEDICAL DEVICES ","MICRO-ARRAY INSTRUMENTS - CONSUMABLES","Micro-Array Instruments - Consumables"]
[6557,"W","W02050292","W02050292",5,"YES",true,null,"DISPOSITIVI MEDICO - DIAGNOSTICI IN VITRO","STRUMENTAZIONE PER MICRO-ARRAYS - DISPOSITIVI MEDICI SOFTWARE IVD","IN VITRO DIAGNOSTIC MEDICAL DEVICES ","MICRO-ARRAY INSTRUMENTS - IVD MEDICAL DEVICE SOFTWARE","Micro-Array Instruments - Ivd Medical Device Software"]
[6558,"W","W02050299","W02050299",5,"YES",true,null,"DISPOSITIVI MEDICO - DIAGNOSTICI IN VITRO","STRUMENTAZIONE PER MICRO-ARRAYS - ALTRA","IN VITRO DIAGNOSTIC MEDICAL DEVICES ","MICRO-ARRAY INSTRUMENTS - OTHER","Micro-Array Instruments - Other"]
[6560,"W","W02050301","W02050301",5,"YES",true,null,"DISPOSITIVI MEDICO - DIAGNOSTICI IN VITRO","APPARECCHIATURE PER TEST SULL'ACIDO NUCLEICO - \"TEST RAPIDI E POINT OF CARE\"","IN VITRO DIAGNOSTIC MEDICAL DEVICES ","NUCLEIC ACID TESTING APPARATUSES - RAPID AND POINT OF CARE TESTS ","Nucleic Acid Testing Apparatuses - Rapid And Point Of Care Tests "]
[6561,"W","W02050380","W02050380",5,"YES",true,null,"DISPOSITIVI MEDICO - DIAGNOSTICI IN VITRO","STRUMENTAZIONE PER TEST SULL'ACIDO NUCLEICO - \"TEST RAPIDI E POINT OF CARE\" - ACCESSORI HARDWARE","IN VITRO DIAGNOSTIC MEDICAL DEVICES ","NUCLEIC ACID TESTING INSTRUMENTS - RAPID AND POINT OF CARE TESTS - HARDWARE ACCESSORIES","Nucleic Acid Testing Instruments - Rapid And Point Of Care Tests - Hardware Accessories"]
[6562,"W","W02050382","W02050382",5,"YES",true,null,"DISPOSITIVI MEDICO - DIAGNOSTICI IN VITRO","STRUMENTAZIONE PER TEST SULL'ACIDO NUCLEICO - \"TEST RAPIDI E POINT OF CARE\" - ACCESSORI SOFTWARE","IN VITRO DIAGNOSTIC MEDICAL DEVICES ","NUCLEIC ACID TESTING INSTRUMENTS- RAPID AND POINT OF CARE TESTS - SOFTWARE ACCESSORIES","Nucleic Acid Testing Instruments- Rapid And Point Of Care Tests - Software Accessories"]
[6563,"W","W02050385","W02050385",5,"YES",true,null,"DISPOSITIVI MEDICO - DIAGNOSTICI IN VITRO","STRUMENTAZIONE PER TEST SULL'ACIDO NUCLEICO - \"TEST RAPIDI E POINT OF CARE\" - MATERIALI SPECIFICI","IN VITRO DIAGNOSTIC MEDICAL DEVICES ","NUCLEIC ACID TESTING INSTRUMENTS - RAPID AND POINT OF CARE TESTS - CONSUMABLES","Nucleic Acid Testing Instruments - Rapid And Point Of Care Tests - Consumables"]
[6564,"W","W02050392","W02050392",5,"YES",true,null,"DISPOSITIVI MEDICO - DIAGNOSTICI IN VITRO","STRUMENTAZIONE PER TEST SULL'ACIDO NUCLEICO - \"TEST RAPIDI E POINT OF CARE\" - DISPOSITIVI MEDICI SOFTWARE IVD","IN VITRO DIAGNOSTIC MEDICAL DEVICES ","NUCLEIC ACID TESTING INSTRUMENTS - RAPID AND POINT OF CARE TESTS - IVD MEDICAL DEVICE SOFTWARE","Nucleic Acid Testing Instruments - Rapid And Point Of Care Tests - Ivd Medical Device Software"]
[6565,"W","W02050399","W02050399",5,"YES",true,null,"DISPOSITIVI MEDICO - DIAGNOSTICI IN VITRO","STRUMENTAZIONE PER TEST SULL'ACIDO NUCLEICO - \"TEST RAPIDI E POINT OF CARE\" - ALTRI","IN VITRO DIAGNOSTIC MEDICAL DEVICES ","NUCLEIC ACID TESTING INSTRUMENTS - RAPID AND POINT OF CARE TESTS - OTHER","Nucleic Acid Testing Instruments - Rapid And Point Of Care Tests - Other"]
[6568,"W","W02060101","W02060101",5,"YES",true,null,"DISPOSITIVI MEDICO - DIAGNOSTICI IN VITRO","SISTEMI AUTOMATICI PER LA GESTIONE DELLA FASE PRE E POST-ANALITICA","IN VITRO DIAGNOSTIC MEDICAL DEVICES ","AUTOMATED SYSTEMS FOR THE MANAGEMENT OF PRE AND POST-ANALYSIS","Automated Systems For The Management Of Pre And Post-Analysis"]
[6569,"W","W02060102","W02060102",5,"YES",true,null,"DISPOSITIVI MEDICO - DIAGNOSTICI IN VITRO","SISTEMI AUTOMATICI PER IL TRASPORTO DEI CAMPIONI","IN VITRO DIAGNOSTIC MEDICAL DEVICES ","AUTOMATED SAMPLE TRANSPORT SYSTEMS","Automated Sample Transport Systems"]
[6570,"W","W02060180","W02060180",5,"YES",true,null,"DISPOSITIVI MEDICO - DIAGNOSTICI IN VITRO","SISTEMI ROBOTIZZATI PER LA PROCESSAZIONE DEI CAMPIONI - ACCESSORI HARDWARE","IN VITRO DIAGNOSTIC MEDICAL DEVICES ","ROBOTIC SAMPLE PROCESSING SYSTEMS - HARDWARE ACCESSORIES","Robotic Sample Processing Systems - Hardware Accessories"]
[6571,"W","W02060182","W02060182",5,"YES",true,null,"DISPOSITIVI MEDICO - DIAGNOSTICI IN VITRO","SISTEMI ROBOTIZZATI PER LA PROCESSAZIONE DEI CAMPIONI - ACCESSORI SOFTWARE","IN VITRO DIAGNOSTIC MEDICAL DEVICES ","ROBOTIC SAMPLE PROCESSING SYSTEMS - SOFTWARE ACCESSORIES","Robotic Sample Processing Systems - Software Accessories"]
[6572,"W","W02060185","W02060185",5,"YES",true,null,"DISPOSITIVI MEDICO - DIAGNOSTICI IN VITRO","SISTEMI ROBOTIZZATI PER LA PROCESSAZIONE DEI CAMPIONI - MATERIALI SPECIFICI","IN VITRO DIAGNOSTIC MEDICAL DEVICES ","ROBOTIC SAMPLE PROCESSING SYSTEMS - CONSUMABLES","Robotic Sample Processing Systems - Consumables"]
[6573,"W","W02060192","W02060192",5,"YES",true,null,"DISPOSITIVI MEDICO - DIAGNOSTICI IN VITRO","SISTEMI ROBOTIZZATI PER LA PROCESSAZIONE DEI CAMPIONI - DISPOSITIVI MEDICI SOFTWARE IVD","IN VITRO DIAGNOSTIC MEDICAL DEVICES ","ROBOTIC SAMPLE PROCESSING SYSTEMS - IVD MEDICAL DEVICE SOFTWARE","Robotic Sample Processing Systems - Ivd Medical Device Software"]
[6574,"W","W02060199","W02060199",5,"YES",true,null,"DISPOSITIVI MEDICO - DIAGNOSTICI IN VITRO","SISTEMI ROBOTIZZATI PER LA PROCESSAZIONE DEI CAMPIONI - ALTRI","IN VITRO DIAGNOSTIC MEDICAL DEVICES ","ROBOTIC SAMPLE PROCESSING SYSTEMS - OTHER","Robotic Sample Processing Systems - Other"]
[6576,"W","W02060201","W02060201",5,"YES",true,null,"DISPOSITIVI MEDICO - DIAGNOSTICI IN VITRO","SISTEMI PER ARCHIVIAZIONE DEI CAMPIONI POST ANALISI- STRUMENTAZIONE","IN VITRO DIAGNOSTIC MEDICAL DEVICES ","POST-ANALYSIS SAMPLE ARCHIVING SYSTEMS - INSTRUMENTS","Post-Analysis Sample Archiving Systems - Instruments"]
[6577,"W","W02060280","W02060280",5,"YES",true,null,"DISPOSITIVI MEDICO - DIAGNOSTICI IN VITRO","SISTEMI PER ARCHIVIAZIONE DEI CAMPIONI POST ANALISI - ACCESSORI HARDWARE","IN VITRO DIAGNOSTIC MEDICAL DEVICES ","POST-ANALYSIS SAMPLE ARCHIVING SYSTEMS - HARDWARE ACCESSORIES","Post-Analysis Sample Archiving Systems - Hardware Accessories"]
[6578,"W","W02060282","W02060282",5,"YES",true,null,"DISPOSITIVI MEDICO - DIAGNOSTICI IN VITRO","SISTEMI PER ARCHIVIAZIONE DEI CAMPIONI POST ANALISI - ACCESSORI SOFTWARE","IN VITRO DIAGNOSTIC MEDICAL DEVICES ","POST-ANALYSIS SAMPLE ARCHIVING SYSTEMS - SOFTWARE ACCESSORIES","Post-Analysis Sample Archiving Systems - Software Accessories"]
[6579,"W","W02060285","W02060285",5,"YES",true,null,"DISPOSITIVI MEDICO - DIAGNOSTICI IN VITRO","SISTEMI PER ARCHIVIAZIONE DEI CAMPIONI POST ANALISI- MATERIALI SPECIFICI","IN VITRO DIAGNOSTIC MEDICAL DEVICES ","POST-ANALYSIS SAMPLE ARCHIVING SYSTEMS - CONSUMABLES","Post-Analysis Sample Archiving Systems - Consumables"]
[6580,"W","W02060292","W02060292",5,"YES",true,null,"DISPOSITIVI MEDICO - DIAGNOSTICI IN VITRO","SISTEMI PER ARCHIVIAZIONE DEI CAMPIONI POST ANALISI- DISPOSITIVI MEDICI SOFTWARE IVD","IN VITRO DIAGNOSTIC MEDICAL DEVICES ","POST-ANALYSIS SAMPLE ARCHIVING SYSTEMS - IVD MEDICAL DEVICE SOFTWARE","Post-Analysis Sample Archiving Systems - Ivd Medical Device Software"]
[6581,"W","W02060299","W02060299",5,"YES",true,null,"DISPOSITIVI MEDICO - DIAGNOSTICI IN VITRO","SISTEMI PER ARCHIVIAZIONE DEI CAMPIONI POST ANALISI -ALTRI","IN VITRO DIAGNOSTIC MEDICAL DEVICES ","POST-ANALYSIS SAMPLE ARCHIVING SYSTEMS - OTHER","Post-Analysis Sample Archiving Systems - Other"]
[6583,"W","W02069001","W02069001",5,"YES",true,null,"DISPOSITIVI MEDICO - DIAGNOSTICI IN VITRO","CAMPIONATORI AUTOMATICI","IN VITRO DIAGNOSTIC MEDICAL DEVICES ","AUTOSAMPLERS","Autosamplers"]
[6584,"W","W02069002","W02069002",5,"YES",true,null,"DISPOSITIVI MEDICO - DIAGNOSTICI IN VITRO","APPARECCHIATURE PER APERTURA PROVETTE","IN VITRO DIAGNOSTIC MEDICAL DEVICES ","TEST TUBE APPARATUSES","Test Tube Apparatuses"]
[6585,"W","W02069003","W02069003",5,"YES",true,null,"DISPOSITIVI MEDICO - DIAGNOSTICI IN VITRO","CENTRIFUGHE","IN VITRO DIAGNOSTIC MEDICAL DEVICES ","CENTRIFUGES","Centrifuges"]
[6586,"W","W02069004","W02069004",5,"YES",true,null,"DISPOSITIVI MEDICO - DIAGNOSTICI IN VITRO","CITOCENTRIFUGHE","IN VITRO DIAGNOSTIC MEDICAL DEVICES ","CYTOCENTRIFUGES","Cytocentrifuges"]
[6587,"W","W02069005","W02069005",5,"YES",{"$f":"C514=D514","v":true},null,"DISPOSITIVI MEDICO - DIAGNOSTICI IN VITRO","CENTRIFUGHE REFRIGERATE","IN VITRO DIAGNOSTIC MEDICAL DEVICES ","REFRIGERATED CENTRIFUGES","Refrigerated Centrifuges"]
[6588,"W","W02069006","W02069006",5,"YES",true,null,"DISPOSITIVI MEDICO - DIAGNOSTICI IN VITRO","ULTRACENTRIFUGHE","IN VITRO DIAGNOSTIC MEDICAL DEVICES ","ULTRACENTRIFUGES",{"$f":"PROPER(L515)","v":"Ultracentrifuges"}]
[6589,"W","W02069080","W02069080",5,"YES",true,null,"DISPOSITIVI MEDICO - DIAGNOSTICI IN VITRO","STRUMENTAZIONE VARIA PER LA PROCESSAZIONE DEI CAMPIONI - ACCESSORI HARDWARE","IN VITRO DIAGNOSTIC MEDICAL DEVICES ","VARIOUS SAMPLE PROCESSING INSTRUMENTS - HARDWARE ACCESSORIES","Various Sample Processing Instruments - Hardware Accessories"]
[6590,"W","W02069082","W02069082",5,"YES",true,null,"DISPOSITIVI MEDICO - DIAGNOSTICI IN VITRO","STRUMENTAZIONE VARIA PER LA PROCESSAZIONE DEI CAMPIONI - ACCESSORI SOFTWARE","IN VITRO DIAGNOSTIC MEDICAL DEVICES ","VARIOUS SAMPLE PROCESSING INSTRUMENTS - SOFTWARE ACCESSORIES","Various Sample Processing Instruments - Software Accessories"]
[6591,"W","W02069085","W02069085",5,"YES",true,null,"DISPOSITIVI MEDICO - DIAGNOSTICI IN VITRO","STRUMENTAZIONE VARIA PER LA PROCESSAZIONE DEI CAMPIONI - MATERIALI SPECIFICI","IN VITRO DIAGNOSTIC MEDICAL DEVICES ","VARIOUS SAMPLE PROCESSING INSTRUMENTS - CONSUMABLES","Various Sample Processing Instruments - Consumables"]
[6592,"W","W02069092","W02069092",5,"YES",true,null,"DISPOSITIVI MEDICO - DIAGNOSTICI IN VITRO","STRUMENTAZIONE VARIA PER LA PROCESSAZIONE DEI CAMPIONI - DISPOSITIVI MEDICI SOFTWARE IVD","IN VITRO DIAGNOSTIC MEDICAL DEVICES ","VARIOUS SAMPLE PROCESSING INSTRUMENTS - IVD MEDICAL DEVICE SOFTWARE","Various Sample Processing Instruments - Ivd Medical Device Software"]
[6593,"W","W02069099","W02069099",5,"YES",true,null,"DISPOSITIVI MEDICO - DIAGNOSTICI IN VITRO","STRUMENTAZIONE VARIA PER LA PROCESSAZIONE DEI CAMPIONI - ALTRA","IN VITRO DIAGNOSTIC MEDICAL DEVICES ","VARIOUS SAMPLE PROCESSING INSTRUMENTS - OTHER","Various Sample Processing Instruments - Other"]
[6596,"W","W02070101","W02070101",5,"YES",true,null,"DISPOSITIVI MEDICO - DIAGNOSTICI IN VITRO","BILANCE ANALITICHE","IN VITRO DIAGNOSTIC MEDICAL DEVICES ","ANALYTICAL SCALES","Analytical Scales"]
[6597,"W","W02070102","W02070102",5,"YES",true,null,"DISPOSITIVI MEDICO - DIAGNOSTICI IN VITRO","BILANCE TECNICHE","IN VITRO DIAGNOSTIC MEDICAL DEVICES ","TECHNICAL SCALES","Technical Scales"]
[6598,"W","W02070103","W02070103",5,"YES",true,null,"DISPOSITIVI MEDICO - DIAGNOSTICI IN VITRO","BILANCE PRELIEVI","IN VITRO DIAGNOSTIC MEDICAL DEVICES ","BLOOD SCALES","Blood Scales"]
[6601,"W","W02070301","W02070301",5,"YES",true,null,"DISPOSITIVI MEDICO - DIAGNOSTICI IN VITRO","CAPPE BIOLOGICHE","IN VITRO DIAGNOSTIC MEDICAL DEVICES ","BIOLOGICAL HOODS","Biological Hoods"]
[6602,"W","W02070302","W02070302",5,"YES",true,null,"DISPOSITIVI MEDICO - DIAGNOSTICI IN VITRO","CAPPE ASPIRANTI","IN VITRO DIAGNOSTIC MEDICAL DEVICES ","FUME HOODS","Fume Hoods"]
[6603,"W","W02070303","W02070303",5,"YES",true,null,"DISPOSITIVI MEDICO - DIAGNOSTICI IN VITRO","CAPPE STERILI","IN VITRO DIAGNOSTIC MEDICAL DEVICES ","LAMINAR AIRFLOW HOODS","Laminar Airflow Hoods"]
[6604,"W","W02070304","W02070304",5,"YES",true,null,"DISPOSITIVI MEDICO - DIAGNOSTICI IN VITRO","ARMADI ASPIRATI A FILTRAZIONE CHIMICA","IN VITRO DIAGNOSTIC MEDICAL DEVICES ","CHEMICAL FILTRATION AIR CLOSETS","Chemical Filtration Air Closets"]
[6606,"W","W02070401","W02070401",5,"YES",true,null,"DISPOSITIVI MEDICO - DIAGNOSTICI IN VITRO","AGITATORI DA LABORATORIO","IN VITRO DIAGNOSTIC MEDICAL DEVICES ","LABORATORY SHAKERS","Laboratory Shakers"]
[6607,"W","W02070402","W02070402",5,"YES",true,null,"DISPOSITIVI MEDICO - DIAGNOSTICI IN VITRO","MOLINI DA LABORATORIO","IN VITRO DIAGNOSTIC MEDICAL DEVICES ","GRINDING MILLS","Grinding Mills"]
[6608,"W","W02070403","W02070403",5,"YES",true,null,"DISPOSITIVI MEDICO - DIAGNOSTICI IN VITRO","OMOGENEIZZATORI","IN VITRO DIAGNOSTIC MEDICAL DEVICES ","HOMOGENIZERS","Homogenizers"]
[6609,"W","W02070404","W02070404",5,"YES",true,null,"DISPOSITIVI MEDICO - DIAGNOSTICI IN VITRO","MISCELATORI DI SACCHE","IN VITRO DIAGNOSTIC MEDICAL DEVICES ","BLOOD BAG MIXERS","Blood Bag Mixers"]
[6611,"W","W02079001","W02079001",5,"YES",true,null,"DISPOSITIVI MEDICO - DIAGNOSTICI IN VITRO","BAGNI TERMOSTATICI","IN VITRO DIAGNOSTIC MEDICAL DEVICES ","THERMOSTATIC WATER BATHS","Thermostatic Water Baths"]
[6612,"W","W02079002","W02079002",5,"YES",true,null,"DISPOSITIVI MEDICO - DIAGNOSTICI IN VITRO","DILUITORI","IN VITRO DIAGNOSTIC MEDICAL DEVICES ","DILUTERS","Diluters"]
[6613,"W","W02079003","W02079003",5,"YES",true,null,"DISPOSITIVI MEDICO - DIAGNOSTICI IN VITRO","DOSATORI","IN VITRO DIAGNOSTIC MEDICAL DEVICES ","DISPENSERS","Dispensers"]
[6614,"W","W02079004","W02079004",5,"YES",true,null,"DISPOSITIVI MEDICO - DIAGNOSTICI IN VITRO","EVAPORATORI","IN VITRO DIAGNOSTIC MEDICAL DEVICES ","EVAPORATORS","Evaporators"]
[6615,"W","W02079006","W02079006",5,"YES",true,null,"DISPOSITIVI MEDICO - DIAGNOSTICI IN VITRO","BECCHI BUNSEN","IN VITRO DIAGNOSTIC MEDICAL DEVICES ","BUNSEN BURNERS","Bunsen Burners"]
[6616,"W","W02079007","W02079007",5,"YES",true,null,"DISPOSITIVI MEDICO - DIAGNOSTICI IN VITRO","LIOFILIZZATORI","IN VITRO DIAGNOSTIC MEDICAL DEVICES ","FREEZE DRYERS","Freeze Dryers"]
[6617,"W","W02079008","W02079008",5,"YES",true,null,"DISPOSITIVI MEDICO - DIAGNOSTICI IN VITRO","MANTELLI RISCALDANTE","IN VITRO DIAGNOSTIC MEDICAL DEVICES ","HEATING MANTLES","Heating Mantles"]
[6618,"W","W02079009","W02079009",5,"YES",true,null,"DISPOSITIVI MEDICO - DIAGNOSTICI IN VITRO","PH-METRI","IN VITRO DIAGNOSTIC MEDICAL DEVICES ","PH METERS","Ph Meters"]
[6619,"W","W02079011","W02079011",5,"YES",true,null,"DISPOSITIVI MEDICO - DIAGNOSTICI IN VITRO","APPARECCHIATURE PER PUNTO DI FUSIONE","IN VITRO DIAGNOSTIC MEDICAL DEVICES ","MELTING POINT DEVICES","Melting Point Devices"]
[6620,"W","W02079012","W02079012",5,"YES",true,null,"DISPOSITIVI MEDICO - DIAGNOSTICI IN VITRO","PIASTRE RISCALDANTI","IN VITRO DIAGNOSTIC MEDICAL DEVICES ","LABORATORY HOTPLATES","Laboratory Hotplates"]
[6621,"W","W02079013","W02079013",5,"YES",true,null,"DISPOSITIVI MEDICO - DIAGNOSTICI IN VITRO","RIFRATTOMETRI CLINICI","IN VITRO DIAGNOSTIC MEDICAL DEVICES ","LABORATORY REFRACTOMETERS","Laboratory Refractometers"]
[6622,"W","W02079014","W02079014",5,"YES",true,null,"DISPOSITIVI MEDICO - DIAGNOSTICI IN VITRO","STUFE ESSICCATRICI","IN VITRO DIAGNOSTIC MEDICAL DEVICES ","LABWARE DRYERS","Labware Dryers"]
[6623,"W","W02079015","W02079015",5,"YES",true,null,"DISPOSITIVI MEDICO - DIAGNOSTICI IN VITRO","TITOLATORI CHIMICI","IN VITRO DIAGNOSTIC MEDICAL DEVICES ","LABORATORY TITRATORS","Laboratory Titrators"]
[6624,"W","W02079016","W02079016",5,"YES",true,null,"DISPOSITIVI MEDICO - DIAGNOSTICI IN VITRO","VISCOSIMETRI","IN VITRO DIAGNOSTIC MEDICAL DEVICES ","VISCOSIMETERS","Viscosimeters"]
[6625,"W","W02079017","W02079017",5,"YES",true,null,"DISPOSITIVI MEDICO - DIAGNOSTICI IN VITRO","OSMOMETRI","IN VITRO DIAGNOSTIC MEDICAL DEVICES ","OSMOMETERS","Osmometers"]
[6626,"W","W02079080","W02079080",5,"YES",true,null,"DISPOSITIVI MEDICO - DIAGNOSTICI IN VITRO","STRUMENTAZIONE IVD VARIA DI USO GENERALE - ACCESSORI HARDWARE","IN VITRO DIAGNOSTIC MEDICAL DEVICES ","VARIOUS GENERAL PURPOSE IVD INSTRUMENTS - HARDWARE ACCESSORIES","Various General Purpose Ivd Instruments - Hardware Accessories"]
[6627,"W","W02079082","W02079082",5,"YES",true,null,"DISPOSITIVI MEDICO - DIAGNOSTICI IN VITRO","STRUMENTAZIONE IVD VARIA DI USO GENERALE - ACCESSORI SOFTWARE","IN VITRO DIAGNOSTIC MEDICAL DEVICES ","VARIOUS GENERAL PURPOSE IVD INSTRUMENTS - SOFTWARE ACCESSORIES ","Various General Purpose Ivd Instruments - Software Accessories "]
[6628,"W","W02079085","W02079085",5,"YES",true,null,"DISPOSITIVI MEDICO - DIAGNOSTICI IN VITRO","STRUMENTAZIONE IVD VARIA DI USO GENERALE - MATERIALI SPECIFICI","IN VITRO DIAGNOSTIC MEDICAL DEVICES ","VARIOUS GENERAL PURPOSE IVD INSTRUMENTS - CONSUMABLES","Various General Purpose Ivd Instruments - Consumables"]
[6629,"W","W02079092","W02079092",5,"YES",true,null,"DISPOSITIVI MEDICO - DIAGNOSTICI IN VITRO","STRUMENTAZIONE IVD VARIA DI USO GENERALE - DISPOSITIVI MEDICI SOFTWARE IVD","IN VITRO DIAGNOSTIC MEDICAL DEVICES ","VARIOUS GENERAL PURPOSE IVD INSTRUMENTS - IVD MEDICAL DEVICE SOFTWARE","Various General Purpose Ivd Instruments - Ivd Medical Device Software"]
[6630,"W","W02079099","W02079099",5,"YES",true,null,"DISPOSITIVI MEDICO - DIAGNOSTICI IN VITRO","STRUMENTAZIONE IVD VARIA DI USO GENERALE - ALTRA","IN VITRO DIAGNOSTIC MEDICAL DEVICES ","VARIOUS GENERAL PURPOSE IVD INSTRUMENTS - OTHER","Various General Purpose Ivd Instruments - Other"]
[6635,"W","W05010101","W05010101",5,"NO",true,null,"DISPOSITIVI MEDICO - DIAGNOSTICI IN VITRO","DISPOSITIVI PER RACCOLTA DI SANGUE VENOSO O ARTERIOSO","IN VITRO DIAGNOSTIC MEDICAL DEVICES ","VENOUS OR ARTERIOUS BLOOD COLLECTION DEVICES","Venous Or Arterious Blood Collection Devices"]
[6645,"W","W05010102","W05010102",5,"NO",true,null,"DISPOSITIVI MEDICO - DIAGNOSTICI IN VITRO","DISPOSITIVI PER RACCOLTA DI SANGUE CAPILLARE","IN VITRO DIAGNOSTIC MEDICAL DEVICES ","CAPILLARY BLOOD COLLECTION DEVICES","Capillary Blood Collection Devices"]
[6652,"W","W05010201","W05010201",5,"NO",true,null,"DISPOSITIVI MEDICO - DIAGNOSTICI IN VITRO","SIRINGHE PER RACCOLTA DI URINA","IN VITRO DIAGNOSTIC MEDICAL DEVICES ","URINE COLLECTION, SYRINGES","Urine Collection, Syringes"]
[6655,"W","W05010202","W05010202",5,"YES",true,null,"DISPOSITIVI MEDICO - DIAGNOSTICI IN VITRO","PROVETTE PER RACCOLTA DI URINA","IN VITRO DIAGNOSTIC MEDICAL DEVICES ","URINE COLLECTION, TUBES","Urine Collection, Tubes"]
[6656,"W","W05010203","W05010203",5,"YES",true,null,"DISPOSITIVI MEDICO - DIAGNOSTICI IN VITRO","CONTENITORI PER RACCOLTA DI URINA","IN VITRO DIAGNOSTIC MEDICAL DEVICES ","URINE COLLECTION, CONTAINERS","Urine Collection, Containers"]
[6657,"W","W05010280","W05010280",5,"YES",true,null,"DISPOSITIVI MEDICO - DIAGNOSTICI IN VITRO","DISPOSITIVI PER RACCOLTA DI URINA - ACCESSORI","IN VITRO DIAGNOSTIC MEDICAL DEVICES ","URINE COLLECTION DEVICES - ACCESSORIES","Urine Collection Devices - Accessories"]
[6658,"W","W05010299","W05010299",5,"YES",true,null,"DISPOSITIVI MEDICO - DIAGNOSTICI IN VITRO","DISPOSITIVI PER RACCOLTA DI URINA - ALTRI","IN VITRO DIAGNOSTIC MEDICAL DEVICES ","URINE COLLECTION DEVICES - OTHER","Urine Collection Devices - Other"]
[6661,"W","W05019001","W05019001",5,"YES",true,null,"DISPOSITIVI MEDICO - DIAGNOSTICI IN VITRO","DISPOSITIVI PER RACCOLTA DI FECI","IN VITRO DIAGNOSTIC MEDICAL DEVICES ","FAECES COLLECTION DEVICES","Faeces Collection Devices"]
[6662,"W","W05019002","W05019002",5,"YES",true,null,"DISPOSITIVI MEDICO - DIAGNOSTICI IN VITRO","DISPOSITIVI PER RACCOLTA DI SALIVA","IN VITRO DIAGNOSTIC MEDICAL DEVICES ","SALIVA COLLECTION DEVICES","Saliva Collection Devices"]
[6663,"W","W05019003","W05019003",5,"YES",true,null,"DISPOSITIVI MEDICO - DIAGNOSTICI IN VITRO","DISPOSITIVI PER RACCOLTA DI ESCREATO","IN VITRO DIAGNOSTIC MEDICAL DEVICES ","SPUTUM COLLECTION DEVICES","Sputum Collection Devices"]
[6664,"W","W05019005","W05019005",5,"YES",true,null,"DISPOSITIVI MEDICO - DIAGNOSTICI IN VITRO","FILTRI PER PRELIEVI BIOPTICI E TRAVASI","IN VITRO DIAGNOSTIC MEDICAL DEVICES ","BIOPTICAL COLLECTION, FILTERS","Bioptical Collection, Filters"]
[6665,"W","W05019099","W05019099",5,"YES",true,null,"DISPOSITIVI MEDICO - DIAGNOSTICI IN VITRO","DISPOSITIVI PER RACCOLTA DI CAMPIONI - ALTRI","IN VITRO DIAGNOSTIC MEDICAL DEVICES ","SAMPLES COLLECTION DEVICES - OTHER","Samples Collection Devices - Other"]
[6668,"W","W05020101","W05020101",5,"YES",true,null,"DISPOSITIVI MEDICO - DIAGNOSTICI IN VITRO","SACCHETTI PORTACAMPIONI","IN VITRO DIAGNOSTIC MEDICAL DEVICES ","SAMPLES TRANSPORT, POUCHES","Samples Transport, Pouches"]
[6669,"W","W05020102","W05020102",5,"YES",true,null,"DISPOSITIVI MEDICO - DIAGNOSTICI IN VITRO","SCATOLE PORTACAMPIONI","IN VITRO DIAGNOSTIC MEDICAL DEVICES ","SAMPLES TRANSPORT, BOXES","Samples Transport, Boxes"]
[6670,"W","W05020103","W05020103",5,"YES",true,null,"DISPOSITIVI MEDICO - DIAGNOSTICI IN VITRO","FLACONI PER TRASPORTO DI CAMPIONI","IN VITRO DIAGNOSTIC MEDICAL DEVICES ","SAMPLES TRANSPORT, BOTTLES","Samples Transport, Bottles"]
[6671,"W","W05020104","W05020104",5,"YES",true,null,"DISPOSITIVI MEDICO - DIAGNOSTICI IN VITRO","VASI PER TRASPORTO DI CAMPIONI","IN VITRO DIAGNOSTIC MEDICAL DEVICES ","SAMPLES TRANSPORT, VASES","Samples Transport, Vases"]
[6672,"W","W05020105","W05020105",5,"YES",true,null,"DISPOSITIVI MEDICO - DIAGNOSTICI IN VITRO","BUSTE E SACCHE PER TRASPORTO DI CAMPIONI","IN VITRO DIAGNOSTIC MEDICAL DEVICES ","SAMPLES TRANSPORT, BAGS","Samples Transport, Bags"]
[6673,"W","W05020106","W05020106",5,"YES",true,null,"DISPOSITIVI MEDICO - DIAGNOSTICI IN VITRO","CASSETTE PER BIOPSIA","IN VITRO DIAGNOSTIC MEDICAL DEVICES ","BIOPSY CARTRIDGES","Biopsy Cartridges"]
[6674,"W","W05020180","W05020180",5,"YES",true,null,"DISPOSITIVI MEDICO - DIAGNOSTICI IN VITRO","CONTENITORI PER TRASPORTO DI CAMPIONI - ACCESSORI","IN VITRO DIAGNOSTIC MEDICAL DEVICES ","SAMPLES TRANSPORT, CONTAINERS - ACCESSORIES","Samples Transport, Containers - Accessories"]
[6675,"W","W05020199","W05020199",5,"YES",true,null,"DISPOSITIVI MEDICO - DIAGNOSTICI IN VITRO","CONTENITORI PER TRASPORTO DI CAMPIONI - ALTRI","IN VITRO DIAGNOSTIC MEDICAL DEVICES ","SAMPLES TRANSPORT, CONTAINERS - OTHER","Samples Transport, Containers - Other"]
[6680,"W","W05030101","W05030101",5,"NO",true,null,"DISPOSITIVI MEDICO - DIAGNOSTICI IN VITRO","CONTENITORI IN VETRO PER ANALISI","IN VITRO DIAGNOSTIC MEDICAL DEVICES ","SAMPLES ANALYSES, GLASS CONTAINERS","Samples Analyses, Glass Containers"]
[6689,"W","W05030102","W05030102",5,"NO",true,null,"DISPOSITIVI MEDICO - DIAGNOSTICI IN VITRO","CONTENITORI IN MATERIALE PLASTICO PER ANALISI","IN VITRO DIAGNOSTIC MEDICAL DEVICES ","SAMPLES ANALYSES, PLASTIC CONTAINERS","Samples Analyses, Plastic Containers"]
[6709,"W","W05030199","W05030199",5,"YES",true,null,"DISPOSITIVI MEDICO - DIAGNOSTICI IN VITRO","CONTENITORI PER ANALISI - ALTRI","IN VITRO DIAGNOSTIC MEDICAL DEVICES ","SAMPLES ANALYSES, CONTAINERS - OTHER","Samples Analyses, Containers - Other"]
[6711,"W","W05030201","W05030201",5,"NO",true,null,"DISPOSITIVI MEDICO - DIAGNOSTICI IN VITRO","PIPETTE","IN VITRO DIAGNOSTIC MEDICAL DEVICES ","PIPETTES","Pipettes"]
[6717,"W","W05030202","W05030202",5,"NO",true,null,"DISPOSITIVI MEDICO - DIAGNOSTICI IN VITRO","PUNTALI PER PIPETTE","IN VITRO DIAGNOSTIC MEDICAL DEVICES ","PIPETTE TIPS","Pipette Tips"]
[6747,"W","W05030301","W05030301",5,"NO",true,null,"DISPOSITIVI MEDICO - DIAGNOSTICI IN VITRO","DISPOSITIVI PER COLTURA MICROBIOLOGICA","IN VITRO DIAGNOSTIC MEDICAL DEVICES ","MICROBIOLOGICAL CULTURE DEVICES","Microbiological Culture Devices"]
[6750,"W","W05030302","W05030302",5,"YES",{"$f":"C578=D578","v":true},null,"DISPOSITIVI MEDICO - DIAGNOSTICI IN VITRO","ANSE PER MICROBIOLOGIA","IN VITRO DIAGNOSTIC MEDICAL DEVICES ","MICROBIOLOGICAL CULTURE, LOOPS","Microbiological Culture, Loops"]
[6751,"W","W05030380","W05030380",5,"YES",true,null,"DISPOSITIVI MEDICO - DIAGNOSTICI IN VITRO","DISPOSITIVI PER LABORATORIO MICROBIOLOGICO - ACCESSORI","IN VITRO DIAGNOSTIC MEDICAL DEVICES ","MICROBIOLOGY DEVICES - ACCESSORIES",{"$f":"PROPER(L579)","v":"Microbiology Devices - Accessories"}]
[6752,"W","W05030399","W05030399",5,"YES",true,null,"DISPOSITIVI MEDICO - DIAGNOSTICI IN VITRO","DISPOSITIVI PER LABORATORIO MICROBIOLOGICO - ALTRI","IN VITRO DIAGNOSTIC MEDICAL DEVICES ","MICROBIOLOGY DEVICES - OTHER","Microbiology Devices - Other"]
[6754,"W","W05030401","W05030401",5,"NO",true,null,"DISPOSITIVI MEDICO - DIAGNOSTICI IN VITRO","CONTENITORI PER COLTURE CELLULARI E TESSUTALI","IN VITRO DIAGNOSTIC MEDICAL DEVICES ","CELL AND TISSUE CULTURES, CONTAINERS","Cell And Tissue Cultures, Containers"]
[6762,"W","W05030402","W05030402",5,"YES",true,null,"DISPOSITIVI MEDICO - DIAGNOSTICI IN VITRO","FILTRI PER COLTURE CELLULARI E TESSUTALI","IN VITRO DIAGNOSTIC MEDICAL DEVICES ","CELL AND TISSUE CULTURES, FILTERS","Cell And Tissue Cultures, Filters"]
[6763,"W","W05030480","W05030480",5,"YES",true,null,"DISPOSITIVI MEDICO - DIAGNOSTICI IN VITRO","DISPOSITIVI PER COLTURE CELLULARI E TESSUTALI - ALTRI ACCESSORI","IN VITRO DIAGNOSTIC MEDICAL DEVICES ","CELL AND TISSUE CULTURES DEVICES - OTHER ACCESSORIES","Cell And Tissue Cultures Devices - Other Accessories"]
[6764,"W","W05030499","W05030499",5,"YES",true,null,"DISPOSITIVI MEDICO - DIAGNOSTICI IN VITRO","DISPOSITIVI PER COLTURE CELLULARI E TESSUTALI - ALTRI","IN VITRO DIAGNOSTIC MEDICAL DEVICES ","CELL AND TISSUE CULTURES DEVICES - OTHER","Cell And Tissue Cultures Devices - Other"]
[6766,"W","W05030501","W05030501",5,"YES",true,null,"DISPOSITIVI MEDICO - DIAGNOSTICI IN VITRO","CASSETTE PER INCLUSIONE","IN VITRO DIAGNOSTIC MEDICAL DEVICES ","INCLUSION DEVICES, CASSETTES","Inclusion Devices, Cassettes"]
[6767,"W","W05030502","W05030502",5,"YES",true,null,"DISPOSITIVI MEDICO - DIAGNOSTICI IN VITRO","ANELLI RING PER INCLUSIONE","IN VITRO DIAGNOSTIC MEDICAL DEVICES ","INCLUSION DEVICES, RINGS","Inclusion Devices, Rings"]
[6768,"W","W05030580","W05030580",5,"YES",true,null,"DISPOSITIVI MEDICO - DIAGNOSTICI IN VITRO","DISPOSITIVI PER ANALISI ANATOMOPATOLOGICHE - ACCESSORI","IN VITRO DIAGNOSTIC MEDICAL DEVICES ","DEVICES FOR PATOLOGY TESTS - ACCESSORIES","Devices For Patology Tests - Accessories"]
[6769,"W","W05030599","W05030599",5,"YES",true,null,"DISPOSITIVI MEDICO - DIAGNOSTICI IN VITRO","DISPOSITIVI PER ANALISI ANATOMOPATOLOGICHE - ALTRI","IN VITRO DIAGNOSTIC MEDICAL DEVICES ","DEVICES FOR PATOLOGY TESTS - OTHER","Devices For Patology Tests - Other"]
[6771,"W","W05039001","W05039001",5,"NO",true,null,"DISPOSITIVI MEDICO - DIAGNOSTICI IN VITRO","DISPOSITIVI PER AGITAZIONE","IN VITRO DIAGNOSTIC MEDICAL DEVICES ","AGITATION DEVICES","Agitation Devices"]
[6775,"W","W05039002","W05039002",5,"NO",true,null,"DISPOSITIVI MEDICO - DIAGNOSTICI IN VITRO","VETRINI PER ANALISI DI CAMPIONI","IN VITRO DIAGNOSTIC MEDICAL DEVICES ","SLIDES FOR SAMPLES ANALYSIS","Slides For Samples Analysis"]
[6778,"W","W05039080","W05039080",5,"YES",true,null,"DISPOSITIVI MEDICO - DIAGNOSTICI IN VITRO","DISPOSITIVI PER ANALISI DI CAMPIONI - ALTRI ACCESSORI","IN VITRO DIAGNOSTIC MEDICAL DEVICES ","DEVICES FOR SAMPLES ANALYSES - OTHER ACCESSORIES","Devices For Samples Analyses - Other Accessories"]
[6779,"W","W05039099","W05039099",5,"YES",true,null,"DISPOSITIVI MEDICO - DIAGNOSTICI IN VITRO","DISPOSITIVI PER ANALISI DI CAMPIONI - ALTRI","IN VITRO DIAGNOSTIC MEDICAL DEVICES ","DEVICES FOR SAMPLES ANALYSES - OTHER","Devices For Samples Analyses - Other"]

{"sheet":"EMDN level 5","index":4,"n_rows":554,"n_cols":2,"rows_kept":554,"cut":false,"hidden":true,"merged":[]}
[]
[null,"CND CODE"]
[null,"W01010101"]
[null,"W01010102"]
[null,"W01010103"]
[null,"W01010104"]
[null,"W01010105"]
[null,"W01010106"]
[null,"W01010107"]
[null,"W01010108"]
[null,"W01010109"]
[null,"W01010110"]
[null,"W01010111"]
[null,"W01010112"]
[null,"W01010113"]
[null,"W01010114"]
[null,"W01010115"]
[null,"W01010116"]
[null,"W01010117"]
[null,"W01010118"]
[null,"W01010119"]
[null,"W01010120"]
[null,"W01010121"]
[null,"W01010122"]
[null,"W01010123"]
[null,"W01010124"]
[null,"W01010125"]
[null,"W01010126"]
[null,"W01010127"]
[null,"W01010128"]
[null,"W01010129"]
[null,"W01010130"]
[null,"W01010199"]
[null,"W01010201"]
[null,"W01010202"]
[null,"W01010203"]
[null,"W01010204"]
[null,"W01010205"]
[null,"W01010206"]
[null,"W01010207"]
[null,"W01010208"]
[null,"W01010209"]
[null,"W01010210"]
[null,"W01010211"]
[null,"W01010212"]
[null,"W01010213"]
[null,"W01010214"]
[null,"W01010215"]
[null,"W01010216"]
[null,"W01010217"]
[null,"W01010218"]
[null,"W01010219"]
[null,"W01010220"]
[null,"W01010221"]
[null,"W01010222"]
[null,"W01010223"]
[null,"W01010224"]
[null,"W01010225"]
[null,"W01010226"]
[null,"W01010227"]
[null,"W01010228"]
[null,"W01010229"]
[null,"W01010230"]
[null,"W01010231"]
[null,"W01010232"]
[null,"W01010233"]
[null,"W01010234"]
[null,"W01010235"]
[null,"W01010236"]
[null,"W01010299"]
[null,"W01010301"]
[null,"W01010302"]
[null,"W01010303"]
[null,"W01010304"]
[null,"W01010305"]
[null,"W01010306"]
[null,"W01010307"]
[null,"W01010308"]
[null,"W01010309"]
[null,"W01010399"]
[null,"W01010401"]
[null,"W01010402"]
[null,"W01010403"]
[null,"W01010404"]
[null,"W01010499"]
[null,"W01010501"]
[null,"W01010502"]
[null,"W01010503"]
[null,"W01010590"]
[null,"W01010601"]
[null,"W01010602"]
[null,"W01010603"]
[null,"W01010604"]
[null,"W01010606"]
[null,"W01010699"]
[null,"W01010701"]
[null,"W01010702"]
[null,"W01010703"]
[null,"W01010801"]
[null,"W01010802"]
[null,"W01010803"]
[null,"W01010804"]
[null,"W01010805"]
[null,"W01010899"]
[null,"W01019001"]
[null,"W01019002"]
[null,"W01019099"]
[null,"W01020101"]
[null,"W01020102"]
[null,"W01020103"]
[null,"W01020104"]
[null,"W01020190"]
[null,"W01020201"]
[null,"W01020202"]
[null,"W01020203"]
[null,"W01020204"]
[null,"W01020205"]
[null,"W01020206"]
[null,"W01020207"]
[null,"W01020208"]
[null,"W01020209"]
[null,"W01020299"]
[null,"W01020301"]
[null,"W01020302"]
[null,"W01020303"]
[null,"W01020390"]
[null,"W01020401"]
[null,"W01020402"]
[null,"W01020403"]
[null,"W01020404"]
[null,"W01020405"]
[null,"W01020406"]
[null,"W01020407"]
[null,"W01020408"]
[null,"W01020409"]
[null,"W01020410"]
[null,"W01020411"]
[null,"W01020499"]
[null,"W01020501"]
[null,"W01020502"]
[null,"W01020601"]
[null,"W01020602"]
[null,"W01020603"]
[null,"W01020604"]
[null,"W01020605"]
[null,"W01020606"]
[null,"W01020690"]
[null,"W01020701"]
[null,"W01020702"]
[null,"W01020703"]
[null,"W01020801"]
[null,"W01020802"]
[null,"W01020803"]
[null,"W01020804"]
[null,"W01020805"]
[null,"W01020806"]
[null,"W01020807"]
[null,"W01020899"]
[null,"W01020901"]
[null,"W01020902"]
[null,"W01021001"]
[null,"W01021002"]
[null,"W01021003"]
[null,"W01021090"]
[null,"W01021101"]
[null,"W01021102"]
[null,"W01021103"]
[null,"W01021104"]
[null,"W01021105"]
[null,"W01021106"]
[null,"W01021107"]
[null,"W01021108"]
[null,"W01021109"]
[null,"W01021110"]
[null,"W01021111"]
[null,"W01021112"]
[null,"W01021199"]
[null,"W01021201"]
[null,"W01021299"]
[null,"W01021301"]
[null,"W01021302"]
[null,"W01021303"]
[null,"W01021304"]
[null,"W01021305"]
[null,"W01021306"]
[null,"W01021307"]
[null,"W01021308"]
[null,"W01021309"]
[null,"W01021310"]
[null,"W01021311"]
[null,"W01021312"]
[null,"W01021313"]
[null,"W01021399"]
[null,"W01021499"]
[null,"W01021520"]
[null,"W01021521"]
[null,"W01021522"]
[null,"W01021601"]
[null,"W01021602"]
[null,"W01021603"]
[null,"W01021604"]
[null,"W01021605"]
[null,"W01021606"]
[null,"W01021607"]
[null,"W01021608"]
[null,"W01021609"]
[null,"W01021699"]
[null,"W01029001"]
[null,"W01029002"]
[null,"W01029003"]
[null,"W01029004"]
[null,"W01029099"]
[null,"W01030101"]
[null,"W01030102"]
[null,"W01030103"]
[null,"W01030105"]
[null,"W01030106"]
[null,"W01030107"]
[null,"W01030190"]
[null,"W01030199"]
[null,"W01030201"]
[null,"W01030202"]
[null,"W01030203"]
[null,"W01030204"]
[null,"W01030205"]
[null,"W01030206"]
[null,"W01030207"]
[null,"W01030208"]
[null,"W01030209"]
[null,"W01030299"]
[null,"W01030301"]
[null,"W01030302"]
[null,"W01030303"]
[null,"W01030304"]
[null,"W01030305"]
[null,"W01030309"]
[null,"W01030399"]
[null,"W01030401"]
[null,"W01030402"]
[null,"W01030403"]
[null,"W01030404"]
[null,"W01030405"]
[null,"W01030406"]
[null,"W01030499"]
[null,"W01030601"]
[null,"W01030602"]
[null,"W01030603"]
[null,"W01030604"]
[null,"W01030605"]
[null,"W01030606"]
[null,"W01030607"]
[null,"W01030608"]
[null,"W01030609"]
[null,"W01030699"]
[null,"W01030701"]
[null,"W01030702"]
[null,"W01030703"]
[null,"W01030704"]
[null,"W01030705"]
[null,"W01030706"]
[null,"W01030707"]
[null,"W01030708"]
[null,"W01030709"]
[null,"W01030710"]
[null,"W01030711"]
[null,"W01030799"]
[null,"W01030801"]
[null,"W01030802"]
[null,"W01030803"]
[null,"W01030804"]
[null,"W01030805"]
[null,"W01030806"]
[null,"W01040101"]
[null,"W01040102"]
[null,"W01040103"]
[null,"W01040104"]
[null,"W01040105"]
[null,"W01040106"]
[null,"W01040107"]
[null,"W01040108"]
[null,"W01040109"]
[null,"W01040206"]
[null,"W01040301"]
[null,"W01040302"]
[null,"W01040303"]
[null,"W01040304"]
[null,"W01040305"]
[null,"W01040306"]
[null,"W01040401"]
[null,"W01040402"]
[null,"W01040403"]
[null,"W01040404"]
[null,"W01040499"]
[null,"W01040501"]
[null,"W01040502"]
[null,"W01040601"]
[null,"W01040699"]
[null,"W01040801"]
[null,"W01040802"]
[null,"W01040803"]
[null,"W01040805"]
[null,"W01050101"]
[null,"W01050102"]
[null,"W01050103"]
[null,"W01050104"]
[null,"W01050105"]
[null,"W01050106"]
[null,"W01050107"]
[null,"W01050108"]
[null,"W01050109"]
[null,"W01050110"]
[null,"W01050111"]
[null,"W01050112"]
[null,"W01050113"]
[null,"W01050114"]
[null,"W01050115"]
[null,"W01050116"]
[null,"W01050117"]
[null,"W01050201"]
[null,"W01050202"]
[null,"W01050203"]
[null,"W01050204"]
[null,"W01050205"]
[null,"W01050206"]
[null,"W01050207"]
[null,"W01050301"]
[null,"W01050302"]
[null,"W01050303"]
[null,"W01050304"]
[null,"W01050305"]
[null,"W01050306"]
[null,"W01050307"]
[null,"W01050401"]
[null,"W01050402"]
[null,"W01050403"]
[null,"W01050404"]
[null,"W01050405"]
[null,"W01050406"]
[null,"W01050407"]
[null,"W01050408"]
[null,"W01050409"]
[null,"W01050499"]
[null,"W01050501"]
[null,"W01050502"]
[null,"W01050603"]
[null,"W01050604"]
[null,"W01050702"]
[null,"W01050703"]
[null,"W01050704"]
[null,"W01050705"]
[null,"W01050799"]
[null,"W01050808"]
[null,"W01050809"]
[null,"W01050901"]
[null,"W01050902"]
[null,"W01050903"]
[null,"W01050904"]
[null,"W01050990"]
[null,"W01059001"]
[null,"W01059002"]
[null,"W01060101"]
[null,"W01060102"]
[null,"W01060103"]
[null,"W01060104"]
[null,"W01060201"]
[null,"W01060202"]
[null,"W01060203"]
[null,"W01060204"]
[null,"W01060205"]
[null,"W01060206"]
[null,"W01060207"]
[null,"W01060208"]
[null,"W01060209"]
[null,"W01060210"]
[null,"W01060211"]
[null,"W01060212"]
[null,"W01060213"]
[null,"W01060299"]
[null,"W01060301"]
[null,"W02010101"]
[null,"W02010102"]
[null,"W02010199"]
[null,"W02010201"]
[null,"W02010202"]
[null,"W02010299"]
[null,"W02010301"]
[null,"W02010399"]
[null,"W02010401"]
[null,"W02010402"]
[null,"W02010499"]
[null,"W02010501"]
[null,"W02010502"]
[null,"W02010601"]
[null,"W02010690"]
[null,"W02020101"]
[null,"W02020102"]
[null,"W02020199"]
[null,"W02020201"]
[null,"W02020290"]
[null,"W02020301"]
[null,"W02020302"]
[null,"W02020399"]
[null,"W02020401"]
[null,"W02020499"]
[null,"W02020501"]
[null,"W02020502"]
[null,"W02020503"]
[null,"W02020590"]
[null,"W02020601"]
[null,"W02020602"]
[null,"W02020680"]
[null,"W02020682"]
[null,"W02020685"]
[null,"W02020699"]
[null,"W02029001"]
[null,"W02029002"]
[null,"W02029003"]
[null,"W02029005"]
[null,"W02029006"]
[null,"W02029007"]
[null,"W02029008"]
[null,"W02029009"]
[null,"W02029010"]
[null,"W02029080"]
[null,"W02029082"]
[null,"W02029085"]
[null,"W02029099"]
[null,"W02030101"]
[null,"W02030199"]
[null,"W02030201"]
[null,"W02030299"]
[null,"W02039001"]
[null,"W02039002"]
[null,"W02039003"]
[null,"W02039004"]
[null,"W02039005"]
[null,"W02039006"]
[null,"W02039080"]
[null,"W02039082"]
[null,"W02039085"]
[null,"W02039099"]
[null,"W02050101"]
[null,"W02050102"]
[null,"W02050103"]
[null,"W02050104"]
[null,"W02050105"]
[null,"W02050106"]
[null,"W02050107"]
[null,"W02050108"]
[null,"W02050109"]
[null,"W02050110"]
[null,"W02050111"]
[null,"W02050112"]
[null,"W02050113"]
[null,"W02050114"]
[null,"W02050115"]
[null,"W02050116"]
[null,"W02050180"]
[null,"W02050182"]
[null,"W02050185"]
[null,"W02050199"]
[null,"W02050201"]
[null,"W02050202"]
[null,"W02050280"]
[null,"W02050282"]
[null,"W02050285"]
[null,"W02050299"]
[null,"W02060101"]
[null,"W02060102"]
[null,"W02060180"]
[null,"W02060182"]
[null,"W02060185"]
[null,"W02060199"]
[null,"W02069001"]
[null,"W02069002"]
[null,"W02069003"]
[null,"W02069004"]
[null,"W02069005"]
[null,"W02069006"]
[null,"W02069080"]
[null,"W02069082"]
[null,"W02069085"]
[null,"W02069099"]
[null,"W02070101"]
[null,"W02070102"]
[null,"W02070103"]
[null,"W02070301"]
[null,"W02070302"]
[null,"W02070303"]
[null,"W02070304"]
[null,"W02070401"]
[null,"W02070402"]
[null,"W02070403"]
[null,"W02070404"]
[null,"W02079001"]
[null,"W02079002"]
[null,"W02079003"]
[null,"W02079004"]
[null,"W02079006"]
[null,"W02079007"]
[null,"W02079008"]
[null,"W02079009"]
[null,"W02079011"]
[null,"W02079012"]
[null,"W02079013"]
[null,"W02079014"]
[null,"W02079015"]
[null,"W02079016"]
[null,"W02079017"]
[null,"W02079080"]
[null,"W02079082"]
[null,"W02079085"]
[null,"W02079099"]
[null,"W05010101"]
[null,"W05010102"]
[null,"W05010201"]
[null,"W05010202"]
[null,"W05010203"]
[null,"W05010280"]
[null,"W05010299"]
[null,"W05019001"]
[null,"W05019002"]
[null,"W05019003"]
[null,"W05019005"]
[null,"W05019099"]
[null,"W05020101"]
[null,"W05020102"]
[null,"W05020103"]
[null,"W05020104"]
[null,"W05020105"]
[null,"W05020106"]
[null,"W05020180"]
[null,"W05020199"]
[null,"W05030101"]
[null,"W05030102"]
[null,"W05030199"]
[null,"W05030201"]
[null,"W05030202"]
[null,"W05030301"]
[null,"W05030302"]
[null,"W05030380"]
[null,"W05030399"]
[null,"W05030401"]
[null,"W05030402"]
[null,"W05030480"]
[null,"W05030499"]
[null,"W05030501"]
[null,"W05030502"]
[null,"W05030580"]
[null,"W05030599"]
[null,"W05039001"]
[null,"W05039002"]
[null,"W05039080"]
[null,"W05039099"]